,Directorate,Supplier Name,Supplier Invoice No,Payment Date,Gross Invoice Value,Vat Amount,Vendor Id,Purpose of Expenditure,Description,Redact flag,Year,Period
1,Community and Housing,SOUTHPARK RESIDENTIAL HOME,1095859,10-Jan-24,5585.71,0,19,Older People Placements - East,321017              Nursing & Residential Care Homes,A,2023,10
2,Community and Housing,SOUTHPARK RESIDENTIAL HOME,1099667,17-Jan-24,3400,0,19,Older People Placements - East,321017              Nursing & Residential Care Homes,A,2023,10
3,Community and Housing,SOUTHPARK RESIDENTIAL HOME,1099897,17-Jan-24,3400,0,19,Older People Placements - East,321017              Nursing & Residential Care Homes,A,2023,10
4,Community and Housing,SOUTHPARK RESIDENTIAL HOME,1100021,17-Jan-24,850,0,19,Older People Placements - East,321017              Nursing & Residential Care Homes,A,2023,10
5,"Children, Schools and Family",MORE HOUSE SCHOOL,31661,10-Jan-24,10329,0,345,SEN Residential (DSG),170000              Education,A,2023,10
6,"Children, Schools and Family",MORE HOUSE SCHOOL,31606,11-Jan-24,8031.45,0,345,SEN Residential (DSG),170000              Education,A,2023,10
7,Community and Housing,ST TERESA`S HOME FOR THE ELDERLY,1099602,17-Jan-24,3764.24,0,362,Older People Placements - East,321017              Nursing & Residential Care Homes,A,2023,10
8,Community and Housing,THE WHITE HOUSE NURSING HOME,1099999,17-Jan-24,3396,0,611,Older People Placements - East,321000              Social Community Care Supplies & Services - Adult,A,2023,10
9,"Children, Schools and Family",BLOSSOM HOUSE SCHOOL,10071,10-Jan-24,18112.5,0,777,Non-Delegated Statements,170000              Education,A,2023,10
10,"Children, Schools and Family",BLOSSOM HOUSE SCHOOL,10286,10-Jan-24,4476,0,777,Non-Delegated Statements,170000              Education,A,2023,10
11,"Children, Schools and Family",BLOSSOM HOUSE SCHOOL,10287,12-Jan-24,4476,0,777,Non-Delegated Statements,170000              Education,A,2023,10
12,Corporate Services,Quadient,807646146,19-Jan-24,2130.83,0,793,Legal Shared Service,300000              Mail Services,A,2023,10
13,Corporate Services,Quadient,93106883,15-Jan-24,955.79,159.3,793,Electoral Registration,300000              Mail Services,A,2023,10
14,Corporate Services,Quadient,93106920,30-Jan-24,2913.72,485.62,793,Post services,300000              Mail Services,A,2023,10
15,Unassigned,PERSEID SCHOOL,SCHOOLS 2324/10,08-Jan-24,743530.7,0,983,Schools,170000              Education,A,2023,10
16,"Children, Schools and Family",PERSEID SCHOOL,2273,26-Jan-24,2100,0,983,School Improvement GeneralFund,170000              Education,A,2023,10
17,"Children, Schools and Family",PERSEID SCHOOL,2274,26-Jan-24,2100,0,983,School Improvement GeneralFund,170000              Education,A,2023,10
18,"Children, Schools and Family",PERSEID SCHOOL,2398,26-Jan-24,4725,0,983,School Improvement GeneralFund,170000              Education,A,2023,10
19,"Children, Schools and Family",PERSEID SCHOOL,2399,26-Jan-24,4725,0,983,School Improvement GeneralFund,170000              Education,A,2023,10
20,"Children, Schools and Family",PERSEID SCHOOL,2412,26-Jan-24,1980,330,983,Attain,170000              Education,A,2023,10
21,"Children, Schools and Family",PERSEID SCHOOL,2411,29-Jan-24,10040,0,983,School Improvement DSG HNB,170000              Education,A,2023,10
22,Community and Housing,MOUNT CARMEL HOSTEL,1099902,17-Jan-24,2880,0,1053,Substance Misuse Alcoholl,321017              Nursing & Residential Care Homes,A,2023,10
23,Community and Housing,SUTTON NURSING HOMES LTD,1099638,17-Jan-24,3381.16,0,1208,Older People Placements - East,321017              Nursing & Residential Care Homes,A,2023,10
24,Community and Housing,SUTTON NURSING HOMES LTD,1099983,17-Jan-24,3381.16,0,1208,Older People Placements - East,321017              Nursing & Residential Care Homes,A,2023,10
25,Environment and Regeneration,RICS BUSINESS SERVICE LTD,10324324,31-Jan-24,539,0,1350,Property Mgt & Review,200000              Financial Services,A,2023,10
26,Corporate Services,L.B OF RICHMOND UPON THAMES,RC376792128M09E,04-Jan-24,4100,0,1353,SLLP Client Income,OLA,A,2023,10
27,Unassigned,L.B OF RICHMOND UPON THAMES,23-1471-GPD26,08-Jan-24,548,0,1353,Corporate Services,OLA,A,2023,10
28,Unassigned,L.B OF RICHMOND UPON THAMES,22/3049/FUL,08-Jan-24,2534.5,0,1353,Corporate Services,OLA,A,2023,10
29,Unassigned,MELROSE SPECIAL SCHOOL,SCHOOLS 2324/10,08-Jan-24,652731.47,0,1393,Schools,170000              Education,A,2023,10
30,Unassigned,WILLIAM MORRIS PRIMARY SCHOOL,SCHOOLS 2324/10,08-Jan-24,263224.93,0,1416,Schools,170000              Education,A,2023,10
31,Unassigned,ST THOMAS OF CANTERBURY PRIMARY,SCHOOLS 2324/10,08-Jan-24,375476.69,0,1418,Schools,170000              Education,A,2023,10
32,Unassigned,PRIORY C OF E MIDDLE SCHOOL,SCHOOLS 2324/10,08-Jan-24,162682.06,0,1420,Schools,170000              Education,A,2023,10
33,Unassigned,LIBERTY PRIMARY SCHOOL,SCHOOLS 2324/10,08-Jan-24,321685.57,0,1424,Schools,170000              Education,A,2023,10
34,Unassigned,HILLCROSS PRIMARY SCHOOL,SCHOOLS 2324/10,08-Jan-24,291321.48,0,1425,Schools,170000              Education,A,2023,10
35,Unassigned,CRANMER PRIMARY SCHOOL,SCHOOLS 2324/10,08-Jan-24,489023.97,0,1426,Schools,170000              Education,A,2023,10
36,Unassigned,WIMBLEDON COLLEGE SCHOOL,SCHOOLS 2324/10,08-Jan-24,1093633.2,0,1428,Schools,170000              Education,A,2023,10
37,Unassigned,URSULINE HIGH SCHOOL,SCHOOLS 2324/10,08-Jan-24,1151796.61,0,1429,Schools,170000              Education,A,2023,10
38,Corporate Services,URSULINE HIGH SCHOOL,HAFFEB-UPFRONT,29-Jan-24,1177.5,0,1429,Cost of Living Fund,170000              Education,A,2023,10
39,Unassigned,RUTLISH SCHOOL,SCHOOLS 2324/10,08-Jan-24,1287275.83,0,1431,Schools,170000              Education,A,2023,10
40,Unassigned,RICARDS LODGE SECONDARY SCHOOL,SCHOOLS 2324/10,08-Jan-24,1222793.88,0,1433,Schools,170000              Education,A,2023,10
41,Unassigned,WIMBLEDON PARK PRIMARY SCHOOL,SCHOOLS 2324/10,08-Jan-24,398963.01,0,1436,Schools,170000              Education,A,2023,10
42,Unassigned,WIMBLEDON PARK PRIMARY SCHOOL,23LMPE000008,22-Jan-24,855,0,1436,Corporate Services,170000              Education,A,2023,10
43,Unassigned,ST TERESA'S R C PRIMARY SCHOOL,SCHOOLS 2324/10,08-Jan-24,335428.69,0,1438,Schools,170000              Education,A,2023,10
44,Unassigned,ST MARYS CATHOLIC PRIMARY SCHOOL,SCHOOLS 2324/10,08-Jan-24,289789.19,0,1439,Schools,170000              Education,A,2023,10
45,Unassigned,ST MARKS PRIMARY SCHOOL,SCHOOLS 2324/10,08-Jan-24,213486.12,0,1440,Schools,170000              Education,A,2023,10
46,Unassigned,ST JOHN FISHER RC PRIMARY SCH.,SCHOOLS 2324/10,08-Jan-24,282477.44,0,1441,Schools,170000              Education,A,2023,10
47,Unassigned,SINGLEGATE PRIMARY SCHOOL,SCHOOLS 2324/10,08-Jan-24,434109.14,0,1442,Schools,170000              Education,A,2023,10
48,Unassigned,SHERWOOD PRIMARY SCHOOL,SCHOOLS 2324/10,08-Jan-24,280289.6,0,1443,Schools,170000              Education,A,2023,10
49,Unassigned,POPLAR PRIMARY SCHOOL,SCHOOLS 2324/10,08-Jan-24,470637.9,0,1444,Schools,170000              Education,A,2023,10
50,"Children, Schools and Family",POPLAR PRIMARY SCHOOL,100124,19-Jan-24,18508.68,0,1444,School Improvement GeneralFund,170000              Education,A,2023,10
51,"Children, Schools and Family",POPLAR PRIMARY SCHOOL,210423,26-Jan-24,4306.08,0,1444,School Improvement GeneralFund,170000              Education,A,2023,10
52,Unassigned,PELHAM PRIMARY SCHOOL,SCHOOLS 2324/10,08-Jan-24,285168.36,0,1445,Schools,170000              Education,A,2023,10
53,Unassigned,MORDEN PRIMARY SCHOOL,SCHOOLS 2324/10,08-Jan-24,202642.88,0,1446,Schools,170000              Education,A,2023,10
54,Unassigned,MERTON PARK PRIMARY SCHOOL,SCHOOLS 2324/10,08-Jan-24,156631.82,0,1447,Schools,170000              Education,A,2023,10
55,Unassigned,MERTON ABBEY PRIMARY SCHOOL,SCHOOLS 2324/10,08-Jan-24,205916.49,0,1448,Schools,170000              Education,A,2023,10
56,Unassigned,LONESOME PRIMARY SCHOOL,SCHOOLS 2324/10,08-Jan-24,325959.9,0,1450,Schools,170000              Education,A,2023,10
57,Unassigned,LINKS PRIMARY SCHOOL,SCHOOLS 2324/10,08-Jan-24,305142.35,0,1451,Schools,170000              Education,A,2023,10
58,Corporate Services,LINKS PRIMARY SCHOOL,HAFFEB-UPFRONT,29-Jan-24,1257.5,0,1451,Cost of Living Fund,170000              Education,A,2023,10
59,Unassigned,JOSEPH HOOD PRIMARY SCHOOL,SCHOOLS 2324/10,08-Jan-24,294515.7,0,1452,Schools,170000              Education,A,2023,10
60,"Children, Schools and Family",JOSEPH HOOD PRIMARY SCHOOL,JH23/2437,29-Jan-24,866,0,1452,MIASS Info Advice and Support,170000              Education,A,2023,10
61,Unassigned,HOLY TRINITY C OF E PRIMARY SCHOOL,SCHOOLS 2324/10,08-Jan-24,279020.83,0,1453,Schools,170000              Education,A,2023,10
62,Unassigned,HOLLYMOUNT PRIMARY SCHOOL,SCHOOLS 2324/10,08-Jan-24,288774.88,0,1454,Schools,170000              Education,A,2023,10
63,"Children, Schools and Family",HOLLYMOUNT PRIMARY SCHOOL,HS0C378,26-Jan-24,1800,0,1454,School Improvement Dedelegated,170000              Education,A,2023,10
64,Unassigned,HATFEILD PRIMARY SCHOOL,SCHOOLS 2324/10,08-Jan-24,363430.68,0,1455,Schools,170000              Education,A,2023,10
65,Unassigned,HASLEMERE PRIMARY SCHOOL,SCHOOLS 2324/10,08-Jan-24,333716.95,0,1456,Schools,170000              Education,A,2023,10
66,Unassigned,GARFIELD PRIMARY SCHOOL,SCHOOLS 2324/10,08-Jan-24,247573.95,0,1460,Schools,170000              Education,A,2023,10
67,Unassigned,BOND PRIMARY SCHOOL,SCHOOLS 2324/10,08-Jan-24,319801.63,0,1462,Schools,170000              Education,A,2023,10
68,Unassigned,BISHOP GILPIN C OF E PRIMARY,SCHOOLS 2324/10,08-Jan-24,320968.81,0,1463,Schools,170000              Education,A,2023,10
69,Unassigned,ABBOTSBURY PRIMARY SCHOOL,SCHOOLS 2324/10,08-Jan-24,340497.74,0,1467,Schools,170000              Education,A,2023,10
70,"Children, Schools and Family",ABBOTSBURY PRIMARY SCHOOL,LBROOKSTASUPPORT,18-Jan-24,7062.25,0,1467,PupilPremium- Virtual School,170000              Education,A,2023,10
71,Unassigned,WIMBLEDON CHASE PRIMARY SCHOOL,SCHOOLS 2324/10,08-Jan-24,497684.21,0,1469,Schools,170000              Education,A,2023,10
72,Unassigned,WIMBLEDON CHASE PRIMARY SCHOOL,REFUND,15-Jan-24,1405,0,1469,Corporate Accountancy,170000              Education,A,2023,10
73,Unassigned,GORRINGE PARK PRIMARY SCHOOL,SCHOOLS 2324/10,08-Jan-24,308249.08,0,1470,Schools,170000              Education,A,2023,10
74,Unassigned,RAYNES PARK SECONDARY SCHOOL,SCHOOLS 2324/10,08-Jan-24,1274303.31,0,1471,Schools,170000              Education,A,2023,10
75,Corporate Services,RAYNES PARK SECONDARY SCHOOL,HAFFEB-UPFRONT,29-Jan-24,3000,0,1471,Cost of Living Fund,170000              Education,A,2023,10
76,Unassigned,SS PETER AND PAUL RC PRIMARY SCH,SCHOOLS 2324/10,08-Jan-24,236154.19,0,1472,Schools,170000              Education,A,2023,10
77,Unassigned,DUNDONALD PRIMARY SCHOOL,SCHOOLS 2324/10,08-Jan-24,273829.88,0,1473,Schools,170000              Education,A,2023,10
78,"Children, Schools and Family",MERTON MENCAP,4654,31-Jan-24,46500,0,1519, Centralised Commiss Services,200000              Financial Services,A,2023,10
79,"Children, Schools and Family",MERTON MENCAP,4657,31-Jan-24,46500,0,1519, Centralised Commiss Services,200000              Financial Services,A,2023,10
80,Unassigned,ALL SAINTS C OF E PRIMARY SCH,SCHOOLS 2324/10,08-Jan-24,287676.88,0,1680,Schools,170000              Education,A,2023,10
81,"Children, Schools and Family",REDACTED PERSONAL DATA,1093686,05-Jan-24,548.09,0,1801,Placements Under 18,321100              Social Community Care Supplies & Services - Children,R,2023,10
82,"Children, Schools and Family",REDACTED PERSONAL DATA,1093692,05-Jan-24,548.09,0,1801,Placements Under 18,321100              Social Community Care Supplies & Services - Children,R,2023,10
83,"Children, Schools and Family",REDACTED PERSONAL DATA,1097646,12-Jan-24,548.09,0,1801,Placements Under 18,321100              Social Community Care Supplies & Services - Children,R,2023,10
84,"Children, Schools and Family",REDACTED PERSONAL DATA,1097651,12-Jan-24,548.09,0,1801,Placements Under 18,321100              Social Community Care Supplies & Services - Children,R,2023,10
85,"Children, Schools and Family",REDACTED PERSONAL DATA,1100829,19-Jan-24,548.09,0,1801,Placements Under 18,321100              Social Community Care Supplies & Services - Children,R,2023,10
86,"Children, Schools and Family",REDACTED PERSONAL DATA,1100834,19-Jan-24,548.09,0,1801,Placements Under 18,321100              Social Community Care Supplies & Services - Children,R,2023,10
87,"Children, Schools and Family",REDACTED PERSONAL DATA,1103487,26-Jan-24,548.09,0,1801,Placements Under 18,321100              Social Community Care Supplies & Services - Children,R,2023,10
88,"Children, Schools and Family",REDACTED PERSONAL DATA,1103492,26-Jan-24,648.09,0,1801,Placements Under 18,321100              Social Community Care Supplies & Services - Children,R,2023,10
89,Corporate Services,CIVICA UK LIMITED,C/RB290262,08-Jan-24,540879.89,90146.65,1873,Business Systems,270000              Information Communication Technology,A,2023,10
90,Corporate Services,CIVICA UK LIMITED,C/BN290588,17-Jan-24,4177.34,696.23,1873,Benefits Administration,270000              Information Communication Technology,A,2023,10
91,Corporate Services,CIVICA UK LIMITED,C/BN290589,12-Jan-24,1550.3,258.38,1873,Local Taxation Services,270000              Information Communication Technology,A,2023,10
92,"Children, Schools and Family",THE CHILDRENS TRUST,7454,16-Jan-24,5927.82,0,1980,Non-Delegated Statements,170000              Education,A,2023,10
93,"Children, Schools and Family",THE CHILDRENS TRUST,7459,16-Jan-24,9570.32,0,1980,Non-Delegated Statements,170000              Education,A,2023,10
94,Community and Housing,THE FRANCES TAYLOR FOUNDATION,1099694,17-Jan-24,3812.04,0,2011,Learning Disabilities Placemnt,321017              Nursing & Residential Care Homes,A,2023,10
95,Community and Housing,THE FRANCES TAYLOR FOUNDATION,1100002,17-Jan-24,8113.92,0,2011,Learning Disabilities Placemnt,321017              Nursing & Residential Care Homes,A,2023,10
96,Unassigned,SACRED HEART R C PRIMARY SCH.,SCHOOLS 2324/10,08-Jan-24,280723.31,0,2076,Schools,170000              Education,A,2023,10
97,Corporate Services,CANON UK LIMITED,2.3088E+12,22-Jan-24,1911.6,318.6,2181,Business Systems,340000              Stationery,A,2023,10
98,Community and Housing,GENEVA ROAD LIMITED,311223JW,18-Jan-24,600.84,100.14,2198,Older People Placements - East,321000              Social Community Care Supplies & Services - Adult,A,2023,10
99,Corporate Services,LONDON BOROUGH OF SUTTON,"""SLLPINCOMEM0923",05-Jan-24,1500,0,2313,SLLP Client Income,OLA,A,2023,10
100,"Children, Schools and Family",LONDON BOROUGH OF SUTTON,3190800426,12-Jan-24,6000,0,2313,Non-Maintained Post 16 SEN,OLA,A,2023,10
101,"Children, Schools and Family",LONDON BOROUGH OF SUTTON,3190831119,24-Jan-24,37225.01,0,2313,Head - Help & Family Assessmnt,OLA,A,2023,10
102,Community and Housing,FREEWAYS TRUST LTD,1099597,17-Jan-24,2911.6,0,2474,Learning Disabilities Placemnt,321017              Nursing & Residential Care Homes,A,2023,10
103,Unassigned,WIMBLEDON AND PUTNEY COMMON,2.02401E+11,25-Jan-24,42294.8,0,10566,WPCC,PRECEPT,A,2023,10
104,Community and Housing,CLOYDA LTD,1099870,17-Jan-24,4000,0,10762,Older People Placements - East,321017              Nursing & Residential Care Homes,A,2023,10
105,Community and Housing,CHEGWORTH N.H. (BAYSWIFT LTD),1099830,17-Jan-24,3056.4,0,11057,Learning Disabilities Placemnt,321000              Social Community Care Supplies & Services - Adult,A,2023,10
106,"Children, Schools and Family",REDACTED PERSONAL DATA,1093650,05-Jan-24,692.46,0,11130,Placements Under 18,321100              Social Community Care Supplies & Services - Children,R,2023,10
107,"Children, Schools and Family",REDACTED PERSONAL DATA,1097610,12-Jan-24,692.46,0,11130,Placements Under 18,321100              Social Community Care Supplies & Services - Children,R,2023,10
108,"Children, Schools and Family",REDACTED PERSONAL DATA,1100794,19-Jan-24,692.46,0,11130,Placements Under 18,321100              Social Community Care Supplies & Services - Children,R,2023,10
109,"Children, Schools and Family",REDACTED PERSONAL DATA,1103452,26-Jan-24,692.46,0,11130,Placements Under 18,321100              Social Community Care Supplies & Services - Children,R,2023,10
110,Community and Housing,Queens Court,1095853,10-Jan-24,1600,0,12747,Older People Placements - East,321017              Nursing & Residential Care Homes,A,2023,10
111,Community and Housing,Queens Court,1099862,17-Jan-24,3380.32,0,12747,Older People Placements - East,321017              Nursing & Residential Care Homes,A,2023,10
112,Community and Housing,Queens Court,1099906,17-Jan-24,8121.16,0,12747,Older People Placements - East,321017              Nursing & Residential Care Homes,A,2023,10
113,Community and Housing,ASHCROFT CARE SERVICES,1099829,17-Jan-24,6116.88,0,13287,Learning Disabilities Placemnt,321017              Nursing & Residential Care Homes,A,2023,10
114,Community and Housing,SHARE COMMUNITY LTD,241576,15-Jan-24,900,0,13487,Learning Disabilities Placemnt,321017              Nursing & Residential Care Homes,A,2023,10
115,Community and Housing,SHARE COMMUNITY LTD,241575,15-Jan-24,1200,0,13487,Learning Disabilities Placemnt,321017              Nursing & Residential Care Homes,A,2023,10
116,Community and Housing,SHARE COMMUNITY LTD,241597,15-Jan-24,600,0,13487,Learning Disabilities Placemnt,321017              Nursing & Residential Care Homes,A,2023,10
117,Community and Housing,SHARE COMMUNITY LTD,241594,15-Jan-24,900,0,13487,Learning Disabilities Placemnt,321017              Nursing & Residential Care Homes,A,2023,10
118,Community and Housing,SHARE COMMUNITY LTD,241593,15-Jan-24,624,0,13487,Learning Disabilities Placemnt,321017              Nursing & Residential Care Homes,A,2023,10
119,Community and Housing,SHARE COMMUNITY LTD,241567,16-Jan-24,900,0,13487,Learning Disabilities Placemnt,321017              Nursing & Residential Care Homes,A,2023,10
120,Community and Housing,SHARE COMMUNITY LTD,241565,16-Jan-24,624,0,13487,Learning Disabilities Placemnt,321017              Nursing & Residential Care Homes,A,2023,10
121,Community and Housing,SHARE COMMUNITY LTD,241572,16-Jan-24,624,0,13487,Learning Disabilities Placemnt,321017              Nursing & Residential Care Homes,A,2023,10
122,Community and Housing,SHARE COMMUNITY LTD,241585,16-Jan-24,900,0,13487,Learning Disabilities Placemnt,321017              Nursing & Residential Care Homes,A,2023,10
123,Community and Housing,FITZROY SUPPORT,1099940,17-Jan-24,9010.16,0,13535,Learning Disabilities Placemnt,321017              Nursing & Residential Care Homes,A,2023,10
124,Community and Housing,CANTERBURY OAST TRUST LTD,1099608,17-Jan-24,5516.88,0,13566,Learning Disabilities Placemnt,321017              Nursing & Residential Care Homes,A,2023,10
125,Community and Housing,MACINTYRE,1099619,17-Jan-24,6259.88,0,13585,Learning Disabilities Placemnt,321017              Nursing & Residential Care Homes,A,2023,10
126,Community and Housing,MACINTYRE,1099904,17-Jan-24,6120.88,0,13585,Older People Placements - East,321017              Nursing & Residential Care Homes,A,2023,10
127,Community and Housing,MACINTYRE,1099938,17-Jan-24,5235.4,0,13585,Learning Disabilities Placemnt,321017              Nursing & Residential Care Homes,A,2023,10
128,Community and Housing,KENT AUTISTIC TRUST,1099915,17-Jan-24,8548,0,13670,Learning Disabilities Placemnt,321017              Nursing & Residential Care Homes,A,2023,10
129,Community and Housing,UNITED RESPONSE,VSMR874510BA,03-Jan-24,5248.99,874.83,14616,Learning Disabilities Placemnt,321000              Social Community Care Supplies & Services - Adult,A,2023,10
130,Community and Housing,UNITED RESPONSE,VSMR874510BO,03-Jan-24,5248.99,874.83,14616,Learning Disabilities Placemnt,321000              Social Community Care Supplies & Services - Adult,A,2023,10
131,Community and Housing,UNITED RESPONSE,VSMR874510ST,03-Jan-24,5248.99,874.83,14616,Learning Disabilities Placemnt,321000              Social Community Care Supplies & Services - Adult,A,2023,10
132,Community and Housing,UNITED RESPONSE,VSMR874510SV,03-Jan-24,5248.99,874.83,14616,Learning Disabilities Placemnt,321000              Social Community Care Supplies & Services - Adult,A,2023,10
133,Community and Housing,UNITED RESPONSE,VSMR874510RW,03-Jan-24,5248.99,874.83,14616,Learning Disabilities Placemnt,321000              Social Community Care Supplies & Services - Adult,A,2023,10
134,Community and Housing,UNITED RESPONSE,VSMR879653RH,16-Jan-24,4486.08,747.68,14616,Learning Disabilities Placemnt,321000              Social Community Care Supplies & Services - Adult,A,2023,10
135,Community and Housing,UNITED RESPONSE,VSMR879653DH,16-Jan-24,4169.52,694.92,14616,Learning Disabilities Placemnt,321000              Social Community Care Supplies & Services - Adult,A,2023,10
136,Community and Housing,UNITED RESPONSE,VSMR879653HM,16-Jan-24,4960.9,826.82,14616,Learning Disabilities Placemnt,321000              Social Community Care Supplies & Services - Adult,A,2023,10
137,Community and Housing,UNITED RESPONSE,VSMR879653BS,16-Jan-24,4433.38,738.9,14616,Learning Disabilities Placemnt,321000              Social Community Care Supplies & Services - Adult,A,2023,10
138,Community and Housing,UNITED RESPONSE,VSMR879653CW,16-Jan-24,5171.9,861.98,14616,Learning Disabilities Placemnt,321000              Social Community Care Supplies & Services - Adult,A,2023,10
139,Community and Housing,UNITED RESPONSE,VSMR880089BA,22-Jan-24,5248.99,874.83,14616,Learning Disabilities Placemnt,321000              Social Community Care Supplies & Services - Adult,A,2023,10
140,Community and Housing,UNITED RESPONSE,VSMR880089BO,22-Jan-24,5248.99,874.83,14616,Learning Disabilities Placemnt,321000              Social Community Care Supplies & Services - Adult,A,2023,10
141,Community and Housing,UNITED RESPONSE,VSMR880089SV,22-Jan-24,5248.99,874.83,14616,Learning Disabilities Placemnt,321000              Social Community Care Supplies & Services - Adult,A,2023,10
142,Community and Housing,UNITED RESPONSE,VSMR880089RW,22-Jan-24,5248.99,874.83,14616,Learning Disabilities Placemnt,321000              Social Community Care Supplies & Services - Adult,A,2023,10
143,Community and Housing,UNITED RESPONSE,VSMR880089ST,25-Jan-24,5248.99,874.83,14616,Learning Disabilities Placemnt,321000              Social Community Care Supplies & Services - Adult,A,2023,10
144,Environment and Regeneration,MERTON CHAMBER OF COMMERCE,20776,12-Jan-24,14400,2400,15375,EDS2,180000              Environmental Services,A,2023,10
145,Corporate Services,KINGSTON CORPORATION,M09LEGAL23/24',05-Jan-24,7950,0,21573,SLLP Client Income,180000              Environmental Services,A,2023,10
146,Corporate Services,KINGSTON CORPORATION,37671385,12-Jan-24,2915.56,185.26,21573,HR TRANSACTIONS,180000              Environmental Services,A,2023,10
147,Environment and Regeneration,KINGSTON CORPORATION,37672861,23-Jan-24,25600.92,0,21573,Recycling Activities,180000              Environmental Services,A,2023,10
148,Environment and Regeneration,KINGSTON CORPORATION,37675372,25-Jan-24,18748.4,0,21573,Garden Waste Service,180000              Environmental Services,A,2023,10
149,Environment and Regeneration,KINGSTON CORPORATION,37675402,25-Jan-24,8321.94,0,21573,Food Waste Service,180000              Environmental Services,A,2023,10
150,Environment and Regeneration,KINGSTON CORPORATION,37675348,25-Jan-24,23267.4,0,21573,Waste Disposal,180000              Environmental Services,A,2023,10
151,Environment and Regeneration,KINGSTON CORPORATION,37675437,25-Jan-24,25058.31,0,21573,Recycling Activities,180000              Environmental Services,A,2023,10
152,Environment and Regeneration,NORTH EAST MITCHAM COMM ASSOC,2ND GRT OCT 2023,29-Jan-24,21342,0,27999,Grants Programme,321100              Social Community Care Supplies & Services - Children,A,2023,10
153,Community and Housing,TRINITY COURT NURSING HOME,1099662,17-Jan-24,3239.36,0,30306,Older People Placements - East,321017              Nursing & Residential Care Homes,A,2023,10
154,Community and Housing,TRINITY COURT NURSING HOME,1099800,17-Jan-24,3239.36,0,30306,Older People Placements - East,321017              Nursing & Residential Care Homes,A,2023,10
155,Community and Housing,TRINITY COURT NURSING HOME,1099834,17-Jan-24,3239.36,0,30306,Older People Placements - East,321017              Nursing & Residential Care Homes,A,2023,10
156,Community and Housing,TRINITY COURT NURSING HOME,1099849,17-Jan-24,4118.2,0,30306,Phys/Sens Placements - East,321017              Nursing & Residential Care Homes,A,2023,10
157,Community and Housing,TRINITY COURT NURSING HOME,1099914,17-Jan-24,3239.36,0,30306,Older People Placements - East,321017              Nursing & Residential Care Homes,A,2023,10
158,Community and Housing,TRINITY COURT NURSING HOME,1099934,17-Jan-24,3239.36,0,30306,Older People Placements - East,321017              Nursing & Residential Care Homes,A,2023,10
159,Community and Housing,TRINITY COURT NURSING HOME,1100027,17-Jan-24,3239.36,0,30306,Older People Placements - East,321017              Nursing & Residential Care Homes,A,2023,10
160,Community and Housing,TRINITY COURT NURSING HOME,1100029,17-Jan-24,3239.36,0,30306,Older People Placements - East,321017              Nursing & Residential Care Homes,A,2023,10
161,Community and Housing,TRINITY COURT NURSING HOME,1100031,17-Jan-24,3239.36,0,30306,Older People Placements - East,321017              Nursing & Residential Care Homes,A,2023,10
162,Community and Housing,HAYDON PARK LODGE,1099752,17-Jan-24,3485,0,31434,Learning Disabilities Placemnt,321017              Nursing & Residential Care Homes,A,2023,10
163,Community and Housing,HAYDON PARK LODGE,1099777,17-Jan-24,4591.44,0,31434,Learning Disabilities Placemnt,321017              Nursing & Residential Care Homes,A,2023,10
164,Community and Housing,HAYDON PARK LODGE,1099899,17-Jan-24,4420.08,0,31434,Learning Disabilities Placemnt,321017              Nursing & Residential Care Homes,A,2023,10
165,Community and Housing,HAYDON PARK LODGE,1099944,17-Jan-24,7000,0,31434,Learning Disabilities Placemnt,321017              Nursing & Residential Care Homes,A,2023,10
166,Community and Housing,Barchester Healthcare Wimbledon Beaumont,1099699,17-Jan-24,4056,0,33384,Older People Placements - East,321017              Nursing & Residential Care Homes,A,2023,10
167,Community and Housing,Barchester Healthcare Wimbledon Beaumont,147029789,22-Jan-24,2773.28,0,33384,Phys/Sens Placements - East,321017              Nursing & Residential Care Homes,A,2023,10
168,Community and Housing,COMFORT CARE SERVICES (UK) LTD,SU0091/281,15-Jan-24,871.36,0,34932,Mental Health Placements,321000              Social Community Care Supplies & Services - Adult,A,2023,10
169,"Children, Schools and Family",CASTLE KINDERGARTEN,P3 24 UPFRONTPAY,04-Jan-24,28212.03,0,35082,EARLY YEARS NURSERY GRANTS,170000              Education,A,2023,10
170,"Children, Schools and Family",CROWN KINDERGARTEN,P3 24 UPFRONTPAY,04-Jan-24,5352.48,0,35084,EARLY YEARS NURSERY GRANTS,170000              Education,A,2023,10
171,"Children, Schools and Family",JIGSAW DAY NURSERY,P3 24 UPFRONTPAY,04-Jan-24,29856.96,0,35097,EARLY YEARS NURSERY GRANTS,170000              Education,A,2023,10
172,"Children, Schools and Family",NURSERY ON THE GREEN,P3 24 UPFRONTPAY,04-Jan-24,15891.9,0,35101,EARLY YEARS NURSERY GRANTS,170000              Education,A,2023,10
173,"Children, Schools and Family",URSULINE PREPARATORY SCHOOL,P3 24 UPFRONTPAY,04-Jan-24,20262.96,0,35109,EARLY YEARS NURSERY GRANTS,170000              Education,A,2023,10
174,"Children, Schools and Family",URSULINE PREPARATORY SCHOOL,28471,22-Jan-24,9630,0,35109,Non-Delegated Statements,170000              Education,A,2023,10
175,"Children, Schools and Family",WILLINGTON SCH.FOUNDATION LTD,P3 24 UPFRONTPAY,04-Jan-24,14018.4,0,35111,EARLY YEARS NURSERY GRANTS,170000              Education,A,2023,10
176,Community and Housing,ROYAL MASONIC BENEVOLENT INST.,1099735,17-Jan-24,3200,0,35867,Older People Placements - East,321017              Nursing & Residential Care Homes,A,2023,10
177,Unassigned,ST MATTHEW'S C OF E PRIMARY,SCHOOLS 2324/10,08-Jan-24,145867.61,0,36050,Schools,170000              Education,A,2023,10
178,"Children, Schools and Family",LITTLE LEARNERS,P3 24 UPFRONTPAY,04-Jan-24,7933.46,0,39413,EARLY YEARS NURSERY GRANTS,170000              Education,A,2023,10
179,"Children, Schools and Family",SURREY COUNTY COUNCIL,20273597,19-Jan-24,1197.18,0,46682,Non-Delegated Statements,OLA,A,2023,10
180,Community and Housing,JESMUND CARE LTD,1099984,17-Jan-24,3600,0,46751,Older People Placements - East,321017              Nursing & Residential Care Homes,A,2023,10
181,Community and Housing,REDACTED PERSONAL DATA,1091908,02-Jan-24,6021.4,0,50448,Older People Placements - East,DIRECT PAYMENTS,R,2023,10
182,Community and Housing,REDACTED PERSONAL DATA,1104265,29-Jan-24,6021.4,0,50448,Older People Placements - East,DIRECT PAYMENTS,R,2023,10
183,Community and Housing,LINKAGE COMMUNITY TR.LONG-STAY,1099891,17-Jan-24,3340.08,0,52552,Learning Disabilities Placemnt,321017              Nursing & Residential Care Homes,A,2023,10
184,"Children, Schools and Family",HASLEMERE HOUSE DAY NURSERY,P3 24 UPFRONTPAY,04-Jan-24,33187.68,0,55612,EARLY YEARS NURSERY GRANTS,170000              Education,A,2023,10
185,Community and Housing,PARK LODGE,1099739,17-Jan-24,2895.68,0,56878,Learning Disabilities Placemnt,321017              Nursing & Residential Care Homes,A,2023,10
186,Community and Housing,PARK LODGE,1099832,17-Jan-24,3026.8,0,56878,Learning Disabilities Placemnt,321017              Nursing & Residential Care Homes,A,2023,10
187,Unassigned,CRICKET GREEN SCHOOL,SCHOOLS 2324/10,08-Jan-24,739379.19,0,57057,Schools,170000              Education,A,2023,10
188,"Children, Schools and Family",CRICKET GREEN SCHOOL,1497,23-Jan-24,68750,0,57057,Non-Maintained Post 16 SEN,170000              Education,A,2023,10
189,Corporate Services,JADE SECURITY SERVICE LTD,6785,30-Jan-24,1461.5,243.58,57563,Cash Collections,200000              Financial Services,A,2023,10
190,"Children, Schools and Family",CANBURY SCHOOL LIMITED,5065,11-Jan-24,12968,0,57830,Non-Delegated Statements,170000              Education,A,2023,10
191,"Children, Schools and Family",CANBURY SCHOOL LIMITED,5064,11-Jan-24,12132.17,0,57830,Non-Delegated Statements,170000              Education,A,2023,10
192,"Children, Schools and Family",CANBURY SCHOOL LIMITED,5063,11-Jan-24,10394.67,0,57830,Non-Delegated Statements,170000              Education,A,2023,10
193,"Children, Schools and Family",CANBURY SCHOOL LIMITED,5062,11-Jan-24,7680.67,0,57830,Non-Delegated Statements,170000              Education,A,2023,10
194,"Children, Schools and Family",CANBURY SCHOOL LIMITED,5071,11-Jan-24,5225.67,0,57830,Non-Delegated Statements,170000              Education,A,2023,10
195,"Children, Schools and Family",CANBURY SCHOOL LIMITED,5070,11-Jan-24,9594.67,0,57830,Non-Delegated Statements,170000              Education,A,2023,10
196,"Children, Schools and Family",CANBURY SCHOOL LIMITED,5069,11-Jan-24,12401.33,0,57830,Non-Delegated Statements,170000              Education,A,2023,10
197,"Children, Schools and Family",CANBURY SCHOOL LIMITED,5068,11-Jan-24,12401.33,0,57830,Non-Delegated Statements,170000              Education,A,2023,10
198,"Children, Schools and Family",CANBURY SCHOOL LIMITED,5067,11-Jan-24,9028,0,57830,Non-Delegated Statements,170000              Education,A,2023,10
199,"Children, Schools and Family",CANBURY SCHOOL LIMITED,5066,11-Jan-24,6328.27,0,57830,Non-Delegated Statements,170000              Education,A,2023,10
200,"Children, Schools and Family",CANBURY SCHOOL LIMITED,4732,19-Jan-24,10581.34,0,57830,Non-Delegated Statements,170000              Education,A,2023,10
201,Community and Housing,WALSINGHAM,1099709,17-Jan-24,5943.28,0,58466,Learning Disabilities Placemnt,321017              Nursing & Residential Care Homes,A,2023,10
202,Community and Housing,WALSINGHAM,1099767,17-Jan-24,7221.64,0,58466,Learning Disabilities Placemnt,321017              Nursing & Residential Care Homes,A,2023,10
203,Community and Housing,WALSINGHAM,1099838,17-Jan-24,7292.52,0,58466,Learning Disabilities Placemnt,321017              Nursing & Residential Care Homes,A,2023,10
204,Community and Housing,WALSINGHAM,1099889,17-Jan-24,5804.04,0,58466,Learning Disabilities Placemnt,321017              Nursing & Residential Care Homes,A,2023,10
205,Community and Housing,WALSINGHAM,1099949,17-Jan-24,7991.72,0,58466,Learning Disabilities Placemnt,321017              Nursing & Residential Care Homes,A,2023,10
206,Community and Housing,HATS GROUP LTD,226470,03-Jan-24,1661.52,276.92,58532,Learning Disabilities Placemnt,360000              Passenger Transport,A,2023,10
207,Community and Housing,CARE UK,1099592,17-Jan-24,3504.04,0,58851,Older People Placements - East,321017              Nursing & Residential Care Homes,A,2023,10
208,Community and Housing,CARE UK,1099596,17-Jan-24,4321.16,0,58851,Older People Placements - East,321017              Nursing & Residential Care Homes,A,2023,10
209,Community and Housing,CARE UK,1099643,17-Jan-24,4321.16,0,58851,Older People Placements - East,321017              Nursing & Residential Care Homes,A,2023,10
210,Community and Housing,CARE UK,1099666,17-Jan-24,4039.72,0,58851,Older People Placements - East,321017              Nursing & Residential Care Homes,A,2023,10
211,Community and Housing,CARE UK,1099689,17-Jan-24,4039.72,0,58851,Older People Placements - East,321017              Nursing & Residential Care Homes,A,2023,10
212,Community and Housing,CARE UK,1099747,17-Jan-24,4321.16,0,58851,Older People Placements - East,321017              Nursing & Residential Care Homes,A,2023,10
213,Community and Housing,CARE UK,1099837,17-Jan-24,4560,0,58851,Older People Placements - East,321017              Nursing & Residential Care Homes,A,2023,10
214,Community and Housing,CARE UK,1099887,17-Jan-24,4321.16,0,58851,Older People Placements - East,321017              Nursing & Residential Care Homes,A,2023,10
215,Community and Housing,CARE UK,1099922,17-Jan-24,4300.12,0,58851,Older People Placements - East,321017              Nursing & Residential Care Homes,A,2023,10
216,Community and Housing,CARE UK,1099935,17-Jan-24,4039.72,0,58851,Older People Placements - East,321017              Nursing & Residential Care Homes,A,2023,10
217,Community and Housing,CARE UK,1099977,17-Jan-24,4340,0,58851,Older People Placements - East,321017              Nursing & Residential Care Homes,A,2023,10
218,Community and Housing,CARE UK,1099981,17-Jan-24,3504.04,0,58851,Older People Placements - East,321017              Nursing & Residential Care Homes,A,2023,10
219,Environment and Regeneration,CANFORD AUDIO LTD,1618828,08-Jan-24,2244,374,59621,Trading Standards - RSP,270000              Information Communication Technology,A,2023,10
220,Community and Housing,BARONS LODGE NURSING HOME,1095866,10-Jan-24,3270,0,62371,Older People Placements - East,321017              Nursing & Residential Care Homes,A,2023,10
221,Community and Housing,BARONS LODGE NURSING HOME,1099658,17-Jan-24,1716,0,62371,Mental Health Placements,321017              Nursing & Residential Care Homes,A,2023,10
222,Community and Housing,BARONS LODGE NURSING HOME,1099750,17-Jan-24,4360,0,62371,Older People Placements - East,321017              Nursing & Residential Care Homes,A,2023,10
223,Community and Housing,BARONS LODGE NURSING HOME,1099763,17-Jan-24,3321.16,0,62371,Older People Placements - East,321017              Nursing & Residential Care Homes,A,2023,10
224,Community and Housing,BARONS LODGE NURSING HOME,1099851,17-Jan-24,3502,0,62371,Mental Health Placements,321017              Nursing & Residential Care Homes,A,2023,10
225,Community and Housing,BARONS LODGE NURSING HOME,1099857,17-Jan-24,4200,0,62371,Mental Health Placements,321017              Nursing & Residential Care Homes,A,2023,10
226,Community and Housing,BARONS LODGE NURSING HOME,1099859,17-Jan-24,4360,0,62371,Older People Placements - East,321017              Nursing & Residential Care Homes,A,2023,10
227,Community and Housing,BARONS LODGE NURSING HOME,1099924,17-Jan-24,4360,0,62371,Mental Health Placements,321017              Nursing & Residential Care Homes,A,2023,10
228,Community and Housing,BARONS LODGE NURSING HOME,1099929,17-Jan-24,4360,0,62371,Older People Placements - East,321017              Nursing & Residential Care Homes,A,2023,10
229,Community and Housing,BARONS LODGE NURSING HOME,1099930,17-Jan-24,3807.2,0,62371,Learning Disabilities Placemnt,321017              Nursing & Residential Care Homes,A,2023,10
230,Community and Housing,BARONS LODGE NURSING HOME,1099950,17-Jan-24,4800,0,62371,Older People Placements - East,321017              Nursing & Residential Care Homes,A,2023,10
231,Community and Housing,BARONS LODGE NURSING HOME,1099972,17-Jan-24,3502,0,62371,Older People Placements - East,321017              Nursing & Residential Care Homes,A,2023,10
232,Corporate Services,MASTERS LEGAL COSTS SERV'S LLP,75475,12-Jan-24,2917.2,486.2,63103,SLLP - Disbursements,280000              Legal Services                                                                            Confirmed,A,2023,10
233,Corporate Services,MASTERS LEGAL COSTS SERV'S LLP,75686,22-Jan-24,1142.4,190.4,63103,SLLP - Disbursements,280000              Legal Services                                                                            Confirmed,A,2023,10
234,Community and Housing,SANCTUARY CARE LTD,1099621,17-Jan-24,3117.52,0,63458,Learning Disabilities Placemnt,321017              Nursing & Residential Care Homes,A,2023,10
235,Community and Housing,THE REGARD PARTNERSHIP LTD,1099607,17-Jan-24,7156,0,63796,Learning Disabilities Placemnt,321017              Nursing & Residential Care Homes,A,2023,10
236,Community and Housing,THE REGARD PARTNERSHIP LTD,1099707,17-Jan-24,6595.72,0,63796,Learning Disabilities Placemnt,321017              Nursing & Residential Care Homes,A,2023,10
237,Community and Housing,THE REGARD PARTNERSHIP LTD,1099723,17-Jan-24,10504.92,0,63796,Learning Disabilities Placemnt,321017              Nursing & Residential Care Homes,A,2023,10
238,Community and Housing,THE REGARD PARTNERSHIP LTD,1099736,17-Jan-24,6255.04,0,63796,Learning Disabilities Placemnt,321017              Nursing & Residential Care Homes,A,2023,10
239,Community and Housing,THE REGARD PARTNERSHIP LTD,1099841,17-Jan-24,6647.28,0,63796,Learning Disabilities Placemnt,321017              Nursing & Residential Care Homes,A,2023,10
240,Community and Housing,THE REGARD PARTNERSHIP LTD,1099951,17-Jan-24,5317.84,0,63796,Learning Disabilities Placemnt,321017              Nursing & Residential Care Homes,A,2023,10
241,"Children, Schools and Family",CAROUSEL DAY NURSERY,P3 24 UPFRONTPAY,04-Jan-24,21409.92,0,66990,EARLY YEARS NURSERY GRANTS,170000              Education,A,2023,10
242,"Children, Schools and Family",PLAYDAYS DAY NURSERY,P3 24 UPFRONTPAY,04-Jan-24,12998.88,0,66992,EARLY YEARS NURSERY GRANTS,170000              Education,A,2023,10
243,Community and Housing,NEEDHAM AND SAUNDERS,2647,22-Jan-24,830,0,68089,Occupational Therapy,"390000              Works - Construction, Repair & Maintenance",A,2023,10
244,Community and Housing,NAS SERVICES LIMITED,ASU4403752,09-Jan-24,4546.8,757.8,68929,Mental Health Placements,321100              Social Community Care Supplies & Services - Children,A,2023,10
245,Community and Housing,NAS SERVICES LIMITED,ACR4406354,31-Jan-24,1893.6,315.6,68929,Mental Health Placements,321100              Social Community Care Supplies & Services - Children,A,2023,10
246,Community and Housing,BRANDON TRUST,1099617,17-Jan-24,4398.6,0,76126,Learning Disabilities Placemnt,321017              Nursing & Residential Care Homes,A,2023,10
247,"Children, Schools and Family",DICKY BIRDS PRE SCHOOL NURSERY,P3 24 UPFRONTPAY,04-Jan-24,22939.2,0,76508,EARLY YEARS NURSERY GRANTS,170000              Education,A,2023,10
248,"Children, Schools and Family",NESCOT,NESCOT-REFUND,16-Jan-24,2174.8,0,76517,Non-Maintained Post 16 SEN,170000              Education,A,2023,10
249,"Children, Schools and Family",NESCOT,335704,22-Jan-24,6413.86,0,76517,Non-Maintained Post 16 SEN,170000              Education,A,2023,10
250,Unassigned,LONDON BOROUGH OF SUTTON,BAILIFF DEC-2023,10-Jan-24,90428.85,0,76615,Corporate Services,OLA,A,2023,10
251,Unassigned,POST OFFICE LTD,MER 23/24 PO24,04-Jan-24,15858.5,0,77066,Adults Social Care,200000              Financial Services,A,2023,10
252,Unassigned,POST OFFICE LTD,MERTON 23/24 PO2,16-Jan-24,18410.89,0,77066,Adults Social Care,200000              Financial Services,A,2023,10
253,Unassigned,POST OFFICE LTD,CFA065MER23PO26,25-Jan-24,12365.2,0,77066,Adults Social Care,200000              Financial Services,A,2023,10
254,Corporate Services,HEMMING GROUP LTD (LOCAL GOV),AD4075,12-Jan-24,6600,1100,78178,AD-Human Resources,200000              Financial Services,A,2023,10
255,"Children, Schools and Family",PRIORS COURT FOUNDATION,2139,19-Jan-24,33479.34,5579.89,78722,SEN Residential (DSG),170000              Education,A,2023,10
256,Community and Housing,ABBEY HOUSE RESIDENTIAL HOMES,1099618,17-Jan-24,4774,0,78937,Older People Placements - East,321017              Nursing & Residential Care Homes,A,2023,10
257,Community and Housing,ABBEY HOUSE RESIDENTIAL HOMES,1099640,17-Jan-24,4774,0,78937,Older People Placements - East,321017              Nursing & Residential Care Homes,A,2023,10
258,Community and Housing,ABBEY HOUSE RESIDENTIAL HOMES,1099642,17-Jan-24,5989.2,0,78937,Mental Health Placements,321017              Nursing & Residential Care Homes,A,2023,10
259,Community and Housing,REDACTED PERSONAL DATA,1091687,02-Jan-24,6316.16,0,81639,Older People Placements - East,DIRECT PAYMENTS,R,2023,10
260,Community and Housing,REDACTED PERSONAL DATA,1104033,29-Jan-24,4809.84,0,81639,Older People Placements - East,DIRECT PAYMENTS,R,2023,10
261,"Children, Schools and Family",DEE'S DAY NURSERY,P3 24 UPFRONTPAY,04-Jan-24,4023.36,0,82343,EARLY YEARS NURSERY GRANTS,170000              Education,A,2023,10
262,Environment and Regeneration,S.GRUNDON (WASTE) LTD.,W158843,18-Jan-24,807.84,134.64,82593,Waste Disposal,180000              Environmental Services,A,2023,10
263,Corporate Services,REDACTED PERSONAL DATA,INVJD224,31-Jan-24,960,160,83383,SLLP - Disbursements,280000              Legal Services,R,2023,10
264,Unassigned,MALMESBURY PRIMARY SCHOOL,SCHOOLS 2324/10,08-Jan-24,389190.42,0,83593,Schools,170000              Education,A,2023,10
265,"Children, Schools and Family",YOUNG EPILEPSY,INV12032,31-Jan-24,5283.33,0,84094,SEN Residential (DSG),170000              Education,A,2023,10
266,Environment and Regeneration,NEWSQUEST MEDIA GROUP LTD,43970414,05-Jan-24,2312.71,385.45,85566,CPZ Implementation & Consult,190000              Facilities & Management Services,A,2023,10
267,Environment and Regeneration,NEWSQUEST MEDIA GROUP LTD,44330757,31-Jan-24,1266.41,211.07,85566,Tr Man & Accid Sch,190000              Facilities & Management Services,A,2023,10
268,Environment and Regeneration,NEWSQUEST MEDIA GROUP LTD,44110327,18-Jan-24,914.33,152.39,85566,Development Control,190000              Facilities & Management Services,A,2023,10
269,Environment and Regeneration,NEWSQUEST MEDIA GROUP LTD,44153202,18-Jan-24,1075.68,179.28,85566,Development Control,190000              Facilities & Management Services,A,2023,10
270,Environment and Regeneration,NEWSQUEST MEDIA GROUP LTD,44196240,18-Jan-24,1075.68,179.28,85566,Development Control,190000              Facilities & Management Services,A,2023,10
271,Environment and Regeneration,NEWSQUEST MEDIA GROUP LTD,44235239,23-Jan-24,860.54,143.42,85566,Development Control,190000              Facilities & Management Services,A,2023,10
272,Environment and Regeneration,NEWSQUEST MEDIA GROUP LTD,44300187,23-Jan-24,978.59,163.1,85566,Development Control,190000              Facilities & Management Services,A,2023,10
273,Community and Housing,LONDON AND QUADRANT HOUS. TRUST,QAGYINV028394,23-Jan-24,1681.67,0,87000,Meadowsweet Res Home,250000              Housing Management,A,2023,10
274,"Children, Schools and Family",LONDON GRID FOR LEARNING TRUST,2020018503,24-Jan-24,3720.6,620.1,90449, Schools IT Support,270000              Information Communication Technology,A,2023,10
275,Community and Housing,SUPREME CARE SERVICES LIMITED,40128A,17-Jan-24,994.56,0,91840,Older People Placements - East,321000              Social Community Care Supplies & Services - Adult,A,2023,10
276,Community and Housing,SUPREME CARE SERVICES LIMITED,40182,25-Jan-24,1118.88,0,91840,Older People Placements - East,321000              Social Community Care Supplies & Services - Adult,A,2023,10
277,Community and Housing,THE GARWOOD FOUNDATION,MW.DFJAN24,19-Jan-24,1003,0,92268,Older People Placements - East,321000              Social Community Care Supplies & Services - Adult,A,2023,10
278,Community and Housing,CARE MANAGEMENT GROUP,613000706,03-Jan-24,6893.52,0,93533,Learning Disabilities Placemnt,321017              Nursing & Residential Care Homes,A,2023,10
279,Community and Housing,CARE MANAGEMENT GROUP,397000785,03-Jan-24,5383.48,0,93533,Learning Disabilities Placemnt,321017              Nursing & Residential Care Homes,A,2023,10
280,Community and Housing,CARE MANAGEMENT GROUP,255001522,03-Jan-24,9467.32,0,93533,Learning Disabilities Placemnt,321017              Nursing & Residential Care Homes,A,2023,10
281,Community and Housing,CARE MANAGEMENT GROUP,1099600,17-Jan-24,4593.88,0,93533,Mental Health Placements,321017              Nursing & Residential Care Homes,A,2023,10
282,Community and Housing,CARE MANAGEMENT GROUP,1099670,17-Jan-24,6812.92,0,93533,Learning Disabilities Placemnt,321017              Nursing & Residential Care Homes,A,2023,10
283,Community and Housing,CARE MANAGEMENT GROUP,1099774,17-Jan-24,6441.2,0,93533,Learning Disabilities Placemnt,321017              Nursing & Residential Care Homes,A,2023,10
284,Community and Housing,CARE MANAGEMENT GROUP,1099819,17-Jan-24,9476,0,93533,Phys/Sens Placements - East,321017              Nursing & Residential Care Homes,A,2023,10
285,Community and Housing,CARE MANAGEMENT GROUP,1099853,17-Jan-24,8367.64,0,93533,Learning Disabilities Placemnt,321017              Nursing & Residential Care Homes,A,2023,10
286,"Children, Schools and Family",ST OLAVES NURSERY,P3 24 UPFRONTPAY,04-Jan-24,16657.92,0,94303,EARLY YEARS NURSERY GRANTS,170000              Education,A,2023,10
287,Community and Housing,A AND R CARE LTD,1099599,17-Jan-24,4121.16,0,94357,Older People Placements - East,321017              Nursing & Residential Care Homes,A,2023,10
288,Community and Housing,A AND R CARE LTD,1099661,17-Jan-24,3300,0,94357,Older People Placements - East,321017              Nursing & Residential Care Homes,A,2023,10
289,Community and Housing,A AND R CARE LTD,1099783,17-Jan-24,4138.24,0,94357,Older People Placements - East,321017              Nursing & Residential Care Homes,A,2023,10
290,Community and Housing,A AND R CARE LTD,1099916,17-Jan-24,3400,0,94357,Older People Placements - East,321017              Nursing & Residential Care Homes,A,2023,10
291,Community and Housing,A AND R CARE LTD,1099920,17-Jan-24,4260.6,0,94357,Older People Placements - East,321017              Nursing & Residential Care Homes,A,2023,10
292,Community and Housing,A AND R CARE LTD,1099955,17-Jan-24,4800,0,94357,Older People Placements - East,321017              Nursing & Residential Care Homes,A,2023,10
293,Community and Housing,A AND R CARE LTD,1100017,17-Jan-24,3824.32,0,94357,Phys/Sens Placements - East,321017              Nursing & Residential Care Homes,A,2023,10
294,Community and Housing,A AND R CARE LTD,1100020,17-Jan-24,4200,0,94357,Older People Placements - East,321017              Nursing & Residential Care Homes,A,2023,10
295,"Children, Schools and Family",CARERS SUPPORT MERTON,468,11-Jan-24,18750,0,95795, Centralised Commiss Services,290000              Arts & Leisure Services,A,2023,10
296,Community and Housing,Aspens Charities Ltd,40964,12-Jan-24,18309.2,0,96019,Learning Disabilities Placemnt,321017              Nursing & Residential Care Homes,A,2023,10
297,Community and Housing,Aspens Charities Ltd,CORRECTION,15-Jan-24,403581.51,0,96019,Learning Disabilities Placemnt,321017              Nursing & Residential Care Homes,A,2023,10
298,Community and Housing,Aspens Charities Ltd,1099799,17-Jan-24,8909.92,0,96019,Learning Disabilities Placemnt,321017              Nursing & Residential Care Homes,A,2023,10
299,Community and Housing,Aspens Charities Ltd,41263,26-Jan-24,18309.2,0,96019,Learning Disabilities Placemnt,321017              Nursing & Residential Care Homes,A,2023,10
300,Community and Housing,REDACTED PERSONAL DATA,1091545,02-Jan-24,5192,0,96859,Learning Disabilities Placemnt,DIRECT PAYMENTS,R,2023,10
301,Community and Housing,REDACTED PERSONAL DATA,1103885,29-Jan-24,5192,0,96859,Learning Disabilities Placemnt,DIRECT PAYMENTS,R,2023,10
302,Community and Housing,THE ABBEYFIELD SOCIETY,1095854,10-Jan-24,7310.39,0,97539,Older People Placements - East,321000              Social Community Care Supplies & Services - Adult,A,2023,10
303,Community and Housing,THE ABBEYFIELD SOCIETY,1099866,17-Jan-24,5386.6,0,97539,Older People Placements - East,321000              Social Community Care Supplies & Services - Adult,A,2023,10
304,Community and Housing,THE ABBEYFIELD SOCIETY,1099931,17-Jan-24,4000,0,97539,Older People Placements - East,321000              Social Community Care Supplies & Services - Adult,A,2023,10
305,Community and Housing,EL-SHADDAI,1093964,08-Jan-24,1141.52,0,97709,MH Housing Support Placements,321000              Social Community Care Supplies & Services - Adult,A,2023,10
306,Community and Housing,EL-SHADDAI,1093990,08-Jan-24,1426.8,0,97709,Learning Disabilities Placemnt,321000              Social Community Care Supplies & Services - Adult,A,2023,10
307,Community and Housing,EL-SHADDAI,1093995,08-Jan-24,1141.52,0,97709,Learning Disabilities Placemnt,321000              Social Community Care Supplies & Services - Adult,A,2023,10
308,Community and Housing,EL-SHADDAI,1094003,08-Jan-24,1652.52,0,97709,Mental Health Placements,321000              Social Community Care Supplies & Services - Adult,A,2023,10
309,Community and Housing,Rosenmanor Ltd,1099794,17-Jan-24,2924.24,0,97808,Mental Health Placements,321017              Nursing & Residential Care Homes,A,2023,10
310,Community and Housing,MERTON COMMUNITY TRANSPORT,17498,04-Jan-24,1198.8,199.8,98164,Learning Disabilities Placemnt,360000              Passenger Transport,A,2023,10
311,Environment and Regeneration,MERTON COMMUNITY TRANSPORT,17545,09-Jan-24,2632,0,98164,Passenger Transport,360000              Passenger Transport,A,2023,10
312,Environment and Regeneration,MERTON COMMUNITY TRANSPORT,17479,19-Jan-24,4136,0,98164,Passenger Transport,360000              Passenger Transport,A,2023,10
313,Unassigned,BEECHOLME PRIMARY ACADEMY,SCHOOLS 2324/10,08-Jan-24,8645,0,98168,Schools,170000              Education,A,2023,10
314,"Children, Schools and Family",Evolve Housing + Support,3465,12-Jan-24,1317.5,0,98536,UASC LAC Under 18,321000              Social Community Care Supplies & Services - Adult,A,2023,10
315,Community and Housing,ROYAL MENCAP SOCIETY,3812358,18-Jan-24,2290.96,0,98713,Learning Disabilities Placemnt,321000              Social Community Care Supplies & Services - Adult,A,2023,10
316,Community and Housing,ROYAL MENCAP SOCIETY,3812359,18-Jan-24,3098.28,0,98713,Learning Disabilities Placemnt,321000              Social Community Care Supplies & Services - Adult,A,2023,10
317,Community and Housing,ABILITY HOUSING ASSOCIATION,12731,11-Jan-24,92447.15,0,99199,Supporting People (HRS),321000              Social Community Care Supplies & Services - Adult,A,2023,10
318,Capital,AQUANEED LIMITED,SI23172,09-Jan-24,9753.7,0,100408,Disabled Facilities Grant,200000              Financial Services,A,2023,10
319,Unassigned,WEST WIMBLEDON PRIMARY SCHOOL,SCHOOLS 2324/10,08-Jan-24,361551,0,101674,Schools,170000              Education,A,2023,10
320,Community and Housing,HILLDALE AND NORTHVIEW,1099755,17-Jan-24,2072.52,0,103592,Older People Placements - East,321000              Social Community Care Supplies & Services - Adult,A,2023,10
321,Environment and Regeneration,G.P HADEN ASSOCIATES,40124,09-Jan-24,11177.2,0,103632,Other Misc Props,"390000              Works - Construction, Repair & Maintenance",A,2023,10
322,Environment and Regeneration,ST GEORGES UNI HOSP NHS F'DN T,78802295,10-Jan-24,47001.95,0,104586,Mortuary,321000              Social Community Care Supplies & Services - Adult,A,2023,10
323,Community and Housing,ST GEORGES UNI HOSP NHS F'DN T,78802533,15-Jan-24,21000,0,104586,PH - Substance Misuse,321000              Social Community Care Supplies & Services - Adult,A,2023,10
324,Community and Housing,BUPA CARE HOMES,1099628,17-Jan-24,3566.68,0,105027,Older People Placements - East,321017              Nursing & Residential Care Homes,A,2023,10
325,Community and Housing,BUPA CARE HOMES,1099644,17-Jan-24,3566.68,0,105027,Older People Placements - East,321017              Nursing & Residential Care Homes,A,2023,10
326,Community and Housing,BUPA CARE HOMES,1099659,17-Jan-24,3422.24,0,105027,Older People Placements - East,321017              Nursing & Residential Care Homes,A,2023,10
327,Community and Housing,BUPA CARE HOMES,1099713,17-Jan-24,3566.68,0,105027,Older People Placements - East,321017              Nursing & Residential Care Homes,A,2023,10
328,Community and Housing,BUPA CARE HOMES,1099726,17-Jan-24,3422.24,0,105027,Older People Placements - East,321017              Nursing & Residential Care Homes,A,2023,10
329,Community and Housing,BUPA CARE HOMES,1099759,17-Jan-24,3566.68,0,105027,Older People Placements - East,321017              Nursing & Residential Care Homes,A,2023,10
330,Community and Housing,BUPA CARE HOMES,1099815,17-Jan-24,3566.68,0,105027,Older People Placements - East,321017              Nursing & Residential Care Homes,A,2023,10
331,Community and Housing,BUPA CARE HOMES,1099828,17-Jan-24,3566.68,0,105027,Older People Placements - East,321017              Nursing & Residential Care Homes,A,2023,10
332,Community and Housing,BUPA CARE HOMES,1099842,17-Jan-24,3566.68,0,105027,Older People Placements - East,321017              Nursing & Residential Care Homes,A,2023,10
333,Community and Housing,BUPA CARE HOMES,1099845,17-Jan-24,3422.24,0,105027,Older People Placements - East,321017              Nursing & Residential Care Homes,A,2023,10
334,Community and Housing,BUPA CARE HOMES,1099852,17-Jan-24,3566.68,0,105027,Older People Placements - East,321017              Nursing & Residential Care Homes,A,2023,10
335,Community and Housing,BUPA CARE HOMES,1099886,17-Jan-24,3566.68,0,105027,Older People Placements - East,321017              Nursing & Residential Care Homes,A,2023,10
336,Community and Housing,BUPA CARE HOMES,1099895,17-Jan-24,4657.16,0,105027,Phys/Sens Placements - East,321017              Nursing & Residential Care Homes,A,2023,10
337,Community and Housing,BUPA CARE HOMES,1099903,17-Jan-24,3566.68,0,105027,Older People Placements - East,321017              Nursing & Residential Care Homes,A,2023,10
338,Community and Housing,BUPA CARE HOMES,1099925,17-Jan-24,3566.68,0,105027,Mental Health Placements,321017              Nursing & Residential Care Homes,A,2023,10
339,Community and Housing,BUPA CARE HOMES,1099946,17-Jan-24,3422.24,0,105027,Older People Placements - East,321017              Nursing & Residential Care Homes,A,2023,10
340,Community and Housing,BUPA CARE HOMES,1099971,17-Jan-24,3566.68,0,105027,Older People Placements - East,321017              Nursing & Residential Care Homes,A,2023,10
341,Community and Housing,BUPA CARE HOMES,1099978,17-Jan-24,3566.68,0,105027,Older People Placements - East,321017              Nursing & Residential Care Homes,A,2023,10
342,Community and Housing,BUPA CARE HOMES,1099982,17-Jan-24,3566.68,0,105027,Older People Placements - East,321017              Nursing & Residential Care Homes,A,2023,10
343,Community and Housing,BUPA CARE HOMES,1100016,17-Jan-24,3566.68,0,105027,Older People Placements - East,321017              Nursing & Residential Care Homes,A,2023,10
344,Community and Housing,BUPA CARE HOMES,1100040,17-Jan-24,3422.24,0,105027,Older People Placements - East,321017              Nursing & Residential Care Homes,A,2023,10
345,Community and Housing,REDACTED PERSONAL DATA,1091893,02-Jan-24,3286.2,0,105300,Learning Disabilities Placemnt,DIRECT PAYMENTS,R,2023,10
346,Community and Housing,REDACTED PERSONAL DATA,1104249,29-Jan-24,3286.2,0,105300,Learning Disabilities Placemnt,DIRECT PAYMENTS,R,2023,10
347,Capital,ASCENDIT LIFTS LTD,41314,12-Jan-24,17010,0,107196,Disabled Facilities Grant,"390000              Works - Construction, Repair & Maintenance",A,2023,10
348,"Children, Schools and Family",The Eveline Day and Nursery Schools Ltd,P3 24 UPFRONTPAY,04-Jan-24,20645.28,0,108282,EARLY YEARS NURSERY GRANTS,170000              Education,A,2023,10
349,Community and Housing,REDACTED PERSONAL DATA,1093950,08-Jan-24,856.12,0,110403,MH Housing Support Placements,321000              Social Community Care Supplies & Services - Adult,R,2023,10
350,Community and Housing,REDACTED PERSONAL DATA,1093955,08-Jan-24,1141.48,0,110403,Learning Disabilities Placemnt,321000              Social Community Care Supplies & Services - Adult,R,2023,10
351,Community and Housing,REDACTED PERSONAL DATA,1093956,08-Jan-24,847.04,0,110403,MH Housing Support Placements,321000              Social Community Care Supplies & Services - Adult,R,2023,10
352,Community and Housing,REDACTED PERSONAL DATA,1093961,08-Jan-24,1426.9,0,110403,Mental Health Placements,321000              Social Community Care Supplies & Services - Adult,R,2023,10
353,Community and Housing,REDACTED PERSONAL DATA,1093966,08-Jan-24,847.04,0,110403,MH Housing Support Placements,321000              Social Community Care Supplies & Services - Adult,R,2023,10
354,Community and Housing,REDACTED PERSONAL DATA,1093968,08-Jan-24,1779.2,0,110403,Mental Health Placements,321000              Social Community Care Supplies & Services - Adult,R,2023,10
355,Community and Housing,REDACTED PERSONAL DATA,1093974,08-Jan-24,1141.52,0,110403,Phys/Sens Placements - East,321000              Social Community Care Supplies & Services - Adult,R,2023,10
356,Community and Housing,REDACTED PERSONAL DATA,1093977,08-Jan-24,1864.28,0,110403,Mental Health Placements,321000              Social Community Care Supplies & Services - Adult,R,2023,10
357,Community and Housing,REDACTED PERSONAL DATA,1093980,08-Jan-24,847.04,0,110403,MH Housing Support Placements,321000              Social Community Care Supplies & Services - Adult,R,2023,10
358,Community and Housing,REDACTED PERSONAL DATA,1093982,08-Jan-24,1411.75,0,110403,Mental Health Placements,321000              Social Community Care Supplies & Services - Adult,R,2023,10
359,Community and Housing,REDACTED PERSONAL DATA,1093992,08-Jan-24,847.04,0,110403,MH Housing Support Placements,321000              Social Community Care Supplies & Services - Adult,R,2023,10
360,Community and Housing,REDACTED PERSONAL DATA,1093994,08-Jan-24,564.72,0,110403,MH Housing Support Placements,321000              Social Community Care Supplies & Services - Adult,R,2023,10
361,Community and Housing,REDACTED PERSONAL DATA,1094002,08-Jan-24,1058.8,0,110403,Mental Health Placements,321000              Social Community Care Supplies & Services - Adult,R,2023,10
362,Community and Housing,REDACTED PERSONAL DATA,1093993,08-Jan-24,1089.05,0,110406,Learning Disabilities Placemnt,321000              Social Community Care Supplies & Services - Adult,R,2023,10
363,Corporate Services,LEXIS NEXIS,DI148233Y,26-Jan-24,91586.3,1271.85,111141,Legal Shared Service,270000              Information Communication Technology,A,2023,10
364,"Children, Schools and Family",REDACTED PERSONAL DATA,1093636,05-Jan-24,514.26,0,111277,Placements Under 18,321100              Social Community Care Supplies & Services - Children,R,2023,10
365,"Children, Schools and Family",REDACTED PERSONAL DATA,1097594,12-Jan-24,514.26,0,111277,Placements Under 18,321100              Social Community Care Supplies & Services - Children,R,2023,10
366,"Children, Schools and Family",REDACTED PERSONAL DATA,1100778,19-Jan-24,514.26,0,111277,Placements Under 18,321100              Social Community Care Supplies & Services - Children,R,2023,10
367,"Children, Schools and Family",REDACTED PERSONAL DATA,1103437,26-Jan-24,514.26,0,111277,Placements Under 18,321100              Social Community Care Supplies & Services - Children,R,2023,10
368,Environment and Regeneration,CHARTERED INST.OF ENVIR.HEALTH,PS011233,26-Jan-24,555,0,112693,Private Sector Housing,200000              Financial Services,A,2023,10
369,Environment and Regeneration,CHARTERED INST.OF ENVIR.HEALTH,PS020721,30-Jan-24,2880,480,112693,Private Sector Housing,200000              Financial Services,A,2023,10
370,Community and Housing,MEADBANK NURSING CENTRE,1100013,17-Jan-24,3249.88,0,113139,Older People Placements - East,321017              Nursing & Residential Care Homes,A,2023,10
371,"Children, Schools and Family",Dicky Birds Pre Sch. Nurseries Dundonald,P3 24 UPFRONTPAY,04-Jan-24,17892.58,0,114041,EARLY YEARS NURSERY GRANTS,170000              Education,A,2023,10
372,Corporate Services,POST OFFICE LTD,1000/90066030,17-Jan-24,1049.08,0,114362,Client Finance Affairs,200000              Financial Services,A,2023,10
373,Community and Housing,MIHOMECARE LIMITED,LIVE42-270686,19-Jan-24,5474,0,114370,Older People Placements - East,321000              Social Community Care Supplies & Services - Adult,A,2023,10
374,Community and Housing,MIHOMECARE LIMITED,LIVE42-270687,15-Jan-24,5474,0,114370,Learning Disabilities Placemnt,321000              Social Community Care Supplies & Services - Adult,A,2023,10
375,Community and Housing,REDACTED PERSONAL DATA,1093951,08-Jan-24,1141.52,0,114970,MH Housing Support Placements,321000              Social Community Care Supplies & Services - Adult,R,2023,10
376,Community and Housing,REDACTED PERSONAL DATA,1093962,08-Jan-24,847.04,0,114970,MH Housing Support Placements,321000              Social Community Care Supplies & Services - Adult,R,2023,10
377,Community and Housing,REDACTED PERSONAL DATA,1093963,08-Jan-24,837.48,0,114970,Mental Health Placements,321000              Social Community Care Supplies & Services - Adult,R,2023,10
378,Community and Housing,REDACTED PERSONAL DATA,1093986,08-Jan-24,1141.52,0,114970,MH Housing Support Placements,321000              Social Community Care Supplies & Services - Adult,R,2023,10
379,Community and Housing,REDACTED PERSONAL DATA,1093998,08-Jan-24,856.08,0,114970,Mental Health Placements,321000              Social Community Care Supplies & Services - Adult,R,2023,10
380,"Children, Schools and Family",The Eveline Day Nursery Grand Drive,P3 24 UPFRONTPAY,04-Jan-24,38741.76,0,116784,EARLY YEARS NURSERY GRANTS,170000              Education,A,2023,10
381,Community and Housing,GRANGE COTTAGE LIMITED,1091418,04-Jan-24,6120,0,117931,Older People Placements - East,321017              Nursing & Residential Care Homes,A,2023,10
382,Community and Housing,GRANGE COTTAGE LIMITED,1091421,04-Jan-24,1568.57,0,117931,Older People Placements - East,321017              Nursing & Residential Care Homes,A,2023,10
383,Community and Housing,GRANGE COTTAGE LIMITED,1091422,04-Jan-24,600,0,117931,Older People Placements - East,321017              Nursing & Residential Care Homes,A,2023,10
384,Community and Housing,GRANGE COTTAGE LIMITED,1091432,04-Jan-24,2142,0,117931,Older People Placements - East,321017              Nursing & Residential Care Homes,A,2023,10
385,Community and Housing,GRANGE COTTAGE LIMITED,1091438,04-Jan-24,6120,0,117931,Older People Placements - East,321017              Nursing & Residential Care Homes,A,2023,10
386,Community and Housing,GRANGE COTTAGE LIMITED,1099669,17-Jan-24,3400,0,117931,Older People Placements - East,321017              Nursing & Residential Care Homes,A,2023,10
387,Community and Housing,GRANGE COTTAGE LIMITED,1099836,17-Jan-24,3852,0,117931,Older People Placements - East,321017              Nursing & Residential Care Homes,A,2023,10
388,Community and Housing,GRANGE COTTAGE LIMITED,1099928,17-Jan-24,3400,0,117931,Older People Placements - East,321017              Nursing & Residential Care Homes,A,2023,10
389,Community and Housing,REDACTED PERSONAL DATA,1093958,08-Jan-24,856.12,0,117970,MH Housing Support Placements,321000              Social Community Care Supplies & Services - Adult,R,2023,10
390,Community and Housing,REDACTED PERSONAL DATA,1093969,08-Jan-24,1141.52,0,117970,Mental Health Placements,321000              Social Community Care Supplies & Services - Adult,R,2023,10
391,Community and Housing,REDACTED PERSONAL DATA,1093983,08-Jan-24,1141.52,0,117970,Mental Health Placements,321000              Social Community Care Supplies & Services - Adult,R,2023,10
392,Community and Housing,L'ARCHE,1099962,17-Jan-24,3050.12,0,118483,Learning Disabilities Placemnt,321017              Nursing & Residential Care Homes,A,2023,10
393,Community and Housing,Alexander House c/o Keychange Charity,1099687,17-Jan-24,3100,0,119109,Older People Placements - East,321017              Nursing & Residential Care Homes,A,2023,10
394,Community and Housing,Alexander House c/o Keychange Charity,1099741,17-Jan-24,6600,0,119109,Older People Placements - East,321017              Nursing & Residential Care Homes,A,2023,10
395,Community and Housing,Alexander House c/o Keychange Charity,1099760,17-Jan-24,3220.32,0,119109,Older People Placements - East,321017              Nursing & Residential Care Homes,A,2023,10
396,Community and Housing,Alexander House c/o Keychange Charity,1099781,17-Jan-24,5600,0,119109,Older People Placements - East,321017              Nursing & Residential Care Homes,A,2023,10
397,Community and Housing,Alexander House c/o Keychange Charity,1099975,17-Jan-24,4000,0,119109,Older People Placements - East,321017              Nursing & Residential Care Homes,A,2023,10
398,Community and Housing,Alexander House c/o Keychange Charity,1100028,17-Jan-24,3840,0,119109,Older People Placements - East,321017              Nursing & Residential Care Homes,A,2023,10
399,Environment and Regeneration,Flowbird Smart City UK Ltd,UK165831,29-Jan-24,2215.2,369.2,119359,On Street Parking,350000              Street & Traffic Management,A,2023,10
400,"Children, Schools and Family",REDACTED PERSONAL DATA,P3 24 UPFRONTPAY,04-Jan-24,1815.84,0,119701,EARLY YEARS NURSERY GRANTS,200000              Financial Services,R,2023,10
401,"Children, Schools and Family",PLAYDAYS DAY NURSERY,P3 24 UPFRONTPAY,04-Jan-24,6881.76,0,121668,EARLY YEARS NURSERY GRANTS,170000              Education,A,2023,10
402,"Children, Schools and Family",EDWARD THOMAS & SON,E11324,09-Jan-24,3495,0,121921, Youth Service,360000              Passenger Transport,A,2023,10
403,"Children, Schools and Family",REDACTED PERSONAL DATA,P3 24 UPFRONTPAY,04-Jan-24,851.04,0,122848,EARLY YEARS NURSERY GRANTS,200000              Financial Services,R,2023,10
404,Community and Housing,REDACTED PERSONAL DATA,1091614,02-Jan-24,1662.44,0,124097,Older People Placements - East,DIRECT PAYMENTS,R,2023,10
405,Community and Housing,REDACTED PERSONAL DATA,1103956,29-Jan-24,1662.44,0,124097,Older People Placements - East,DIRECT PAYMENTS,R,2023,10
406,Community and Housing,UNITED RESPONSE,1099637,17-Jan-24,8251.44,1375.24,125227,Learning Disabilities Placemnt,321000              Social Community Care Supplies & Services - Adult,A,2023,10
407,Community and Housing,UNITED RESPONSE,1099697,17-Jan-24,8251.44,1375.24,125227,Learning Disabilities Placemnt,321000              Social Community Care Supplies & Services - Adult,A,2023,10
408,Community and Housing,UNITED RESPONSE,1099738,17-Jan-24,8251.44,1375.24,125227,Learning Disabilities Placemnt,321000              Social Community Care Supplies & Services - Adult,A,2023,10
409,Community and Housing,UNITED RESPONSE,1099789,17-Jan-24,8251.44,1375.24,125227,Learning Disabilities Placemnt,321000              Social Community Care Supplies & Services - Adult,A,2023,10
410,Community and Housing,UNITED RESPONSE,1099905,17-Jan-24,8251.44,1375.24,125227,Learning Disabilities Placemnt,321000              Social Community Care Supplies & Services - Adult,A,2023,10
411,Community and Housing,REDACTED PERSONAL DATA,1091598,02-Jan-24,1642.2,0,125642,Phys/Sens Placements - East,DIRECT PAYMENTS,R,2023,10
412,Community and Housing,REDACTED PERSONAL DATA,1103938,29-Jan-24,1642.2,0,125642,Phys/Sens Placements - East,DIRECT PAYMENTS,R,2023,10
413,Community and Housing,REDACTED PERSONAL DATA,1091790,02-Jan-24,1039.36,0,126189,Older People Placements - East,DIRECT PAYMENTS,R,2023,10
414,Community and Housing,REDACTED PERSONAL DATA,1104141,29-Jan-24,1039.36,0,126189,Older People Placements - East,DIRECT PAYMENTS,R,2023,10
415,Community and Housing,REDACTED PERSONAL DATA,1102013,23-Jan-24,2434.03,0,127266,Older People Placements - East,DIRECT PAYMENTS,R,2023,10
416,Community and Housing,REDACTED PERSONAL DATA,1104236,29-Jan-24,821.12,0,127266,Older People Placements - East,DIRECT PAYMENTS,R,2023,10
417,Environment and Regeneration,TRL LIMITED,11619355,08-Jan-24,630.28,105.05,128700,Environmental Health-Pollution,180000              Environmental Services,A,2023,10
418,Environment and Regeneration,TRL LIMITED,11619356,08-Jan-24,1285.2,214.2,128700,LBR - Pollution,180000              Environmental Services,A,2023,10
419,Environment and Regeneration,TRL LIMITED,11619357,08-Jan-24,4345.04,724.17,128700,Wandsworth Air Quality,180000              Environmental Services,A,2023,10
420,"Children, Schools and Family",REDACTED PERSONAL DATA,1093606,05-Jan-24,514.26,0,128736,Placements Under 18,321100              Social Community Care Supplies & Services - Children,R,2023,10
421,"Children, Schools and Family",REDACTED PERSONAL DATA,1097565,12-Jan-24,514.26,0,128736,Placements Under 18,321100              Social Community Care Supplies & Services - Children,R,2023,10
422,"Children, Schools and Family",REDACTED PERSONAL DATA,1100749,19-Jan-24,514.26,0,128736,Placements Under 18,321100              Social Community Care Supplies & Services - Children,R,2023,10
423,"Children, Schools and Family",REDACTED PERSONAL DATA,1103407,26-Jan-24,514.26,0,128736,Placements Under 18,321100              Social Community Care Supplies & Services - Children,R,2023,10
424,Community and Housing,BUPA CARE HOMES,1099636,17-Jan-24,6096.36,0,130491,Phys/Sens Placements - East,321017              Nursing & Residential Care Homes,A,2023,10
425,Community and Housing,BUPA CARE HOMES,1099751,17-Jan-24,6510.6,0,130491,Phys/Sens Placements - East,321017              Nursing & Residential Care Homes,A,2023,10
426,"Children, Schools and Family",OAKTREE PRE-SCHOOL NURSERY,P3 24 UPFRONTPAY,04-Jan-24,17222.4,0,131726,EARLY YEARS NURSERY GRANTS,170000              Education,A,2023,10
427,Corporate Services,DOMINO 4 LIMITED,D.44325,10-Jan-24,780,130,132991,Marketing & Communication,190000              Facilities & Management Services                                                          Confirmed,A,2023,10
428,Corporate Services,DOMINO 4 LIMITED,D.44303,05-Jan-24,624,104,132991,Marketing & Communication,190000              Facilities & Management Services                                                          Confirmed,A,2023,10
429,Environment and Regeneration,DOMINO 4 LIMITED,D.44299,09-Jan-24,702,117,132991,Crime and Strategy Team,190000              Facilities & Management Services                                                          Confirmed,A,2023,10
430,Corporate Services,DOMINO 4 LIMITED,D.44294,24-Jan-24,5772,962,132991,Chief Executive,190000              Facilities & Management Services                                                          Confirmed,A,2023,10
431,Community and Housing,VOYAGE CARE LTD,1099716,17-Jan-24,7224.88,0,133700,Learning Disabilities Placemnt,321017              Nursing & Residential Care Homes,A,2023,10
432,Community and Housing,VOYAGE CARE LTD,1099824,17-Jan-24,10048,0,133700,Learning Disabilities Placemnt,321017              Nursing & Residential Care Homes,A,2023,10
433,Community and Housing,VOYAGE CARE LTD,1099901,17-Jan-24,8462.36,0,133700,Learning Disabilities Placemnt,321017              Nursing & Residential Care Homes,A,2023,10
434,Community and Housing,HOMECARE SERVICES LTD,INV-0359,17-Jan-24,5474,0,134594,Phys/Sens Placements - East,321100              Social Community Care Supplies & Services - Children,A,2023,10
435,Community and Housing,Sunrise Rehabilitation Centre,1099624,17-Jan-24,5213.88,0,135093,Learning Disabilities Placemnt,321017              Nursing & Residential Care Homes,A,2023,10
436,Community and Housing,Sunrise Rehabilitation Centre,1099657,17-Jan-24,5213.88,0,135093,Learning Disabilities Placemnt,321017              Nursing & Residential Care Homes,A,2023,10
437,Community and Housing,Sunrise Rehabilitation Centre,1099820,17-Jan-24,5161.52,0,135093,Learning Disabilities Placemnt,321017              Nursing & Residential Care Homes,A,2023,10
438,Community and Housing,Sunrise Rehabilitation Centre,1099947,17-Jan-24,5043.72,0,135093,Learning Disabilities Placemnt,321017              Nursing & Residential Care Homes,A,2023,10
439,Community and Housing,Sunrise Rehabilitation Centre,1099948,17-Jan-24,5174.6,0,135093,Learning Disabilities Placemnt,321017              Nursing & Residential Care Homes,A,2023,10
440,Community and Housing,Sunrise Rehabilitation Centre,1099970,17-Jan-24,5213.88,0,135093,Learning Disabilities Placemnt,321017              Nursing & Residential Care Homes,A,2023,10
441,Community and Housing,Sunrise Rehabilitation Centre,1100026,17-Jan-24,6102,0,135093,Learning Disabilities Placemnt,321017              Nursing & Residential Care Homes,A,2023,10
442,Community and Housing,Sunrise Rehabilitation Centre,1100044,17-Jan-24,4363.08,0,135093,Learning Disabilities Placemnt,321017              Nursing & Residential Care Homes,A,2023,10
443,"Children, Schools and Family",SW LONDON ST GEORGES NHS TRUST,P0070571,09-Jan-24,22952.59,0,135195,Head - Family Support & Safegd,310000              Healthcare,A,2023,10
444,Community and Housing,SW LONDON ST GEORGES NHS TRUST,P0071466,25-Jan-24,5260.85,0,135195,Learning Disabilities Placemnt,310000              Healthcare,A,2023,10
445,Corporate Services,GD SYSTEMS,23/8061,10-Jan-24,534,89,135518,Civic Centre,"390000              Works - Construction, Repair & Maintenance",A,2023,10
446,Community and Housing,REDACTED PERSONAL DATA,1091741,02-Jan-24,1612.64,0,135784,Phys/Sens Placements - East,DIRECT PAYMENTS,R,2023,10
447,Community and Housing,REDACTED PERSONAL DATA,1104088,29-Jan-24,1612.64,0,135784,Phys/Sens Placements - East,DIRECT PAYMENTS,R,2023,10
448,"Children, Schools and Family",Bright Horizons - Raynes Park,P3 24 UPFRONTPAY,04-Jan-24,15292.8,0,136040,EARLY YEARS NURSERY GRANTS,170000              Education,A,2023,10
449,Community and Housing,REDACTED PERSONAL DATA,1091570,02-Jan-24,1320.76,0,139365,Phys/Sens Placements - East,DIRECT PAYMENTS,R,2023,10
450,Community and Housing,REDACTED PERSONAL DATA,1103910,29-Jan-24,1320.76,0,139365,Phys/Sens Placements - East,DIRECT PAYMENTS,R,2023,10
451,"Children, Schools and Family",Building Blocks Childcare,P3 24 UPFRONTPAY,04-Jan-24,30530.88,0,139778,EARLY YEARS NURSERY GRANTS,170000              Education,A,2023,10
452,Community and Housing,REDACTED PERSONAL DATA,1091936,02-Jan-24,625.6,0,140662,Phys/Sens Placements - East,DIRECT PAYMENTS,R,2023,10
453,Community and Housing,REDACTED PERSONAL DATA,1104294,29-Jan-24,625.6,0,140662,Phys/Sens Placements - East,DIRECT PAYMENTS,R,2023,10
454,Community and Housing,REDACTED PERSONAL DATA,1091591,02-Jan-24,6224.36,0,140759,Phys/Sens Placements - East,DIRECT PAYMENTS,R,2023,10
455,Community and Housing,REDACTED PERSONAL DATA,1103931,29-Jan-24,6224.36,0,140759,Phys/Sens Placements - East,DIRECT PAYMENTS,R,2023,10
456,Community and Housing,SURREY AND BORDERS PARTNERSHIP,1099780,17-Jan-24,11448.72,0,140911,Learning Disabilities Placemnt,321017              Nursing & Residential Care Homes,A,2023,10
457,Corporate Services,REDACTED PERSONAL DATA,INVWT185,25-Jan-24,900,150,141765,SLLP - Disbursements,280000              Legal Services                                                                            Confirmed,R,2023,10
458,Corporate Services,REDACTED PERSONAL DATA,INVWT183,25-Jan-24,900,150,141765,SLLP - Disbursements,280000              Legal Services                                                                            Confirmed,R,2023,10
459,Corporate Services,PROACTIS GROUP LTD,PGLTSI5218006,19-Jan-24,14100,2350,141770,Business Systems,270000              Information Communication Technology,A,2023,10
460,Corporate Services,PROACTIS GROUP LTD,REMIT-RECEIPT,19-Jan-24,1020,0,141770,Business Systems,270000              Information Communication Technology,A,2023,10
461,Community and Housing,GARWOOD FOUNDATION,1099664,17-Jan-24,3400,0,142358,Phys/Sens Placements - East,321017              Nursing & Residential Care Homes,A,2023,10
462,Community and Housing,EVERGREEN PARTNERSHIP,1099712,17-Jan-24,10497.36,0,142455,Learning Disabilities Placemnt,321017              Nursing & Residential Care Homes,A,2023,10
463,Community and Housing,EVERGREEN PARTNERSHIP,1099728,17-Jan-24,7179.52,0,142455,Learning Disabilities Placemnt,321017              Nursing & Residential Care Homes,A,2023,10
464,Community and Housing,REDACTED PERSONAL DATA,1093970,08-Jan-24,1141.52,0,143597,MH Housing Support Placements,321000              Social Community Care Supplies & Services - Adult,R,2023,10
465,Community and Housing,REDACTED PERSONAL DATA,1093973,08-Jan-24,1426.8,0,143597,LD Housing Support Placements,321000              Social Community Care Supplies & Services - Adult,R,2023,10
466,Community and Housing,REDACTED PERSONAL DATA,1094000,08-Jan-24,1586.6,0,143597,Learning Disabilities Placemnt,321000              Social Community Care Supplies & Services - Adult,R,2023,10
467,Community and Housing,REDACTED PERSONAL DATA,1091874,02-Jan-24,4047.6,0,144689,Learning Disabilities Placemnt,DIRECT PAYMENTS,R,2023,10
468,Community and Housing,REDACTED PERSONAL DATA,1104227,29-Jan-24,4047.6,0,144689,Learning Disabilities Placemnt,DIRECT PAYMENTS,R,2023,10
469,"Children, Schools and Family",DF20 LTD,4528600,17-Jan-24,5307.6,884.6,144747,School Meals,110000              Catering,A,2023,10
470,Community and Housing,CRAEGMOOR FACILITIES - WINDSOR,1099764,17-Jan-24,7415.84,0,145152,Learning Disabilities Placemnt,321017              Nursing & Residential Care Homes,A,2023,10
471,Community and Housing,REDACTED PERSONAL DATA,1091669,02-Jan-24,5474,0,145882,Learning Disabilities Placemnt,DIRECT PAYMENTS,R,2023,10
472,Community and Housing,REDACTED PERSONAL DATA,1104014,29-Jan-24,5474,0,145882,Learning Disabilities Placemnt,DIRECT PAYMENTS,R,2023,10
473,Corporate Services,THE CONSULTATION INSTITUTE,67829,11-Jan-24,900,150,146904,COMMUNITY ENGAGAMENT,260000              Human Resources,A,2023,10
474,"Children, Schools and Family",ACORN NURSERY,P3 24 UPFRONTPAY,04-Jan-24,4623.84,0,147406,EARLY YEARS NURSERY GRANTS,200000              Financial Services,A,2023,10
475,"Children, Schools and Family",THE BEACON SCHOOL,BESI254,23-Jan-24,13617.59,0,148289,Non-Delegated Statements,170000              Education,A,2023,10
476,Community and Housing,GENERATE,11775,22-Jan-24,2513.2,0,148332,Learning Disabilities Placemnt,321000              Social Community Care Supplies & Services - Adult,A,2023,10
477,Community and Housing,GENERATE,11776,25-Jan-24,659.2,0,148332,Learning Disabilities Placemnt,321000              Social Community Care Supplies & Services - Adult,A,2023,10
478,Community and Housing,CHICHESTER HALL CARE HOME LTD,1099986,17-Jan-24,2637.2,0,148358,Older People Placements - East,321017              Nursing & Residential Care Homes,A,2023,10
479,"Children, Schools and Family",Dicky Birds Pre Sch. Nurseries Queens Rd,P3 24 UPFRONTPAY,04-Jan-24,16853.94,0,148567,EARLY YEARS NURSERY GRANTS,200000              Financial Services,A,2023,10
480,"Children, Schools and Family",MARIA MONTESSORI CHILDREN'S,P3 24 UPFRONTPAY,04-Jan-24,18090.34,0,148568,EARLY YEARS NURSERY GRANTS,200000              Financial Services,A,2023,10
481,"Children, Schools and Family",REDACTED PERSONAL DATA,P3 24 UPFRONTPAY,04-Jan-24,3517.92,0,149524,EARLY YEARS NURSERY GRANTS,321100              Social Community Care Supplies & Services - Children                                      Confirmed,R,2023,10
482,"Children, Schools and Family",DONHEAD SCHOOL,P3 24 UPFRONTPAY,04-Jan-24,8411.04,0,149760,EARLY YEARS NURSERY GRANTS,170000              Education,A,2023,10
483,Unassigned,Canterbury Campus,SCHOOLS 2324/10,08-Jan-24,427118.5,0,150054,Schools,170000              Education,A,2023,10
484,"Children, Schools and Family",Canterbury Campus,3223,29-Jan-24,4000,0,150054,PupilPremium- Virtual School,170000              Education,A,2023,10
485,Unassigned,BARNETT WADDINGHAM LLP,T24/2889,18-Jan-24,5592,932,150927,Governance & Oversight Cost,PENSIONS,A,2023,10
486,Community and Housing,REDACTED PERSONAL DATA,1091615,02-Jan-24,3125.04,0,151002,Older People Placements - East,DIRECT PAYMENTS,R,2023,10
487,Community and Housing,REDACTED PERSONAL DATA,1103957,29-Jan-24,3125.04,0,151002,Older People Placements - East,DIRECT PAYMENTS,R,2023,10
488,Community and Housing,AIMS CARE PARTNERSHIP,1099715,17-Jan-24,10560,0,151592,Learning Disabilities Placemnt,321017              Nursing & Residential Care Homes,A,2023,10
489,Community and Housing,AIMS CARE PARTNERSHIP,1099753,17-Jan-24,3114.72,0,151592,Learning Disabilities Placemnt,321017              Nursing & Residential Care Homes,A,2023,10
490,Community and Housing,HOLISTIC COMMUNITY CARE - FC,MERTON P10/4,02-Jan-24,1053.72,0,151996,Older People Placements - East,321000              Social Community Care Supplies & Services - Adult,A,2023,10
491,Community and Housing,HOLISTIC COMMUNITY CARE - FC,MERTON P10/7,02-Jan-24,826.61,0,151996,Phys/Sens Placements - East,321000              Social Community Care Supplies & Services - Adult,A,2023,10
492,Community and Housing,HOLISTIC COMMUNITY CARE - FC,MERTON P10/2,02-Jan-24,597.67,0,151996,Older People Placements - East,321000              Social Community Care Supplies & Services - Adult,A,2023,10
493,Community and Housing,HOLISTIC COMMUNITY CARE - FC,MERTON P10/11,02-Jan-24,1508.37,0,151996,Older People Placements - East,321000              Social Community Care Supplies & Services - Adult,A,2023,10
494,Community and Housing,HOLISTIC COMMUNITY CARE - FC,MERTON P10/19,02-Jan-24,14024.03,0,151996,Older People Placements - East,321000              Social Community Care Supplies & Services - Adult,A,2023,10
495,Community and Housing,HOLISTIC COMMUNITY CARE - FC,MERTON P10/20,02-Jan-24,1105.77,0,151996,Older People Placements - East,321000              Social Community Care Supplies & Services - Adult,A,2023,10
496,Community and Housing,HOLISTIC COMMUNITY CARE - FC,MERTON P10/22,02-Jan-24,1567.68,0,151996,Older People Placements - East,321000              Social Community Care Supplies & Services - Adult,A,2023,10
497,Community and Housing,HOLISTIC COMMUNITY CARE - FC,MERTON P10/9,02-Jan-24,802.87,0,151996,Older People Placements - East,321000              Social Community Care Supplies & Services - Adult,A,2023,10
498,Community and Housing,HOLISTIC COMMUNITY CARE - FC,MERTON P10/21,02-Jan-24,934.22,0,151996,Older People Placements - East,321000              Social Community Care Supplies & Services - Adult,A,2023,10
499,Community and Housing,HOLISTIC COMMUNITY CARE - FC,MERTON P10/10,02-Jan-24,819.55,0,151996,Older People Placements - East,321000              Social Community Care Supplies & Services - Adult,A,2023,10
500,Community and Housing,HOLISTIC COMMUNITY CARE - FC,MERTON P10/1,02-Jan-24,3345.38,0,151996,Older People Placements - East,321000              Social Community Care Supplies & Services - Adult,A,2023,10
501,Community and Housing,HOLISTIC COMMUNITY CARE - FC,MERTON P10/15,02-Jan-24,1057.16,0,151996,Older People Placements - East,321000              Social Community Care Supplies & Services - Adult,A,2023,10
502,Community and Housing,HOLISTIC COMMUNITY CARE - FC,MERTON P10/3,02-Jan-24,2365,0,151996,Older People Placements - East,321000              Social Community Care Supplies & Services - Adult,A,2023,10
503,Community and Housing,HOLISTIC COMMUNITY CARE - FC,MERTON P10/12,02-Jan-24,937.74,0,151996,Older People Placements - East,321000              Social Community Care Supplies & Services - Adult,A,2023,10
504,Community and Housing,HOLISTIC COMMUNITY CARE - FC,MERTON P10/13,02-Jan-24,1528.23,0,151996,Older People Placements - East,321000              Social Community Care Supplies & Services - Adult,A,2023,10
505,Community and Housing,HOLISTIC COMMUNITY CARE - FC,MERTON P10/6,02-Jan-24,1900.5,0,151996,Older People Placements - East,321000              Social Community Care Supplies & Services - Adult,A,2023,10
506,Community and Housing,REDACTED PERSONAL DATA,1091921,02-Jan-24,9153.2,0,152015,Older People Placements - East,321000              Social Community Care Supplies & Services - Adult,R,2023,10
507,Community and Housing,REDACTED PERSONAL DATA,1104278,29-Jan-24,9153.2,0,152015,Older People Placements - East,321000              Social Community Care Supplies & Services - Adult,R,2023,10
508,Unassigned,WANDSWORTH CORPORATION,2100927309,25-Jan-24,120870,20145,152180,Governance & Oversight Cost,OLA,A,2023,10
509,Community and Housing,REDACTED PERSONAL DATA,1091815,02-Jan-24,1173,0,152709,Older People Placements - East,DIRECT PAYMENTS,R,2023,10
510,Community and Housing,REDACTED PERSONAL DATA,1104167,29-Jan-24,1173,0,152709,Older People Placements - East,DIRECT PAYMENTS,R,2023,10
511,Community and Housing,REDACTED PERSONAL DATA,1091674,02-Jan-24,1964.48,0,152990,Learning Disabilities Placemnt,DIRECT PAYMENTS,R,2023,10
512,Community and Housing,REDACTED PERSONAL DATA,1104020,29-Jan-24,1964.48,0,152990,Learning Disabilities Placemnt,DIRECT PAYMENTS,R,2023,10
513,Community and Housing,LYNTON HALL NURSING HOME,1099606,22-Jan-24,3365.72,0,153795,Older People Placements - East,321017              Nursing & Residential Care Homes,A,2023,10
514,Community and Housing,LYNTON HALL NURSING HOME,1099613,22-Jan-24,3242.52,0,153795,Older People Placements - East,321017              Nursing & Residential Care Homes,A,2023,10
515,Community and Housing,LYNTON HALL NURSING HOME,1099787,22-Jan-24,3525.8,0,153795,Older People Placements - East,321017              Nursing & Residential Care Homes,A,2023,10
516,Unassigned,CFBT SCHOOLS TRUST,SCHOOLS 2324/10,08-Jan-24,11520,0,155275,Schools,170000              Education,A,2023,10
517,Community and Housing,REDACTED PERSONAL DATA,1091811,02-Jan-24,586.52,0,156180,Mental Health Placements,DIRECT PAYMENTS,R,2023,10
518,Community and Housing,REDACTED PERSONAL DATA,1104163,29-Jan-24,586.52,0,156180,Mental Health Placements,DIRECT PAYMENTS,R,2023,10
519,Community and Housing,REDACTED PERSONAL DATA,1091738,02-Jan-24,1104.44,0,159542,Older People Placements - East,DIRECT PAYMENTS,R,2023,10
520,Community and Housing,REDACTED PERSONAL DATA,1104085,29-Jan-24,1104.44,0,159542,Older People Placements - East,DIRECT PAYMENTS,R,2023,10
521,Community and Housing,REDACTED PERSONAL DATA,1091882,02-Jan-24,3950.24,0,160044,Phys/Sens Placements - East,DIRECT PAYMENTS,R,2023,10
522,Community and Housing,REDACTED PERSONAL DATA,1104235,29-Jan-24,3950.24,0,160044,Phys/Sens Placements - East,DIRECT PAYMENTS,R,2023,10
523,"Children, Schools and Family",REDACTED PERSONAL DATA,1104733,29-Jan-24,14303.07,0,160147,Child Disabilities - Placement,CSF-DIRECT PAYMENTS,R,2023,10
524,Community and Housing,REDACTED PERSONAL DATA,1091698,02-Jan-24,1422.48,0,160244,Phys/Sens Placements - East,DIRECT PAYMENTS,R,2023,10
525,Community and Housing,REDACTED PERSONAL DATA,1104045,29-Jan-24,1422.48,0,160244,Phys/Sens Placements - East,DIRECT PAYMENTS,R,2023,10
526,Community and Housing,REDACTED PERSONAL DATA,1091645,02-Jan-24,742.92,0,160273,Learning Disabilities Placemnt,DIRECT PAYMENTS,R,2023,10
527,Community and Housing,REDACTED PERSONAL DATA,1103990,29-Jan-24,742.92,0,160273,Learning Disabilities Placemnt,DIRECT PAYMENTS,R,2023,10
528,Community and Housing,REDACTED PERSONAL DATA,1091757,02-Jan-24,1087.44,0,160279,Phys/Sens Placements - East,DIRECT PAYMENTS,R,2023,10
529,Community and Housing,REDACTED PERSONAL DATA,1104104,29-Jan-24,1087.44,0,160279,Phys/Sens Placements - East,DIRECT PAYMENTS,R,2023,10
530,"Children, Schools and Family",Fleet Educ.Services Ltd T/A Fleet Tutors,29289,12-Jan-24,3157.2,526.2,160300,Non-Delegated Statements,260000              Human Resources,A,2023,10
531,"Children, Schools and Family",THE NATIONAL FOSTERING AGENCY,483957,22-Jan-24,6009.57,0,160464,Placements Under 18,321100              Social Community Care Supplies & Services - Children,A,2023,10
532,"Children, Schools and Family",THE NATIONAL FOSTERING AGENCY,483956,22-Jan-24,5703.38,0,160464,Placements Under 18,321100              Social Community Care Supplies & Services - Children,A,2023,10
533,"Children, Schools and Family",THE NATIONAL FOSTERING AGENCY,483955,22-Jan-24,5703.38,0,160464,Placements Under 18,321100              Social Community Care Supplies & Services - Children,A,2023,10
534,"Children, Schools and Family",THE NATIONAL FOSTERING AGENCY,483954,22-Jan-24,4129.2,0,160464,UASC LAC Under 18,321100              Social Community Care Supplies & Services - Children,A,2023,10
535,Community and Housing,THE AVENUES TRUST GROUP,1004330,26-Jan-24,10268.2,0,160730,Learning Disabilities Placemnt,321017              Nursing & Residential Care Homes,A,2023,10
536,"Children, Schools and Family",THE AWARD SCHEME LTD,PSH83977,31-Jan-24,6375,0,161088, Youth Service,290000              Arts & Leisure Services,A,2023,10
537,"Children, Schools and Family",REDACTED PERSONAL DATA,1093596,05-Jan-24,548.09,0,161094,UASC LAC Under 18,321100              Social Community Care Supplies & Services - Children,R,2023,10
538,"Children, Schools and Family",REDACTED PERSONAL DATA,1097555,12-Jan-24,548.09,0,161094,UASC LAC Under 18,321100              Social Community Care Supplies & Services - Children,R,2023,10
539,"Children, Schools and Family",REDACTED PERSONAL DATA,1100739,19-Jan-24,548.09,0,161094,UASC LAC Under 18,321100              Social Community Care Supplies & Services - Children,R,2023,10
540,"Children, Schools and Family",REDACTED PERSONAL DATA,1103396,26-Jan-24,548.09,0,161094,UASC LAC Under 18,321100              Social Community Care Supplies & Services - Children,R,2023,10
541,Environment and Regeneration,KAT TRANSPORT LTD,96,05-Jan-24,2700,450,162381,Passenger Transport,360000              Passenger Transport,A,2023,10
542,Environment and Regeneration,KAT TRANSPORT LTD,97,15-Jan-24,3240,540,162381,Passenger Transport,360000              Passenger Transport,A,2023,10
543,"Children, Schools and Family",KENT COUNTY COUNCIL,900184118,05-Jan-24,15256.47,0,162396,Non-Delegated Statements,OLA,A,2023,10
544,"Children, Schools and Family",KENT COUNTY COUNCIL,900184124,05-Jan-24,8417.82,0,162396,Non-Delegated Statements,OLA,A,2023,10
545,"Children, Schools and Family",KENT COUNTY COUNCIL,900184117,05-Jan-24,19070.59,0,162396,Non-Delegated Statements,OLA,A,2023,10
546,"Children, Schools and Family",ELKLAN TRAINING LTD,INV-16113,22-Jan-24,975,0,162625,Language & Learning Service,170000              Education,A,2023,10
547,Corporate Services,WALLINGTON CARS AND COURIERS LTD,304807,30-Jan-24,1923.01,320.5,162637,Post services,300000              Mail Services,A,2023,10
548,Corporate Services,ST MARKS CHURCH OF ENG ACADEMY,HAFFEB-UPFRONT,29-Jan-24,1000,0,162998,Cost of Living Fund,190000              Facilities & Management Services,A,2023,10
549,"Children, Schools and Family",FULHAM FOOTBALL CLUB FOUNDAT.,HAFSUMFINAL23,29-Jan-24,1612.5,0,163328,Holiday Act Food Prog grntfnd,200000              Financial Services,A,2023,10
550,Community and Housing,REDACTED PERSONAL DATA,1091610,02-Jan-24,1737.28,0,163392,Learning Disabilities Placemnt,DIRECT PAYMENTS,R,2023,10
551,Community and Housing,REDACTED PERSONAL DATA,1103951,29-Jan-24,1737.28,0,163392,Learning Disabilities Placemnt,DIRECT PAYMENTS,R,2023,10
552,Environment and Regeneration,D N H PROPERTY MAINTENANCE,2389DNH,23-Jan-24,930,155,163395,EDS2,"390000              Works - Construction, Repair & Maintenance",C,2023,10
553,Environment and Regeneration,D N H PROPERTY MAINTENANCE,2402DNH,23-Jan-24,3186,531,163395,EDS2,"390000              Works - Construction, Repair & Maintenance",C,2023,10
554,Capital,D N H PROPERTY MAINTENANCE,2408DNH,23-Jan-24,7165.01,1194.17,163395,Mitcham Area Regeneration,"390000              Works - Construction, Repair & Maintenance",C,2023,10
555,Capital,D N H PROPERTY MAINTENANCE,2435DNH,23-Jan-24,3600,600,163395,Mitcham Area Regeneration,"390000              Works - Construction, Repair & Maintenance",C,2023,10
556,Community and Housing,Tunstall Healthcare (UK) Limited,CD970038320,09-Jan-24,1896,316,163420,Mascot,190000              Facilities & Management Services,A,2023,10
557,"Children, Schools and Family",REDACTED PERSONAL DATA,1093571,05-Jan-24,548.09,0,163471,UASC LAC Under 18,200000              Financial Services,R,2023,10
558,"Children, Schools and Family",REDACTED PERSONAL DATA,1093652,05-Jan-24,785.52,0,163471,Placements Under 18,200000              Financial Services,R,2023,10
559,"Children, Schools and Family",REDACTED PERSONAL DATA,1093661,05-Jan-24,692.46,0,163471,Placements Under 18,200000              Financial Services,R,2023,10
560,"Children, Schools and Family",REDACTED PERSONAL DATA,1097531,12-Jan-24,548.09,0,163471,UASC LAC Under 18,200000              Financial Services,R,2023,10
561,"Children, Schools and Family",REDACTED PERSONAL DATA,1097612,12-Jan-24,785.52,0,163471,Placements Under 18,200000              Financial Services,R,2023,10
562,"Children, Schools and Family",REDACTED PERSONAL DATA,1097621,12-Jan-24,692.46,0,163471,Placements Under 18,200000              Financial Services,R,2023,10
563,"Children, Schools and Family",REDACTED PERSONAL DATA,1100714,19-Jan-24,548.09,0,163471,UASC LAC Under 18,200000              Financial Services,R,2023,10
564,"Children, Schools and Family",REDACTED PERSONAL DATA,1100795,19-Jan-24,785.52,0,163471,Placements Under 18,200000              Financial Services,R,2023,10
565,"Children, Schools and Family",REDACTED PERSONAL DATA,1100804,19-Jan-24,692.46,0,163471,Placements Under 18,200000              Financial Services,R,2023,10
566,"Children, Schools and Family",REDACTED PERSONAL DATA,1103371,26-Jan-24,548.09,0,163471,UASC LAC Under 18,200000              Financial Services,R,2023,10
567,"Children, Schools and Family",REDACTED PERSONAL DATA,1103453,26-Jan-24,785.52,0,163471,Placements Under 18,200000              Financial Services,R,2023,10
568,"Children, Schools and Family",REDACTED PERSONAL DATA,1103462,26-Jan-24,692.46,0,163471,Placements Under 18,200000              Financial Services,R,2023,10
569,"Children, Schools and Family",LA PETITE FLEUR PRE-SCHOOL,P3 24 UPFRONTPAY,04-Jan-24,13034.88,0,163698,EARLY YEARS NURSERY GRANTS,200000              Financial Services,A,2023,10
570,Corporate Services,AEA (BOOKINGS),35839,31-Jan-24,855,142.5,163833,Electoral Registration,260000              Human Resources,A,2023,10
571,Community and Housing,Active Prospects,1099639,17-Jan-24,6103.76,0,163859,Learning Disabilities Placemnt,321017              Nursing & Residential Care Homes,A,2023,10
572,Community and Housing,REDACTED PERSONAL DATA,1091641,02-Jan-24,1281.72,0,163971,Older People Placements - East,DIRECT PAYMENTS,R,2023,10
573,Community and Housing,REDACTED PERSONAL DATA,1103985,29-Jan-24,1281.72,0,163971,Older People Placements - East,DIRECT PAYMENTS,R,2023,10
574,"Children, Schools and Family",BUMBLE BEES'S DAY NURSERY-COCC,P3 24 UPFRONTPAY,04-Jan-24,19352.16,0,164240,EARLY YEARS NURSERY GRANTS,200000              Financial Services,A,2023,10
575,Corporate Services,ZURICH INSURANCE COMPANY,407000124,15-Jan-24,7273.2,1212.2,164284,Insurance Premiums & Funding,200000              Financial Services,A,2023,10
576,Corporate Services,LONDON COUNCILS,4354229,09-Jan-24,38230,0,164343,VOLUNTARY SECTOR COORDINATION,OLA,A,2023,10
577,Corporate Services,AIRWAVE SOLUTIONS LTD,9E+11,16-Jan-24,678.07,113.01,164373,Safety Services,270000              Information Communication Technology,A,2023,10
578,Community and Housing,ENTERPRISE CARE SUPPORT LTD - FC,ECS P10/3,10-Jan-24,1071.9,0,164431,Older People Placements - East,321000              Social Community Care Supplies & Services - Adult,A,2023,10
579,Community and Housing,ENTERPRISE CARE SUPPORT LTD - FC,ECS P10/22,10-Jan-24,1301.43,0,164431,Older People Placements - East,321000              Social Community Care Supplies & Services - Adult,A,2023,10
580,Community and Housing,ENTERPRISE CARE SUPPORT LTD - FC,ECS P10/39,10-Jan-24,2127.14,0,164431,Older People Placements - East,321000              Social Community Care Supplies & Services - Adult,A,2023,10
581,Community and Housing,ENTERPRISE CARE SUPPORT LTD - FC,ECS P10/29,10-Jan-24,645.02,0,164431,Older People Placements - East,321000              Social Community Care Supplies & Services - Adult,A,2023,10
582,Community and Housing,ENTERPRISE CARE SUPPORT LTD - FC,ECS P10/7,10-Jan-24,1004.21,0,164431,Older People Placements - East,321000              Social Community Care Supplies & Services - Adult,A,2023,10
583,Community and Housing,ENTERPRISE CARE SUPPORT LTD - FC,ECS P10/18,10-Jan-24,1653.15,0,164431,Older People Placements - East,321000              Social Community Care Supplies & Services - Adult,A,2023,10
584,Community and Housing,ENTERPRISE CARE SUPPORT LTD - FC,ECS P10/14,10-Jan-24,661.74,0,164431,Older People Placements - East,321000              Social Community Care Supplies & Services - Adult,A,2023,10
585,Community and Housing,ENTERPRISE CARE SUPPORT LTD - FC,ECS P10/4,10-Jan-24,838.21,0,164431,Older People Placements - East,321000              Social Community Care Supplies & Services - Adult,A,2023,10
586,Community and Housing,ENTERPRISE CARE SUPPORT LTD - FC,ECS P10/25,10-Jan-24,1270.86,0,164431,Phys/Sens Placements - East,321000              Social Community Care Supplies & Services - Adult,A,2023,10
587,Community and Housing,ENTERPRISE CARE SUPPORT LTD - FC,ECS P10/16,10-Jan-24,689.29,0,164431,Older People Placements - East,321000              Social Community Care Supplies & Services - Adult,A,2023,10
588,Community and Housing,ENTERPRISE CARE SUPPORT LTD - FC,ECS P10/32,10-Jan-24,1152.81,0,164431,Phys/Sens Placements - East,321000              Social Community Care Supplies & Services - Adult,A,2023,10
589,Community and Housing,ENTERPRISE CARE SUPPORT LTD - FC,ECS P10/33,10-Jan-24,675.35,0,164431,Phys/Sens Placements - East,321000              Social Community Care Supplies & Services - Adult,A,2023,10
590,Community and Housing,ENTERPRISE CARE SUPPORT LTD - FC,ECS P10/8,10-Jan-24,2993.31,0,164431,Older People Placements - East,321000              Social Community Care Supplies & Services - Adult,A,2023,10
591,Community and Housing,ENTERPRISE CARE SUPPORT LTD - FC,ECS P10/26,10-Jan-24,616.84,0,164431,Older People Placements - East,321000              Social Community Care Supplies & Services - Adult,A,2023,10
592,Community and Housing,ENTERPRISE CARE SUPPORT LTD - FC,ECS P10/19,10-Jan-24,1161.34,0,164431,Learning Disabilities Placemnt,321000              Social Community Care Supplies & Services - Adult,A,2023,10
593,Community and Housing,ENTERPRISE CARE SUPPORT LTD - FC,ECS P10/11,10-Jan-24,634.7,0,164431,Older People Placements - East,321000              Social Community Care Supplies & Services - Adult,A,2023,10
594,Community and Housing,ENTERPRISE CARE SUPPORT LTD - FC,ECS P10/10,10-Jan-24,717.37,0,164431,Older People Placements - East,321000              Social Community Care Supplies & Services - Adult,A,2023,10
595,Community and Housing,ENTERPRISE CARE SUPPORT LTD - FC,ECS P10/13,10-Jan-24,862.51,0,164431,Older People Placements - East,321000              Social Community Care Supplies & Services - Adult,A,2023,10
596,Community and Housing,ENTERPRISE CARE SUPPORT LTD - FC,ECS P10/12,10-Jan-24,4284.89,0,164431,Older People Placements - East,321000              Social Community Care Supplies & Services - Adult,A,2023,10
597,Community and Housing,ENTERPRISE CARE SUPPORT LTD - FC,ECS P10/30,10-Jan-24,849.12,0,164431,Older People Placements - East,321000              Social Community Care Supplies & Services - Adult,A,2023,10
598,Community and Housing,ENTERPRISE CARE SUPPORT LTD - FC,ECS P10/36,10-Jan-24,504.26,0,164431,Older People Placements - East,321000              Social Community Care Supplies & Services - Adult,A,2023,10
599,Community and Housing,ENTERPRISE CARE SUPPORT LTD - FC,ECS P10/38,10-Jan-24,1162.93,0,164431,Older People Placements - East,321000              Social Community Care Supplies & Services - Adult,A,2023,10
600,Community and Housing,ENTERPRISE CARE SUPPORT LTD - FC,ECS P10/40,10-Jan-24,819.55,0,164431,Older People Placements - East,321000              Social Community Care Supplies & Services - Adult,A,2023,10
601,Community and Housing,ENTERPRISE CARE SUPPORT LTD - FC,ECS P10/23,10-Jan-24,2991.77,0,164431,Older People Placements - East,321000              Social Community Care Supplies & Services - Adult,A,2023,10
602,Community and Housing,ENTERPRISE CARE SUPPORT LTD - FC,ECS P10/20,10-Jan-24,2951.23,0,164431,Older People Placements - East,321000              Social Community Care Supplies & Services - Adult,A,2023,10
603,Community and Housing,ENTERPRISE CARE SUPPORT LTD - FC,ECS P10/1,10-Jan-24,3361.85,0,164431,Older People Placements - East,321000              Social Community Care Supplies & Services - Adult,A,2023,10
604,Community and Housing,ENTERPRISE CARE SUPPORT LTD - FC,ECS P10/34,10-Jan-24,1439.51,0,164431,Older People Placements - East,321000              Social Community Care Supplies & Services - Adult,A,2023,10
605,Community and Housing,ENTERPRISE CARE SUPPORT LTD - FC,ECS P10/9,10-Jan-24,1185.42,0,164431,Older People Placements - East,321000              Social Community Care Supplies & Services - Adult,A,2023,10
606,Community and Housing,BUPA CARE SERVICES BACS RECEIP,1099833,17-Jan-24,8580.84,0,164629,Older People Placements - East,321017              Nursing & Residential Care Homes,A,2023,10
607,Community and Housing,REDACTED PERSONAL DATA,1091845,02-Jan-24,2405.52,0,164694,Older People Placements - East,DIRECT PAYMENTS,R,2023,10
608,Community and Housing,REDACTED PERSONAL DATA,1104198,29-Jan-24,2405.52,0,164694,Older People Placements - East,DIRECT PAYMENTS,R,2023,10
609,Unassigned,MARSTON GROUP,63033,30-Jan-24,3778,0,165202,Corporate Accountancy,200000              Financial Services,A,2023,10
610,Community and Housing,REDACTED PERSONAL DATA,1091869,02-Jan-24,1634.32,0,165602,Learning Disabilities Placemnt,DIRECT PAYMENTS,R,2023,10
611,Community and Housing,REDACTED PERSONAL DATA,1097829,12-Jan-24,625.6,0,165602,Learning Disabilities Placemnt,DIRECT PAYMENTS,R,2023,10
612,Community and Housing,REDACTED PERSONAL DATA,1104222,29-Jan-24,2181.72,0,165602,Learning Disabilities Placemnt,DIRECT PAYMENTS,R,2023,10
613,Community and Housing,REDACTED PERSONAL DATA,1091822,02-Jan-24,7111.44,0,165619,Phys/Sens Placements - East,DIRECT PAYMENTS,R,2023,10
614,Community and Housing,REDACTED PERSONAL DATA,1104174,29-Jan-24,7111.44,0,165619,Phys/Sens Placements - East,DIRECT PAYMENTS,R,2023,10
615,Community and Housing,BUPA CARE HOMES (ANS) LTD,1100004,17-Jan-24,5124.04,0,165704,Older People Placements - East,321017              Nursing & Residential Care Homes,A,2023,10
616,Community and Housing,REDACTED PERSONAL DATA,1091912,02-Jan-24,1262.96,0,165786,Older People Placements - East,DIRECT PAYMENTS,R,2023,10
617,Community and Housing,REDACTED PERSONAL DATA,1104269,29-Jan-24,1262.96,0,165786,Older People Placements - East,DIRECT PAYMENTS,R,2023,10
618,Community and Housing,REDACTED PERSONAL DATA,1091926,02-Jan-24,700.8,0,166085,Learning Disabilities Placemnt,DIRECT PAYMENTS,R,2023,10
619,Community and Housing,REDACTED PERSONAL DATA,1104283,29-Jan-24,700.8,0,166085,Learning Disabilities Placemnt,DIRECT PAYMENTS,R,2023,10
620,Community and Housing,REDACTED PERSONAL DATA,1091599,02-Jan-24,1951.32,0,166158,Phys/Sens Placements - East,DIRECT PAYMENTS,R,2023,10
621,Community and Housing,REDACTED PERSONAL DATA,1103939,29-Jan-24,1951.32,0,166158,Phys/Sens Placements - East,DIRECT PAYMENTS,R,2023,10
622,Unassigned,COMPLETE ECOLOGY LTD,28/2324,30-Jan-24,2700,450,166208,Mitcham Common Conservators,240000              Horticultural                                                                             Confirmed,A,2023,10
623,"Children, Schools and Family",REDACTED PERSONAL DATA,P3 24 UPFRONTPAY,04-Jan-24,1702.08,0,166244,EARLY YEARS NURSERY GRANTS,200000              Financial Services,R,2023,10
624,Community and Housing,REDACTED PERSONAL DATA,1091628,02-Jan-24,1485.8,0,166547,Learning Disabilities Placemnt,DIRECT PAYMENTS,R,2023,10
625,Community and Housing,REDACTED PERSONAL DATA,1103971,29-Jan-24,1485.8,0,166547,Learning Disabilities Placemnt,DIRECT PAYMENTS,R,2023,10
626,"Children, Schools and Family",REDACTED PERSONAL DATA,1093577,05-Jan-24,1354.2,0,166742,Placements Under 18,321100              Social Community Care Supplies & Services - Children,R,2023,10
627,"Children, Schools and Family",REDACTED PERSONAL DATA,1097536,12-Jan-24,1354.2,0,166742,Placements Under 18,321100              Social Community Care Supplies & Services - Children,R,2023,10
628,"Children, Schools and Family",REDACTED PERSONAL DATA,1100719,19-Jan-24,1354.2,0,166742,Placements Under 18,321100              Social Community Care Supplies & Services - Children,R,2023,10
629,"Children, Schools and Family",REDACTED PERSONAL DATA,1103376,26-Jan-24,1354.2,0,166742,Placements Under 18,321100              Social Community Care Supplies & Services - Children,R,2023,10
630,Corporate Services,REDACTED PERSONAL DATA,00564-19649914-0,29-Jan-24,1457,0,166885,Client Finance Affairs,120000              Cemetery & Crematorium,R,2023,10
631,Corporate Services,REDACTED PERSONAL DATA,00564-19649884-0,26-Jan-24,1457,0,166885,Client Finance Affairs,120000              Cemetery & Crematorium,R,2023,10
632,Community and Housing,UNIQUE OFFICE SOLUTIONS LTD,113146,04-Jan-24,1118.21,186.37,166889,Long-term Support Team,210000              Furniture & Soft Furnishings,A,2023,10
633,Environment and Regeneration,UNIQUE OFFICE SOLUTIONS LTD,113211,04-Jan-24,834,139,166889,Business Support - RSP,210000              Furniture & Soft Furnishings,A,2023,10
634,"Children, Schools and Family",WIMBLEDON DAY NURSERY,P3 24 UPFRONTPAY,04-Jan-24,20645.28,0,167298,EARLY YEARS NURSERY GRANTS,170000              Education,A,2023,10
635,"Children, Schools and Family",RAINBOW FOSTERING SERVICES LTD,RF4161,30-Jan-24,3742.13,0,167793,Placements Under 18,321100              Social Community Care Supplies & Services - Children,A,2023,10
636,Corporate Services,REDACTED PERSONAL DATA,10245809,15-Jan-24,748.8,124.8,168092,SLLP - Disbursements,280000              Legal Services,R,2023,10
637,Capital,CBS Adaptation Design,1841,04-Jan-24,1995.46,0,168147,Disabled Facilities Grant,200000              Financial Services,A,2023,10
638,Capital,CBS Adaptation Design,1836,04-Jan-24,1214.32,0,168147,Disabled Facilities Grant,200000              Financial Services,A,2023,10
639,Capital,CBS Adaptation Design,1833,09-Jan-24,843.45,0,168147,Disabled Facilities Grant,200000              Financial Services,A,2023,10
640,Capital,CBS Adaptation Design,1840,11-Jan-24,840,0,168147,Disabled Facilities Grant,200000              Financial Services,A,2023,10
641,Capital,CBS Adaptation Design,1844,17-Jan-24,516.33,0,168147,Disabled Facilities Grant,200000              Financial Services,A,2023,10
642,Capital,CBS Adaptation Design,1842,17-Jan-24,2696.47,0,168147,Disabled Facilities Grant,200000              Financial Services,A,2023,10
643,Capital,CBS Adaptation Design,1845,22-Jan-24,2812.57,0,168147,Disabled Facilities Grant,200000              Financial Services,A,2023,10
644,Capital,CBS Adaptation Design,1839,22-Jan-24,706.54,0,168147,Disabled Facilities Grant,200000              Financial Services,A,2023,10
645,Capital,CBS Adaptation Design,1832,29-Jan-24,1005.93,0,168147,Disabled Facilities Grant,200000              Financial Services,A,2023,10
646,Capital,CBS Adaptation Design,1846,30-Jan-24,1096.06,0,168147,Disabled Facilities Grant,200000              Financial Services,A,2023,10
647,Corporate Services,LANGUAGE BANK,MTS-080124,30-Jan-24,996,166,168229,Translation Service,TRANSLATIONS,A,2023,10
648,Corporate Services,LANGUAGE BANK,MTS-100124,31-Jan-24,504,84,168229,Translation Service,TRANSLATIONS,A,2023,10
649,Community and Housing,REDACTED PERSONAL DATA,1091633,02-Jan-24,1063.8,0,168403,Learning Disabilities Placemnt,DIRECT PAYMENTS,R,2023,10
650,Community and Housing,REDACTED PERSONAL DATA,1092922,04-Jan-24,980.1,0,168403,Learning Disabilities Placemnt,DIRECT PAYMENTS,R,2023,10
651,Community and Housing,REDACTED PERSONAL DATA,1103977,29-Jan-24,753.8,0,168403,Learning Disabilities Placemnt,DIRECT PAYMENTS,R,2023,10
652,Community and Housing,Wimbledon Arts T/A Wimbledon BookFest,INV-4081,10-Jan-24,2500,0,168472,LIB- National Portfolio Org,200000              Financial Services,A,2023,10
653,Community and Housing,Wimbledon Arts T/A Wimbledon BookFest,INV-4082,10-Jan-24,2500,0,168472,LIB- National Portfolio Org,200000              Financial Services,A,2023,10
654,Community and Housing,Wimbledon Arts T/A Wimbledon BookFest,INV-4083,10-Jan-24,5000,0,168472,LIB- National Portfolio Org,200000              Financial Services,A,2023,10
655,"Children, Schools and Family",REDACTED PERSONAL DATA,P3 24 UPFRONTPAY,04-Jan-24,1702.08,0,168744,EARLY YEARS NURSERY GRANTS,200000              Financial Services,R,2023,10
656,"Children, Schools and Family",WILLOWS PRE SCHOOL,P3 24 UPFRONTPAY,04-Jan-24,9749.16,0,168752,EARLY YEARS NURSERY GRANTS,170000              Education,A,2023,10
657,Capital,HOME CONNECTIONS LETTINGS LTD,INV-1694,26-Jan-24,10140,1690,168983,Business Systems,270000              Information Communication Technology,A,2023,10
658,"Children, Schools and Family",PROMOLOGIC LTD,IDCI8046,31-Jan-24,506.64,84.44,169088,Adventure Playground Project,140000              Clothing                                                                                  Confirmed,A,2023,10
659,Community and Housing,HOUSING21,INV732202,22-Jan-24,894.52,0,169230,Older People Placements - East,321000              Social Community Care Supplies & Services - Adult,A,2023,10
660,Community and Housing,HOUSING21,INV732201,22-Jan-24,2450.92,0,169230,Older People Placements - East,321000              Social Community Care Supplies & Services - Adult,A,2023,10
661,Community and Housing,HOUSING21,INV732199,22-Jan-24,876.6,0,169230,Older People Placements - East,321000              Social Community Care Supplies & Services - Adult,A,2023,10
662,Community and Housing,HOUSING21,INV732200,22-Jan-24,500.92,0,169230,Older People Placements - East,321000              Social Community Care Supplies & Services - Adult,A,2023,10
663,Community and Housing,HOUSING21,INV732168,22-Jan-24,1019.72,0,169230,Older People Placements - East,321000              Social Community Care Supplies & Services - Adult,A,2023,10
664,Community and Housing,HOUSING21,INV732174,22-Jan-24,876.6,0,169230,Older People Placements - East,321000              Social Community Care Supplies & Services - Adult,A,2023,10
665,Community and Housing,HOUSING21,INV732175,22-Jan-24,500.92,0,169230,Older People Placements - East,321000              Social Community Care Supplies & Services - Adult,A,2023,10
666,Community and Housing,HOUSING21,INV732177,22-Jan-24,894.52,0,169230,Older People Placements - East,321000              Social Community Care Supplies & Services - Adult,A,2023,10
667,Community and Housing,HOUSING21,INV732203,22-Jan-24,751.4,0,169230,Older People Placements - East,321000              Social Community Care Supplies & Services - Adult,A,2023,10
668,Community and Housing,HOUSING21,INV732193,22-Jan-24,1019.72,0,169230,Older People Placements - East,321000              Social Community Care Supplies & Services - Adult,A,2023,10
669,Community and Housing,HOUSING21,INV732206,22-Jan-24,1216.52,0,169230,Older People Placements - East,321000              Social Community Care Supplies & Services - Adult,A,2023,10
670,Community and Housing,HOUSING21,INV732181,22-Jan-24,1216.52,0,169230,Older People Placements - East,321000              Social Community Care Supplies & Services - Adult,A,2023,10
671,Community and Housing,HOUSING21,INV732180,22-Jan-24,930.28,0,169230,Older People Placements - East,321000              Social Community Care Supplies & Services - Adult,A,2023,10
672,Community and Housing,HOUSING21,INV732178,22-Jan-24,1001.86,0,169230,Older People Placements - East,321000              Social Community Care Supplies & Services - Adult,A,2023,10
673,Community and Housing,HOUSING21,INV732176,22-Jan-24,2450.92,0,169230,Older People Placements - East,321000              Social Community Care Supplies & Services - Adult,A,2023,10
674,Community and Housing,HOUSING21,INV732284,30-Jan-24,4508.28,0,169230,Older People Placements - East,321000              Social Community Care Supplies & Services - Adult,A,2023,10
675,Community and Housing,HOUSING21,INV732281,30-Jan-24,4508.28,0,169230,Older People Placements - East,321000              Social Community Care Supplies & Services - Adult,A,2023,10
676,Community and Housing,HOUSING21,INV732282,30-Jan-24,4508.28,0,169230,Older People Placements - East,321000              Social Community Care Supplies & Services - Adult,A,2023,10
677,Community and Housing,HOUSING21,INV732283,30-Jan-24,4508.28,0,169230,Older People Placements - East,321000              Social Community Care Supplies & Services - Adult,A,2023,10
678,Community and Housing,FITZROY SUPPORT,1099672,17-Jan-24,6979.52,0,169400,Learning Disabilities Placemnt,321017              Nursing & Residential Care Homes,A,2023,10
679,"Children, Schools and Family",THE LUCY FAITHFULL FOUNDATION,12093,22-Jan-24,832,0,169410,Family Supp SafeGuard - Place,280000              Legal Services                                                                            Confirmed,A,2023,10
680,Capital,KC Services Group,44138,30-Jan-24,1440,240,169420,Works to other buildings,"390000              Works - Construction, Repair & Maintenance",A,2023,10
681,Corporate Services,KC Services Group,62432,22-Jan-24,672,112,169420,Leisure Buildings,"390000              Works - Construction, Repair & Maintenance",A,2023,10
682,Corporate Services,KC Services Group,62436,22-Jan-24,1248,208,169420,Leisure Buildings,"390000              Works - Construction, Repair & Maintenance",A,2023,10
683,"Children, Schools and Family",KC Services Group,62459,22-Jan-24,1740,290,169420, Children's Centres Support,"390000              Works - Construction, Repair & Maintenance",A,2023,10
684,Corporate Services,KC Services Group,62466,22-Jan-24,1692,282,169420,Buildings Maintenance,"390000              Works - Construction, Repair & Maintenance",A,2023,10
685,"Children, Schools and Family",REDACTED PERSONAL DATA,P3 24 UPFRONTPAY,04-Jan-24,964.8,0,169972,EARLY YEARS NURSERY GRANTS,321100              Social Community Care Supplies & Services - Children,R,2023,10
686,"Children, Schools and Family",JULIUS RUTHERFOORD AND CO LTD,INVS152891,22-Jan-24,1651.07,275.18,170092, PFI Unitary Charges,130000              Cleaning & Janitorial,A,2023,10
687,"Children, Schools and Family",JULIUS RUTHERFOORD AND CO LTD,INVS152886,22-Jan-24,1651.07,275.18,170092, PFI Unitary Charges,130000              Cleaning & Janitorial,A,2023,10
688,"Children, Schools and Family",JULIUS RUTHERFOORD AND CO LTD,INVS152889,22-Jan-24,1992.42,332.06,170092, PFI Unitary Charges,130000              Cleaning & Janitorial,A,2023,10
689,"Children, Schools and Family",JULIUS RUTHERFOORD AND CO LTD,INVS152885,22-Jan-24,26940.04,4490.02,170092, PFI Unitary Charges,130000              Cleaning & Janitorial,A,2023,10
690,"Children, Schools and Family",JULIUS RUTHERFOORD AND CO LTD,INVS152890,22-Jan-24,29555.45,4925.92,170092, PFI Unitary Charges,130000              Cleaning & Janitorial,A,2023,10
691,"Children, Schools and Family",JULIUS RUTHERFOORD AND CO LTD,INVS152888,22-Jan-24,25304.67,4217.45,170092, PFI Unitary Charges,130000              Cleaning & Janitorial,A,2023,10
692,"Children, Schools and Family",JULIUS RUTHERFOORD AND CO LTD,INVS152653,22-Jan-24,861.97,143.66,170092,Lower Morden CC Building Mgt,130000              Cleaning & Janitorial,A,2023,10
693,"Children, Schools and Family",JULIUS RUTHERFOORD AND CO LTD,INVS152934,22-Jan-24,861.97,143.66,170092,Avenue CC Building Management,130000              Cleaning & Janitorial,A,2023,10
694,"Children, Schools and Family",JULIUS RUTHERFOORD AND CO LTD,INVS152682,22-Jan-24,1229.42,204.9,170092,Bond Road Building,130000              Cleaning & Janitorial,A,2023,10
695,"Children, Schools and Family",JULIUS RUTHERFOORD AND CO LTD,INVS152703,22-Jan-24,861.97,143.66,170092,Church Road Building,130000              Cleaning & Janitorial,A,2023,10
696,"Children, Schools and Family",JULIUS RUTHERFOORD AND CO LTD,INVS152796,22-Jan-24,862.03,143.67,170092,Ivy Garden CC Building,130000              Cleaning & Janitorial,A,2023,10
697,"Children, Schools and Family",JULIUS RUTHERFOORD AND CO LTD,INVS152837,22-Jan-24,1298.96,216.49,170092,Newminster CC Building Mgt,130000              Cleaning & Janitorial,A,2023,10
698,"Children, Schools and Family",St Marys School & College-Talking Trust,STSI4477,22-Jan-24,17742,0,170101,SEN Residential (DSG),170000              Education,A,2023,10
699,"Children, Schools and Family",REDACTED PERSONAL DATA,P3 24 UPFRONTPAY,08-Jan-24,1560.24,0,170225,EARLY YEARS NURSERY GRANTS,200000              Financial Services,R,2023,10
700,Community and Housing,REDACTED PERSONAL DATA,1091580,02-Jan-24,547.4,0,170275,Phys/Sens Placements - East,DIRECT PAYMENTS,R,2023,10
701,Community and Housing,REDACTED PERSONAL DATA,1103920,29-Jan-24,547.4,0,170275,Phys/Sens Placements - East,DIRECT PAYMENTS,R,2023,10
702,Community and Housing,INDEPENDENCE HOMES LTD,CED00184,08-Jan-24,6144.04,0,170527,Learning Disabilities Placemnt,321017              Nursing & Residential Care Homes,A,2023,10
703,Community and Housing,INDEPENDENCE HOMES LTD,1099941,17-Jan-24,8610.44,0,170527,Learning Disabilities Placemnt,321017              Nursing & Residential Care Homes,A,2023,10
704,"Children, Schools and Family",GREATER LONDON FOSTERING LTD,INV-2000,22-Jan-24,3786.34,0,170596,Placements Under 18,321100              Social Community Care Supplies & Services - Children,A,2023,10
705,"Children, Schools and Family",GREATER LONDON FOSTERING LTD,INV-1942,22-Jan-24,3516.95,0,170596,Placements Under 18,321100              Social Community Care Supplies & Services - Children,A,2023,10
706,"Children, Schools and Family",GREATER LONDON FOSTERING LTD,INV-2003,22-Jan-24,3786.34,0,170596,Placements Under 18,321100              Social Community Care Supplies & Services - Children,A,2023,10
707,"Children, Schools and Family",GREATER LONDON FOSTERING LTD,INV-1943,22-Jan-24,3697.68,0,170596,Placements Under 18,321100              Social Community Care Supplies & Services - Children,A,2023,10
708,"Children, Schools and Family",GREATER LONDON FOSTERING LTD,INV-1917,22-Jan-24,3786.34,0,170596,Placements Under 18,321100              Social Community Care Supplies & Services - Children,A,2023,10
709,"Children, Schools and Family",GREATER LONDON FOSTERING LTD,INV-1918,22-Jan-24,3786.34,0,170596,Placements Under 18,321100              Social Community Care Supplies & Services - Children,A,2023,10
710,"Children, Schools and Family",CENMAC,CPS12384,12-Jan-24,782,0,170767,Non-Delegated Statements,321100              Social Community Care Supplies & Services - Children,A,2023,10
711,Community and Housing,REDACTED PERSONAL DATA,1091839,02-Jan-24,2146.92,0,170878,Learning Disabilities Placemnt,DIRECT PAYMENTS,R,2023,10
712,Community and Housing,REDACTED PERSONAL DATA,1104192,29-Jan-24,2146.92,0,170878,Learning Disabilities Placemnt,DIRECT PAYMENTS,R,2023,10
713,Community and Housing,REDACTED PERSONAL DATA,1091927,02-Jan-24,1603.12,0,171056,Phys/Sens Placements - East,DIRECT PAYMENTS,R,2023,10
714,Community and Housing,REDACTED PERSONAL DATA,1104284,29-Jan-24,1603.12,0,171056,Phys/Sens Placements - East,DIRECT PAYMENTS,R,2023,10
715,Community and Housing,ST GEORGES RES. CARE HOME,1099992,17-Jan-24,5285.48,0,171491,Learning Disabilities Placemnt,321017              Nursing & Residential Care Homes,A,2023,10
716,Community and Housing,ST GEORGES RES. CARE HOME,1100018,17-Jan-24,4366.24,0,171491,Learning Disabilities Placemnt,321017              Nursing & Residential Care Homes,A,2023,10
717,Community and Housing,REDACTED PERSONAL DATA,1091787,02-Jan-24,698.2,0,172070,Learning Disabilities Placemnt,DIRECT PAYMENTS,R,2023,10
718,Community and Housing,REDACTED PERSONAL DATA,1104138,29-Jan-24,698.2,0,172070,Learning Disabilities Placemnt,DIRECT PAYMENTS,R,2023,10
719,Community and Housing,NORBURY PROPERTY SERV LDN LTD,SI-9771,23-Jan-24,16913,0,172104,Bed & Breakfast - accomm,321000              Social Community Care Supplies & Services - Adult,A,2023,10
720,Community and Housing,EALING COUNCIL,1099625,17-Jan-24,2985.92,0,172129,Mental Health Placements,OLA,A,2023,10
721,Community and Housing,CARRICKS BROOK,1099646,17-Jan-24,9036,0,172297,Learning Disabilities Placemnt,321017              Nursing & Residential Care Homes,A,2023,10
722,Community and Housing,BROADHAM CARE LTD,1099702,17-Jan-24,8014.84,0,172298,Learning Disabilities Placemnt,321017              Nursing & Residential Care Homes,A,2023,10
723,Community and Housing,BROADHAM CARE LTD,1099976,17-Jan-24,8287.36,0,172298,Learning Disabilities Placemnt,321017              Nursing & Residential Care Homes,A,2023,10
724,Environment and Regeneration,PLAYSAFETY LIMITED,76382,29-Jan-24,4807.2,801.2,172454,Pks Rec Grds (Unloc),330000              Sports & Playground Equipment & Maintenance,A,2023,10
725,"Children, Schools and Family",LINDEN LODGE SCHOOL,INV-1613,12-Jan-24,111759,0,172798,Non-Delegated Statements,170000              Education,A,2023,10
726,Community and Housing,REDACTED PERSONAL DATA,1091587,02-Jan-24,1132.2,0,172912,Learning Disabilities Placemnt,DIRECT PAYMENTS,R,2023,10
727,Community and Housing,REDACTED PERSONAL DATA,1103927,29-Jan-24,1132.2,0,172912,Learning Disabilities Placemnt,DIRECT PAYMENTS,R,2023,10
728,Community and Housing,REDACTED PERSONAL DATA,1091720,02-Jan-24,968.12,0,172914,Learning Disabilities Placemnt,DIRECT PAYMENTS,R,2023,10
729,Community and Housing,REDACTED PERSONAL DATA,1104067,29-Jan-24,968.12,0,172914,Learning Disabilities Placemnt,DIRECT PAYMENTS,R,2023,10
730,Community and Housing,REDACTED PERSONAL DATA,1091808,02-Jan-24,599.04,0,172936,Phys/Sens Placements - East,DIRECT PAYMENTS,R,2023,10
731,Community and Housing,REDACTED PERSONAL DATA,1104160,29-Jan-24,599.04,0,172936,Phys/Sens Placements - East,DIRECT PAYMENTS,R,2023,10
732,Unassigned,WILLOW BID LTD,A.GOPAUL25/01/24,30-Jan-24,55964.89,9327.48,173005,Corporate Services,250000              Housing Management,A,2023,10
733,Community and Housing,HAVERING COURT NURSING HOME,1099610,17-Jan-24,5304.08,0,173297,Older People Placements - East,321017              Nursing & Residential Care Homes,A,2023,10
734,Community and Housing,REDACTED PERSONAL DATA,1091806,02-Jan-24,977.52,0,173308,Phys/Sens Placements - East,DIRECT PAYMENTS,R,2023,10
735,Community and Housing,REDACTED PERSONAL DATA,1104158,29-Jan-24,977.52,0,173308,Phys/Sens Placements - East,DIRECT PAYMENTS,R,2023,10
736,Environment and Regeneration,SOUTH EAST LEASEHOLD,418,09-Jan-24,540,90,173335,Property Mgt & Review,150000              Consultancy,A,2023,10
737,"Children, Schools and Family",REDACTED PERSONAL DATA,1092189,03-Jan-24,6420.44,0,173793,Child Disabilities - Placement,CSF-DIRECT PAYMENTS,R,2023,10
738,"Children, Schools and Family",REDACTED PERSONAL DATA,1104749,29-Jan-24,6420.44,0,173793,Child Disabilities - Placement,CSF-DIRECT PAYMENTS,R,2023,10
739,Community and Housing,REDACTED PERSONAL DATA,1091891,02-Jan-24,576.04,0,173807,Learning Disabilities Placemnt,DIRECT PAYMENTS,R,2023,10
740,Community and Housing,REDACTED PERSONAL DATA,1104247,29-Jan-24,576.04,0,173807,Learning Disabilities Placemnt,DIRECT PAYMENTS,R,2023,10
741,Community and Housing,HARBOUR CARE (UK) LTD,1099917,17-Jan-24,6996.8,0,173947,Learning Disabilities Placemnt,321017              Nursing & Residential Care Homes,A,2023,10
742,"Children, Schools and Family",REDACTED PERSONAL DATA,1092211,03-Jan-24,2200,0,174212, Statementing-Transport,CSF-DIRECT PAYMENTS,R,2023,10
743,"Children, Schools and Family",REDACTED PERSONAL DATA,1092252,03-Jan-24,629.06,0,174212,SEN Team,CSF-DIRECT PAYMENTS,R,2023,10
744,"Children, Schools and Family",REDACTED PERSONAL DATA,1104771,29-Jan-24,2200,0,174212, Statementing-Transport,CSF-DIRECT PAYMENTS,R,2023,10
745,Community and Housing,ASHINGTON HOUSE,1099668,17-Jan-24,4781.24,0,174259,Learning Disabilities Placemnt,321017              Nursing & Residential Care Homes,A,2023,10
746,Community and Housing,REDACTED PERSONAL DATA,1091627,02-Jan-24,957.96,0,174449,Phys/Sens Placements - East,DIRECT PAYMENTS,R,2023,10
747,Community and Housing,REDACTED PERSONAL DATA,1103970,29-Jan-24,957.96,0,174449,Phys/Sens Placements - East,DIRECT PAYMENTS,R,2023,10
748,Community and Housing,PRECIOUS HOMES LTD,VER002622,08-Jan-24,10423.35,0,174641,Learning Disabilities Placemnt,321017              Nursing & Residential Care Homes,A,2023,10
749,Community and Housing,SUPREME HOMES,30637,08-Jan-24,3280,0,174758,Mental Health Placements,321017              Nursing & Residential Care Homes,A,2023,10
750,Community and Housing,SUTTON COURT CARE CENTRE,1099732,17-Jan-24,3723.24,0,174833,Older People Placements - East,321017              Nursing & Residential Care Homes,A,2023,10
751,Community and Housing,SUTTON COURT CARE CENTRE,1099806,17-Jan-24,3163.36,0,174833,Older People Placements - East,321017              Nursing & Residential Care Homes,A,2023,10
752,Community and Housing,SUTTON COURT CARE CENTRE,1099835,17-Jan-24,4049.6,0,174833,Phys/Sens Placements - East,321017              Nursing & Residential Care Homes,A,2023,10
753,Community and Housing,SUTTON COURT CARE CENTRE,1099844,17-Jan-24,1183.23,0,174833,Older People Placements - East,321017              Nursing & Residential Care Homes,A,2023,10
754,Community and Housing,SUTTON COURT CARE CENTRE,1099996,17-Jan-24,4139.36,0,174833,Phys/Sens Placements - East,321017              Nursing & Residential Care Homes,A,2023,10
755,Community and Housing,REDACTED PERSONAL DATA,1091559,02-Jan-24,782,0,174975,Learning Disabilities Placemnt,DIRECT PAYMENTS,R,2023,10
756,Community and Housing,REDACTED PERSONAL DATA,1103899,29-Jan-24,782,0,174975,Learning Disabilities Placemnt,DIRECT PAYMENTS,R,2023,10
757,"Children, Schools and Family",PROSPECT EDUC (TECH)TRUST LTD,PETTL1328,18-Jan-24,25194.09,0,175114,Non-Delegated Statements,170000              Education,A,2023,10
758,Corporate Services,COSMIC EUROPE LIMTED,UK7500,15-Jan-24,937.2,156.2,175169,Translation Service,TRANSLATIONS,A,2023,10
759,Corporate Services,COSMIC EUROPE LIMTED,UK7505,15-Jan-24,831.6,138.6,175169,Translation Service,TRANSLATIONS,A,2023,10
760,"Children, Schools and Family",GLOBAL MEDIATION LTD,INV-94985,22-Jan-24,3960,660,175270,Non-Delegated Statements,260000              Human Resources                                                                           Confirmed,A,2023,10
761,Capital,ARCADIS CONSULTING (UK) LTD,680031513,04-Jan-24,9771.2,1628.53,175537,Highways & Footways,230000              Highway Equipment & Materials,A,2023,10
762,Community and Housing,KISIMUL SCHOOL,1099633,17-Jan-24,14008.68,0,175545,Learning Disabilities Placemnt,321017              Nursing & Residential Care Homes,A,2023,10
763,Community and Housing,KISIMUL SCHOOL,1099877,17-Jan-24,17689.84,0,175545,Learning Disabilities Placemnt,321017              Nursing & Residential Care Homes,A,2023,10
764,Community and Housing,REDACTED PERSONAL DATA,1091909,02-Jan-24,2189.6,0,175782,Phys/Sens Placements - East,DIRECT PAYMENTS,R,2023,10
765,Community and Housing,REDACTED PERSONAL DATA,1104266,29-Jan-24,2189.6,0,175782,Phys/Sens Placements - East,DIRECT PAYMENTS,R,2023,10
766,Corporate Services,TWOFOLD LTD,17134,30-Jan-24,2698.85,449.81,175861,Legal Shared Service,270000              Information Communication Technology,A,2023,10
767,Community and Housing,REDACTED PERSONAL DATA,1091740,02-Jan-24,1600.6,0,175960,Learning Disabilities Placemnt,DIRECT PAYMENTS,R,2023,10
768,Community and Housing,REDACTED PERSONAL DATA,1104087,29-Jan-24,1600.6,0,175960,Learning Disabilities Placemnt,DIRECT PAYMENTS,R,2023,10
769,Community and Housing,REDACTED PERSONAL DATA,1091753,02-Jan-24,552.44,0,176619,Phys/Sens Placements - East,DIRECT PAYMENTS,R,2023,10
770,Community and Housing,REDACTED PERSONAL DATA,1104100,29-Jan-24,552.44,0,176619,Phys/Sens Placements - East,DIRECT PAYMENTS,R,2023,10
771,Community and Housing,REDACTED PERSONAL DATA,1091724,02-Jan-24,6410.36,0,176783,Phys/Sens Placements - East,DIRECT PAYMENTS,R,2023,10
772,Community and Housing,REDACTED PERSONAL DATA,1104071,29-Jan-24,6410.36,0,176783,Phys/Sens Placements - East,DIRECT PAYMENTS,R,2023,10
773,"Children, Schools and Family",THE PRE-SCHOOL GROUP LTD,P3 24 UPFRONTPAY,04-Jan-24,36702.74,0,176785,EARLY YEARS NURSERY GRANTS,200000              Financial Services,A,2023,10
774,Community and Housing,REDACTED PERSONAL DATA,1091846,02-Jan-24,1800.4,0,176868,Phys/Sens Placements - East,DIRECT PAYMENTS,R,2023,10
775,Community and Housing,REDACTED PERSONAL DATA,1104199,29-Jan-24,1800.4,0,176868,Phys/Sens Placements - East,DIRECT PAYMENTS,R,2023,10
776,Community and Housing,TUTORCARE LTD,223000,18-Jan-24,2376,396,177183,Housing Needs & Enablg-central,260000              Human Resources,A,2023,10
777,Capital,UK POWER NETWORKS (OPERATIONS),92190901,09-Jan-24,3448.94,574.82,177333,Raynes Park Area Roads,180000              Environmental Services,A,2023,10
778,Corporate Services,EXPERT IN MIND,43421,19-Jan-24,1404,234,177342,SLLP - Disbursements,280000              Legal Services                                                                            Confirmed,A,2023,10
779,Community and Housing,HYTYME B AND B,27335,03-Jan-24,16326.24,2721.04,177425,Bed & Breakfast - accomm,321000              Social Community Care Supplies & Services - Adult,A,2023,10
780,"Children, Schools and Family",HYTYME B AND B,27352,12-Jan-24,2008.8,334.8,177425,Family Supp SafeGuard - Place,321000              Social Community Care Supplies & Services - Adult,A,2023,10
781,"Children, Schools and Family",HYTYME B AND B,27313,26-Jan-24,1166.4,194.4,177425,Family Assessmt & Intervention,321000              Social Community Care Supplies & Services - Adult,A,2023,10
782,Community and Housing,REDACTED PERSONAL DATA,1091631,02-Jan-24,856.72,0,177453,Phys/Sens Placements - East,DIRECT PAYMENTS,R,2023,10
783,Community and Housing,REDACTED PERSONAL DATA,1103975,29-Jan-24,856.72,0,177453,Phys/Sens Placements - East,DIRECT PAYMENTS,R,2023,10
784,Community and Housing,REDACTED PERSONAL DATA,1091621,02-Jan-24,724.72,0,177476,Learning Disabilities Placemnt,DIRECT PAYMENTS,R,2023,10
785,Community and Housing,REDACTED PERSONAL DATA,1103963,29-Jan-24,724.72,0,177476,Learning Disabilities Placemnt,DIRECT PAYMENTS,R,2023,10
786,Community and Housing,REDACTED PERSONAL DATA,1091562,02-Jan-24,1444.8,0,177502,Phys/Sens Placements - East,DIRECT PAYMENTS,R,2023,10
787,Community and Housing,REDACTED PERSONAL DATA,1103902,29-Jan-24,1444.8,0,177502,Phys/Sens Placements - East,DIRECT PAYMENTS,R,2023,10
788,"Children, Schools and Family",BUTTERFLIES CHILDCARE LIMITED,P3 24 UPFRONTPAY,04-Jan-24,18551.52,0,177504,EARLY YEARS NURSERY GRANTS,200000              Financial Services,A,2023,10
789,Community and Housing,REDACTED PERSONAL DATA,1091637,02-Jan-24,703.8,0,177739,Phys/Sens Placements - East,DIRECT PAYMENTS,R,2023,10
790,Community and Housing,REDACTED PERSONAL DATA,1103981,29-Jan-24,703.8,0,177739,Phys/Sens Placements - East,DIRECT PAYMENTS,R,2023,10
791,Community and Housing,GREENHAM,01/479255,22-Jan-24,689.37,114.89,177744,Libraries Service-Civic Centre,130000              Cleaning & Janitorial,A,2023,10
792,Community and Housing,REDACTED PERSONAL DATA,1091647,02-Jan-24,821.12,0,177785,Phys/Sens Placements - East,DIRECT PAYMENTS,R,2023,10
793,Community and Housing,REDACTED PERSONAL DATA,1103992,29-Jan-24,821.12,0,177785,Phys/Sens Placements - East,DIRECT PAYMENTS,R,2023,10
794,"Children, Schools and Family",REDACTED PERSONAL DATA,P3 24 UPFRONTPAY,04-Jan-24,851.04,0,177813,EARLY YEARS NURSERY GRANTS,200000              Financial Services,R,2023,10
795,"Children, Schools and Family",MINI TREASURES DAY NURSERY,P2 23 FINAL,15-Jan-24,637.2,0,177930,EARLY YEARS NURSERY GRANTS,200000              Financial Services,A,2023,10
796,Community and Housing,WORKSHOP 305,ASCO173,08-Jan-24,855.96,0,177941,Learning Disabilities Placemnt,321000              Social Community Care Supplies & Services - Adult,A,2023,10
797,Community and Housing,WORKSHOP 305,AGAR173,08-Jan-24,570.64,0,177941,Learning Disabilities Placemnt,321000              Social Community Care Supplies & Services - Adult,A,2023,10
798,Community and Housing,WORKSHOP 305,WJON173,08-Jan-24,855.96,0,177941,Learning Disabilities Placemnt,321000              Social Community Care Supplies & Services - Adult,A,2023,10
799,Community and Housing,WORKSHOP 305,RAG173,08-Jan-24,855.96,0,177941,Learning Disabilities Placemnt,321000              Social Community Care Supplies & Services - Adult,A,2023,10
800,Community and Housing,WORKSHOP 305,SLAP173,08-Jan-24,570.6,0,177941,Learning Disabilities Placemnt,321000              Social Community Care Supplies & Services - Adult,A,2023,10
801,Community and Housing,WORKSHOP 305,IALA173,08-Jan-24,570.64,0,177941,Learning Disabilities Placemnt,321000              Social Community Care Supplies & Services - Adult,A,2023,10
802,Community and Housing,WORKSHOP 305,WJON174,30-Jan-24,856.08,0,177941,Learning Disabilities Placemnt,321000              Social Community Care Supplies & Services - Adult,A,2023,10
803,Community and Housing,WORKSHOP 305,SLAP174,30-Jan-24,570.6,0,177941,Learning Disabilities Placemnt,321000              Social Community Care Supplies & Services - Adult,A,2023,10
804,Community and Housing,REDACTED PERSONAL DATA,1091623,02-Jan-24,1212.28,0,178412,Learning Disabilities Placemnt,DIRECT PAYMENTS,R,2023,10
805,Community and Housing,REDACTED PERSONAL DATA,1091813,02-Jan-24,5439,0,178412,Learning Disabilities Placemnt,DIRECT PAYMENTS,R,2023,10
806,Community and Housing,REDACTED PERSONAL DATA,1103965,29-Jan-24,1212.28,0,178412,Learning Disabilities Placemnt,DIRECT PAYMENTS,R,2023,10
807,Community and Housing,REDACTED PERSONAL DATA,1104165,29-Jan-24,5439,0,178412,Learning Disabilities Placemnt,DIRECT PAYMENTS,R,2023,10
808,"Children, Schools and Family",Little Hearts Pre School,P3 24 UPFRONTPAY,04-Jan-24,10624.86,0,178454,EARLY YEARS NURSERY GRANTS,200000              Financial Services,A,2023,10
809,Community and Housing,BRAMBLEDOWN CARE HOME,1099788,17-Jan-24,8081.96,0,178465,Phys/Sens Placements - East,321017              Nursing & Residential Care Homes,A,2023,10
810,Community and Housing,SPEAR,1067,09-Jan-24,37500,0,178524,Supporting People (HRS),321000              Social Community Care Supplies & Services - Adult,A,2023,10
811,Community and Housing,SPEAR,1087,09-Jan-24,37500,0,178524,Supporting People (HRS),321000              Social Community Care Supplies & Services - Adult,A,2023,10
812,Environment and Regeneration,THOMSON REUTERS,849408977,18-Jan-24,2965.44,0,178554,Development Control,260000              Human Resources,A,2023,10
813,Community and Housing,KEW HOUSE,1099874,17-Jan-24,5800,0,178621,Older People Placements - East,321017              Nursing & Residential Care Homes,A,2023,10
814,Community and Housing,KEW HOUSE,1099956,17-Jan-24,8321.16,0,178621,Older People Placements - East,321017              Nursing & Residential Care Homes,A,2023,10
815,Community and Housing,REDACTED PERSONAL DATA,1091823,02-Jan-24,4893.48,0,178802,Learning Disabilities Placemnt,DIRECT PAYMENTS,R,2023,10
816,Community and Housing,REDACTED PERSONAL DATA,1091759,02-Jan-24,2306.92,0,178874,Learning Disabilities Placemnt,DIRECT PAYMENTS,R,2023,10
817,Community and Housing,REDACTED PERSONAL DATA,1104106,29-Jan-24,2306.92,0,178874,Learning Disabilities Placemnt,DIRECT PAYMENTS,R,2023,10
818,"Children, Schools and Family",MODERN MONTESSORI INTL. LTD,P3 24 UPFRONTPAY,04-Jan-24,12270.24,0,178883,EARLY YEARS NURSERY GRANTS,200000              Financial Services,A,2023,10
819,Community and Housing,REDACTED PERSONAL DATA,1091942,02-Jan-24,1532.12,0,179049,Learning Disabilities Placemnt,DIRECT PAYMENTS,R,2023,10
820,Community and Housing,REDACTED PERSONAL DATA,1104300,29-Jan-24,1532.12,0,179049,Learning Disabilities Placemnt,DIRECT PAYMENTS,R,2023,10
821,"Children, Schools and Family",WILLOWS PRE-SCHOOL,P3 24 UPFRONTPAY,04-Jan-24,27727.2,0,179134,EARLY YEARS NURSERY GRANTS,170000              Education,A,2023,10
822,Community and Housing,REDACTED PERSONAL DATA,1091532,02-Jan-24,751,0,179142,Learning Disabilities Placemnt,DIRECT PAYMENTS,R,2023,10
823,Community and Housing,REDACTED PERSONAL DATA,1103872,29-Jan-24,751,0,179142,Learning Disabilities Placemnt,DIRECT PAYMENTS,R,2023,10
824,"Children, Schools and Family",GRAVENEY SCHOOL,GA707,22-Jan-24,50094.24,0,179267,Non-Delegated Statements,170000              Education,A,2023,10
825,Community and Housing,REDACTED PERSONAL DATA,1091784,02-Jan-24,2126.36,0,179332,Phys/Sens Placements - East,DIRECT PAYMENTS,R,2023,10
826,Community and Housing,REDACTED PERSONAL DATA,1104134,29-Jan-24,2126.36,0,179332,Phys/Sens Placements - East,DIRECT PAYMENTS,R,2023,10
827,Community and Housing,REDACTED PERSONAL DATA,1091842,02-Jan-24,4941.4,0,179383,Learning Disabilities Placemnt,DIRECT PAYMENTS,R,2023,10
828,Community and Housing,REDACTED PERSONAL DATA,1104195,29-Jan-24,4941.4,0,179383,Learning Disabilities Placemnt,DIRECT PAYMENTS,R,2023,10
829,"Children, Schools and Family",REDACTED PERSONAL DATA,10YE,22-Jan-24,2021.11,0,179598,Placements Over 18,321000              Social Community Care Supplies & Services - Adult,R,2023,10
830,Environment and Regeneration,FUTURE OF LONDON 2011 LIMITED,2023MEM043,23-Jan-24,5506.4,261.4,179719,Physical Regeneration,200000              Financial Services,A,2023,10
831,Community and Housing,ELYSIUM CARE PARTNERSHIPS LTD,1099825,17-Jan-24,9818.32,0,179734,Learning Disabilities Placemnt,321017              Nursing & Residential Care Homes,A,2023,10
832,Community and Housing,ELYSIUM CARE PARTNERSHIPS LTD,1099843,17-Jan-24,3462.2,0,179734,Learning Disabilities Placemnt,321017              Nursing & Residential Care Homes,A,2023,10
833,Community and Housing,ELYSIUM CARE PARTNERSHIPS LTD,1099963,17-Jan-24,9821,0,179734,Learning Disabilities Placemnt,321017              Nursing & Residential Care Homes,A,2023,10
834,Community and Housing,WESTHOPE LTD,1099793,17-Jan-24,6350.78,1058.46,179748,Learning Disabilities Placemnt,321017              Nursing & Residential Care Homes,A,2023,10
835,Community and Housing,SUNNINGDALE HOUSE CARE HOME,1099953,17-Jan-24,2575,0,179794,Learning Disabilities Placemnt,321017              Nursing & Residential Care Homes,A,2023,10
836,Community and Housing,SUNLIGHT HOUSE,1099733,17-Jan-24,7667.6,0,179813,Learning Disabilities Placemnt,321017              Nursing & Residential Care Homes,A,2023,10
837,Community and Housing,SUNLIGHT HOUSE,1099848,17-Jan-24,5140,0,179813,Learning Disabilities Placemnt,321017              Nursing & Residential Care Homes,A,2023,10
838,"Children, Schools and Family",COLLIERS WOOD VILLAGE DAY NUR.,P3 24 UPFRONTPAY,04-Jan-24,17422.56,0,179896,EARLY YEARS NURSERY GRANTS,200000              Financial Services,A,2023,10
839,Community and Housing,BHAKTI SHYAMA CARE CENTRE,1099769,17-Jan-24,3557.92,0,179993,Older People Placements - East,321017              Nursing & Residential Care Homes,A,2023,10
840,Community and Housing,BHAKTI SHYAMA CARE CENTRE,1100030,17-Jan-24,2985.6,0,179993,Older People Placements - East,321017              Nursing & Residential Care Homes,A,2023,10
841,Community and Housing,BHAKTI SHYAMA CARE CENTRE,1100035,17-Jan-24,3800,0,179993,Older People Placements - East,321017              Nursing & Residential Care Homes,A,2023,10
842,"Children, Schools and Family",REAMCARE LTD,LHRPAM012401,19-Jan-24,20105.67,0,180045,Placements Under 18,321100              Social Community Care Supplies & Services - Children Residential,A,2023,10
843,Community and Housing,REDACTED PERSONAL DATA,1091920,02-Jan-24,707.78,0,180174,Older People Placements - East,DIRECT PAYMENTS,R,2023,10
844,Community and Housing,REDACTED PERSONAL DATA,1104277,29-Jan-24,957.68,0,180174,Older People Placements - East,DIRECT PAYMENTS,R,2023,10
845,Community and Housing,SUNRISE DAY CARE,4681,02-Jan-24,553.56,0,180196,Older People Placements - East,321000              Social Community Care Supplies & Services - Adult,A,2023,10
846,Community and Housing,SUNRISE DAY CARE,4682,02-Jan-24,738,0,180196,Learning Disabilities Placemnt,321000              Social Community Care Supplies & Services - Adult,A,2023,10
847,Community and Housing,SUNRISE DAY CARE,4689,02-Jan-24,922.6,0,180196,Older People Placements - East,321000              Social Community Care Supplies & Services - Adult,A,2023,10
848,Community and Housing,SUNRISE DAY CARE,4690,02-Jan-24,553.56,0,180196,Older People Placements - East,321000              Social Community Care Supplies & Services - Adult,A,2023,10
849,Community and Housing,SUNRISE DAY CARE,4691,02-Jan-24,553.56,0,180196,Older People Placements - East,321000              Social Community Care Supplies & Services - Adult,A,2023,10
850,Community and Housing,SUNRISE DAY CARE,4705,12-Jan-24,691.95,0,180196,Learning Disabilities Placemnt,321000              Social Community Care Supplies & Services - Adult,A,2023,10
851,Community and Housing,SUNRISE DAY CARE,4704,12-Jan-24,553.56,0,180196,Older People Placements - East,321000              Social Community Care Supplies & Services - Adult,A,2023,10
852,Community and Housing,SUNRISE DAY CARE,4714,16-Jan-24,553.56,0,180196,Older People Placements - East,321000              Social Community Care Supplies & Services - Adult,A,2023,10
853,Community and Housing,SUNRISE DAY CARE,4713,16-Jan-24,553.56,0,180196,Older People Placements - East,321000              Social Community Care Supplies & Services - Adult,A,2023,10
854,Community and Housing,SUNRISE DAY CARE,4712,16-Jan-24,830.34,0,180196,Older People Placements - East,321000              Social Community Care Supplies & Services - Adult,A,2023,10
855,Community and Housing,REDACTED PERSONAL DATA,1091676,02-Jan-24,625.6,0,180242,Phys/Sens Placements - East,DIRECT PAYMENTS,R,2023,10
856,Community and Housing,REDACTED PERSONAL DATA,1104022,29-Jan-24,625.6,0,180242,Phys/Sens Placements - East,DIRECT PAYMENTS,R,2023,10
857,Community and Housing,REDACTED PERSONAL DATA,1091847,02-Jan-24,1446.72,0,180282,Phys/Sens Placements - East,DIRECT PAYMENTS,R,2023,10
858,Community and Housing,REDACTED PERSONAL DATA,1104200,29-Jan-24,1446.72,0,180282,Phys/Sens Placements - East,DIRECT PAYMENTS,R,2023,10
859,Community and Housing,REDACTED PERSONAL DATA,1091565,02-Jan-24,3365.68,0,180285,Older People Placements - East,DIRECT PAYMENTS,R,2023,10
860,Community and Housing,REDACTED PERSONAL DATA,1103905,29-Jan-24,1527.98,0,180285,Older People Placements - East,DIRECT PAYMENTS,R,2023,10
861,Community and Housing,SEVACARE,84941,02-Jan-24,644.04,0,180307,Older People Placements - East,321000              Social Community Care Supplies & Services - Adult,A,2023,10
862,Community and Housing,SEVACARE,84942,02-Jan-24,3059.19,0,180307,Phys/Sens Placements - East,321000              Social Community Care Supplies & Services - Adult,A,2023,10
863,Community and Housing,SEVACARE,84945,02-Jan-24,930.28,0,180307,Phys/Sens Placements - East,321000              Social Community Care Supplies & Services - Adult,A,2023,10
864,Community and Housing,SEVACARE,84946,02-Jan-24,626.15,0,180307,Older People Placements - East,321000              Social Community Care Supplies & Services - Adult,A,2023,10
865,Community and Housing,SEVACARE,84948,02-Jan-24,3041.3,0,180307,Learning Disabilities Placemnt,321000              Social Community Care Supplies & Services - Adult,A,2023,10
866,Community and Housing,SEVACARE,84950,02-Jan-24,1091.29,0,180307,Older People Placements - East,321000              Social Community Care Supplies & Services - Adult,A,2023,10
867,Community and Housing,SEVACARE,84951,02-Jan-24,966.06,0,180307,Older People Placements - East,321000              Social Community Care Supplies & Services - Adult,A,2023,10
868,Community and Housing,SEVACARE,84953,02-Jan-24,661.93,0,180307,Older People Placements - East,321000              Social Community Care Supplies & Services - Adult,A,2023,10
869,Community and Housing,SEVACARE,84954,02-Jan-24,1055.51,0,180307,Older People Placements - East,321000              Social Community Care Supplies & Services - Adult,A,2023,10
870,Community and Housing,SEVACARE,84955,02-Jan-24,1019.73,0,180307,Older People Placements - East,321000              Social Community Care Supplies & Services - Adult,A,2023,10
871,Community and Housing,SEVACARE,84956,02-Jan-24,894.5,0,180307,Older People Placements - East,321000              Social Community Care Supplies & Services - Adult,A,2023,10
872,Community and Housing,SEVACARE,84960,02-Jan-24,858.72,0,180307,Older People Placements - East,321000              Social Community Care Supplies & Services - Adult,A,2023,10
873,Community and Housing,SEVACARE,84961,02-Jan-24,518.81,0,180307,Older People Placements - East,321000              Social Community Care Supplies & Services - Adult,A,2023,10
874,Community and Housing,SEVACARE,84962,02-Jan-24,2468.82,0,180307,Older People Placements - East,321000              Social Community Care Supplies & Services - Adult,A,2023,10
875,Community and Housing,SEVACARE,84964,02-Jan-24,621.68,0,180307,Older People Placements - East,321000              Social Community Care Supplies & Services - Adult,A,2023,10
876,Community and Housing,SEVACARE,84965,02-Jan-24,1144.96,0,180307,Learning Disabilities Placemnt,321000              Social Community Care Supplies & Services - Adult,A,2023,10
877,Community and Housing,SEVACARE,84966,02-Jan-24,590.37,0,180307,Phys/Sens Placements - East,321000              Social Community Care Supplies & Services - Adult,A,2023,10
878,Community and Housing,SEVACARE,84967,02-Jan-24,1395.42,0,180307,Learning Disabilities Placemnt,321000              Social Community Care Supplies & Services - Adult,A,2023,10
879,Community and Housing,SEVACARE,84969,02-Jan-24,1127.07,0,180307,Older People Placements - East,321000              Social Community Care Supplies & Services - Adult,A,2023,10
880,Community and Housing,SEVACARE,84970,02-Jan-24,644.04,0,180307,Older People Placements - East,321000              Social Community Care Supplies & Services - Adult,A,2023,10
881,Community and Housing,SEVACARE,84973,02-Jan-24,10018.4,0,180307,Older People Placements - East,321000              Social Community Care Supplies & Services - Adult,A,2023,10
882,Community and Housing,SEVACARE,84972,02-Jan-24,518.81,0,180307,Older People Placements - East,321000              Social Community Care Supplies & Services - Adult,A,2023,10
883,Community and Housing,SEVACARE,84971,02-Jan-24,644.04,0,180307,Learning Disabilities Placemnt,321000              Social Community Care Supplies & Services - Adult,A,2023,10
884,Community and Housing,SEVACARE,86340,25-Jan-24,693.24,0,180307,Older People Placements - East,321000              Social Community Care Supplies & Services - Adult,A,2023,10
885,Community and Housing,SEVACARE,86334,25-Jan-24,1118.13,0,180307,Phys/Sens Placements - East,321000              Social Community Care Supplies & Services - Adult,A,2023,10
886,Community and Housing,SEVACARE,86333,25-Jan-24,715.6,0,180307,Learning Disabilities Placemnt,321000              Social Community Care Supplies & Services - Adult,A,2023,10
887,Community and Housing,SEVACARE,86332,25-Jan-24,970.53,0,180307,Learning Disabilities Placemnt,321000              Social Community Care Supplies & Services - Adult,A,2023,10
888,Community and Housing,SEVACARE,86358,25-Jan-24,10018.4,0,180307,Older People Placements - East,321000              Social Community Care Supplies & Services - Adult,A,2023,10
889,Community and Housing,SEVACARE,86357,25-Jan-24,518.81,0,180307,Older People Placements - East,321000              Social Community Care Supplies & Services - Adult,A,2023,10
890,Community and Housing,SEVACARE,86355,25-Jan-24,644.04,0,180307,Older People Placements - East,321000              Social Community Care Supplies & Services - Adult,A,2023,10
891,Community and Housing,SEVACARE,86354,25-Jan-24,1127.07,0,180307,Older People Placements - East,321000              Social Community Care Supplies & Services - Adult,A,2023,10
892,Community and Housing,SEVACARE,86353,25-Jan-24,1950.01,0,180307,Older People Placements - East,321000              Social Community Care Supplies & Services - Adult,A,2023,10
893,Community and Housing,SEVACARE,86351,25-Jan-24,590.37,0,180307,Phys/Sens Placements - East,321000              Social Community Care Supplies & Services - Adult,A,2023,10
894,Community and Housing,SEVACARE,86330,25-Jan-24,599.32,0,180307,Older People Placements - East,321000              Social Community Care Supplies & Services - Adult,A,2023,10
895,Community and Housing,SEVACARE,86342,25-Jan-24,894.5,0,180307,Older People Placements - East,321000              Social Community Care Supplies & Services - Adult,A,2023,10
896,Community and Housing,SEVACARE,86347,25-Jan-24,518.81,0,180307,Older People Placements - East,321000              Social Community Care Supplies & Services - Adult,A,2023,10
897,Community and Housing,SEVACARE,86356,25-Jan-24,644.04,0,180307,Learning Disabilities Placemnt,321000              Social Community Care Supplies & Services - Adult,A,2023,10
898,Community and Housing,SEVACARE,86329,30-Jan-24,930.28,0,180307,Phys/Sens Placements - East,321000              Social Community Care Supplies & Services - Adult,A,2023,10
899,Community and Housing,SEVACARE,86325,30-Jan-24,876.61,0,180307,Older People Placements - East,321000              Social Community Care Supplies & Services - Adult,A,2023,10
900,Corporate Services,NETWORK SOLUTIONS INC,LBM259,15-Jan-24,960,160,180382,Legal Shared Service,270000              Information Communication Technology,A,2023,10
901,Capital,NETWORK SOLUTIONS INC,LBM260,24-Jan-24,4194,699,180382,Youth Provision,270000              Information Communication Technology,A,2023,10
902,Environment and Regeneration,UK Power Networks (Faults / Operations),92192542,15-Jan-24,1872,312,180431,Street Lighting,190000              Facilities & Management Services,A,2023,10
903,Corporate Services,RESTORE PLC,1438292,18-Jan-24,692.3,115.38,180441,Legal Shared Service,190000              Facilities & Management Services,A,2023,10
904,"Children, Schools and Family",RESTORE PLC,1438290,18-Jan-24,609.1,101.52,180441,Fostering Recruit/Assessment,190000              Facilities & Management Services,A,2023,10
905,"Children, Schools and Family",RESTORE PLC,1434066,23-Jan-24,878.82,146.47,180441,Head of CSC & Youth Inclusion,190000              Facilities & Management Services,A,2023,10
906,Community and Housing,REDACTED PERSONAL DATA,1091876,02-Jan-24,862.96,0,180447,Older People Placements - East,DIRECT PAYMENTS,R,2023,10
907,Community and Housing,REDACTED PERSONAL DATA,1104229,29-Jan-24,862.96,0,180447,Older People Placements - East,DIRECT PAYMENTS,R,2023,10
908,Community and Housing,REDACTED PERSONAL DATA,1091706,02-Jan-24,616.32,0,180478,Phys/Sens Placements - East,DIRECT PAYMENTS,R,2023,10
909,Community and Housing,REDACTED PERSONAL DATA,1104053,29-Jan-24,616.32,0,180478,Phys/Sens Placements - East,DIRECT PAYMENTS,R,2023,10
910,"Children, Schools and Family",REDACTED PERSONAL DATA,1093658,05-Jan-24,548.09,0,180579,UASC LAC Under 18,321100              Social Community Care Supplies & Services - Children,R,2023,10
911,"Children, Schools and Family",REDACTED PERSONAL DATA,1097618,12-Jan-24,548.09,0,180579,UASC LAC Under 18,321100              Social Community Care Supplies & Services - Children,R,2023,10
912,"Children, Schools and Family",REDACTED PERSONAL DATA,1100801,19-Jan-24,548.09,0,180579,UASC LAC Under 18,321100              Social Community Care Supplies & Services - Children,R,2023,10
913,"Children, Schools and Family",REDACTED PERSONAL DATA,1103459,26-Jan-24,548.09,0,180579,UASC LAC Under 18,321100              Social Community Care Supplies & Services - Children,R,2023,10
914,Unassigned,LOVE WIMBLEDON LTD BUS.IMP.DIS,5314,17-Jan-24,2392.27,398.71,180802,Corporate Services,200000              Financial Services,A,2023,10
915,Community and Housing,REDACTED PERSONAL DATA,1091556,02-Jan-24,938.4,0,180804,Learning Disabilities Placemnt,DIRECT PAYMENTS,R,2023,10
916,Community and Housing,REDACTED PERSONAL DATA,1103896,29-Jan-24,938.4,0,180804,Learning Disabilities Placemnt,DIRECT PAYMENTS,R,2023,10
917,Community and Housing,REDACTED PERSONAL DATA,1091651,02-Jan-24,2258.16,0,180866,Phys/Sens Placements - East,DIRECT PAYMENTS,R,2023,10
918,Community and Housing,REDACTED PERSONAL DATA,1103996,29-Jan-24,2258.16,0,180866,Phys/Sens Placements - East,DIRECT PAYMENTS,R,2023,10
919,Community and Housing,REDACTED PERSONAL DATA,1091763,02-Jan-24,2187.44,0,180889,Older People Placements - East,DIRECT PAYMENTS,R,2023,10
920,Community and Housing,REDACTED PERSONAL DATA,1104111,29-Jan-24,2187.44,0,180889,Older People Placements - East,DIRECT PAYMENTS,R,2023,10
921,Community and Housing,SENAD ECCLESBOURNE LODGE,1091412,04-Jan-24,8339.2,0,180904,Learning Disabilities Placemnt,321017              Nursing & Residential Care Homes,A,2023,10
922,Community and Housing,SENAD ECCLESBOURNE LODGE,1099622,17-Jan-24,10644.8,0,180904,Learning Disabilities Placemnt,321017              Nursing & Residential Care Homes,A,2023,10
923,Community and Housing,REDACTED PERSONAL DATA,1091875,02-Jan-24,1170.96,0,180999,Older People Placements - East,DIRECT PAYMENTS,R,2023,10
924,Community and Housing,REDACTED PERSONAL DATA,1104228,29-Jan-24,1170.96,0,180999,Older People Placements - East,DIRECT PAYMENTS,R,2023,10
925,Environment and Regeneration,PREMIER MINICAB SER. UK LTD,662,05-Jan-24,3600,600,181053,Passenger Transport,360000              Passenger Transport,A,2023,10
926,Environment and Regeneration,PREMIER MINICAB SER. UK LTD,564,09-Jan-24,3480,580,181053,Passenger Transport,360000              Passenger Transport,A,2023,10
927,Environment and Regeneration,PREMIER MINICAB SER. UK LTD,680,23-Jan-24,1320,220,181053,Passenger Transport,360000              Passenger Transport,A,2023,10
928,Community and Housing,REDACTED PERSONAL DATA,1091605,02-Jan-24,2883.08,0,181129,Older People Placements - East,DIRECT PAYMENTS,R,2023,10
929,Community and Housing,REDACTED PERSONAL DATA,1103945,29-Jan-24,2883.08,0,181129,Older People Placements - East,DIRECT PAYMENTS,R,2023,10
930,Community and Housing,Community Equipment Services,9100000794,15-Jan-24,667.8,111.3,181238,Pooled Equipment,OLA,A,2023,10
931,Community and Housing,Community Equipment Services,9100000800,26-Jan-24,667.8,111.3,181238,Pooled Equipment,OLA,A,2023,10
932,Community and Housing,Community Equipment Services,9100000811,30-Jan-24,447600,74600,181238,Pooled Equipment,OLA,A,2023,10
933,Community and Housing,REDACTED PERSONAL DATA,1091535,02-Jan-24,1720.4,0,181418,Older People Placements - East,DIRECT PAYMENTS,R,2023,10
934,Community and Housing,REDACTED PERSONAL DATA,1103875,29-Jan-24,1720.4,0,181418,Older People Placements - East,DIRECT PAYMENTS,R,2023,10
935,Corporate Services, LoCTA Limited,B10819,19-Jan-24,3969.6,661.6,181509,Local Taxation Services,270000              Information Communication Technology,A,2023,10
936,"Children, Schools and Family",REDACTED PERSONAL DATA,15/2024DANIELLA,17-Jan-24,1154.92,0,181587,Placements Over 18,321000              Social Community Care Supplies & Services - Adult,R,2023,10
937,"Children, Schools and Family",KIKI'S CHILDREN'S CLINIC,16513,15-Jan-24,805,0,181849,Non-Delegated Statements,310000              Healthcare                                                                                Confirmed,A,2023,10
938,"Children, Schools and Family",KIKI'S CHILDREN'S CLINIC,16517,15-Jan-24,750,0,181849,Non-Delegated Statements,310000              Healthcare                                                                                Confirmed,A,2023,10
939,"Children, Schools and Family",KIKI'S CHILDREN'S CLINIC,16516,15-Jan-24,750,0,181849,Non-Delegated Statements,310000              Healthcare                                                                                Confirmed,A,2023,10
940,"Children, Schools and Family",KIKI'S CHILDREN'S CLINIC,16515,15-Jan-24,560,0,181849,Non-Delegated Statements,310000              Healthcare                                                                                Confirmed,A,2023,10
941,"Children, Schools and Family",Dicky Birds Nurseries Ltd - Pelham Road,P3 24 UPFRONTPAY,04-Jan-24,5042.88,0,181874,EARLY YEARS NURSERY GRANTS,200000              Financial Services,A,2023,10
942,"Children, Schools and Family",LOVE LANE DAY NURSERY,P3 24 UPFRONTPAY,04-Jan-24,15364.8,0,181933,EARLY YEARS NURSERY GRANTS,200000              Financial Services,A,2023,10
943,Unassigned,SHARPE PRITCHARD SOLICITORS,100005707,22-Jan-24,985.8,0,182165,Corporate Accountancy,280000              Legal Services                                                                            Confirmed,A,2023,10
944,Community and Housing,REDACTED PERSONAL DATA,RWL 8 SHELLEY,19-Jan-24,2400,0,182235,Homelessness Prevention,321000              Social Community Care Supplies & Services - Adult,R,2023,10
945,Corporate Services,REDACTED PERSONAL DATA,1271/JN,15-Jan-24,840,140,182247,SLLP - Disbursements,280000              Legal Services                                                                            Confirmed,R,2023,10
946,Corporate Services,REDACTED PERSONAL DATA,1823/JN,22-Jan-24,1050,175,182247,SLLP - Disbursements,280000              Legal Services                                                                            Confirmed,R,2023,10
947,"Children, Schools and Family",BIRKIN CLEANING SERVICES LTD,33606,31-Jan-24,1473.44,245.57,182414,Acacia IGC Building Management,130000              Cleaning & Janitorial,A,2023,10
948,"Children, Schools and Family",BIRKIN CLEANING SERVICES LTD,33609,31-Jan-24,1438.18,239.7,182414,Brightwell,130000              Cleaning & Janitorial,A,2023,10
949,Community and Housing,BIRKIN CLEANING SERVICES LTD,33603,31-Jan-24,770.33,128.39,182414,Eastway Day Centre,130000              Cleaning & Janitorial,A,2023,10
950,Community and Housing,BIRKIN CLEANING SERVICES LTD,33588,31-Jan-24,1798.67,299.78,182414,Morden Library,130000              Cleaning & Janitorial,A,2023,10
951,Community and Housing,BIRKIN CLEANING SERVICES LTD,33605,31-Jan-24,2167.12,361.19,182414,JMC  Day Centre,130000              Cleaning & Janitorial,A,2023,10
952,"Children, Schools and Family",BIRKIN CLEANING SERVICES LTD,33608,31-Jan-24,2465.74,410.96,182414,Steers Mead BuildingManagement,130000              Cleaning & Janitorial,A,2023,10
953,Corporate Services,BIRKIN CLEANING SERVICES LTD,33587,30-Jan-24,27305.2,4550.87,182414,Corporate Contracts - FM,130000              Cleaning & Janitorial,A,2023,10
954,Community and Housing,BIRKIN CLEANING SERVICES LTD,33610,31-Jan-24,1451.57,241.93,182414,Donald Hope Library,130000              Cleaning & Janitorial,A,2023,10
955,Corporate Services,BIRKIN CLEANING SERVICES LTD,33590,31-Jan-24,1448.78,241.46,182414,Corporate Contracts - FM,130000              Cleaning & Janitorial,A,2023,10
956,Community and Housing,BIRKIN CLEANING SERVICES LTD,33595,31-Jan-24,1066.75,177.79,182414,Wimbledon Library,130000              Cleaning & Janitorial,A,2023,10
957,Environment and Regeneration,BIRKIN CLEANING SERVICES LTD,33612,31-Jan-24,902.47,150.41,182414,Transport-Contract Hire,130000              Cleaning & Janitorial,A,2023,10
958,"Children, Schools and Family",BIRKIN CLEANING SERVICES LTD,33607,31-Jan-24,754.75,125.79,182414,Adventure Playground Project,130000              Cleaning & Janitorial,A,2023,10
959,"Children, Schools and Family",BIRKIN CLEANING SERVICES LTD,33601,31-Jan-24,750.68,125.11,182414,Merton Youth Centres.,130000              Cleaning & Janitorial,A,2023,10
960,Environment and Regeneration,BIRKIN CLEANING SERVICES LTD,33592,31-Jan-24,698.4,116.4,182414,Durnsford industrial estate,130000              Cleaning & Janitorial,A,2023,10
961,Community and Housing,BIRKIN CLEANING SERVICES LTD,33604,31-Jan-24,1842.22,307.04,182414,Highpath (DayCentre) Leyton Rd,130000              Cleaning & Janitorial,A,2023,10
962,Community and Housing,BIRKIN CLEANING SERVICES LTD,33602,31-Jan-24,2143.6,357.27,182414,All Saints Day Centre,130000              Cleaning & Janitorial,A,2023,10
963,Environment and Regeneration,BIRKIN CLEANING SERVICES LTD,33591,31-Jan-24,3196.02,532.67,182414,Vestry Hall,130000              Cleaning & Janitorial,A,2023,10
964,Community and Housing,BIRKIN CLEANING SERVICES LTD,33594,31-Jan-24,3525.84,587.64,182414,Wimbledon Library,130000              Cleaning & Janitorial,A,2023,10
965,Corporate Services,BIRKIN CLEANING SERVICES LTD,33589,31-Jan-24,2444.05,407.34,182414,Corporate Contracts - FM,130000              Cleaning & Janitorial,A,2023,10
966,Corporate Services,BIRKIN CLEANING SERVICES LTD,33593,31-Jan-24,8688.29,1448.05,182414,Corporate Contracts - FM,130000              Cleaning & Janitorial,A,2023,10
967,Community and Housing,BIRKIN CLEANING SERVICES LTD,33598,31-Jan-24,1049.77,174.96,182414,Raynes Park Library,130000              Cleaning & Janitorial,A,2023,10
968,"Children, Schools and Family",BIRKIN CLEANING SERVICES LTD,33600,31-Jan-24,754.63,125.77,182414,Merton Youth Centres.,130000              Cleaning & Janitorial,A,2023,10
969,Community and Housing,BIRKIN CLEANING SERVICES LTD,33599,31-Jan-24,617.09,102.85,182414,West Barnes Lib,130000              Cleaning & Janitorial,A,2023,10
970,Community and Housing,BIRKIN CLEANING SERVICES LTD,33596,31-Jan-24,1750.62,291.77,182414,Mitcham Library,130000              Cleaning & Janitorial,A,2023,10
971,Community and Housing,BIRKIN CLEANING SERVICES LTD,33597,31-Jan-24,2120.48,353.41,182414,Pollards Hill Library,130000              Cleaning & Janitorial,A,2023,10
972,"Children, Schools and Family",REDACTED PERSONAL DATA,1092148,03-Jan-24,949.6,0,182494,Child Disabilities - Placement,DIRECT PAYMENTS,R,2023,10
973,Community and Housing,REDACTED PERSONAL DATA,1091703,02-Jan-24,2952.04,0,182584,Phys/Sens Placements - East,DIRECT PAYMENTS,R,2023,10
974,Community and Housing,REDACTED PERSONAL DATA,1104050,29-Jan-24,2952.04,0,182584,Phys/Sens Placements - East,DIRECT PAYMENTS,R,2023,10
975,"Children, Schools and Family",REDACTED PERSONAL DATA,1093584,05-Jan-24,548.09,0,182648,UASC LAC Under 18,321100              Social Community Care Supplies & Services - Children,R,2023,10
976,"Children, Schools and Family",REDACTED PERSONAL DATA,1093642,05-Jan-24,548.09,0,182648,UASC LAC Under 18,321100              Social Community Care Supplies & Services - Children,R,2023,10
977,"Children, Schools and Family",REDACTED PERSONAL DATA,1097544,12-Jan-24,548.09,0,182648,UASC LAC Under 18,321100              Social Community Care Supplies & Services - Children,R,2023,10
978,"Children, Schools and Family",REDACTED PERSONAL DATA,1097601,12-Jan-24,548.09,0,182648,UASC LAC Under 18,321100              Social Community Care Supplies & Services - Children,R,2023,10
979,"Children, Schools and Family",REDACTED PERSONAL DATA,1100727,19-Jan-24,548.09,0,182648,UASC LAC Under 18,321100              Social Community Care Supplies & Services - Children,R,2023,10
980,"Children, Schools and Family",REDACTED PERSONAL DATA,1100785,19-Jan-24,548.09,0,182648,UASC LAC Under 18,321100              Social Community Care Supplies & Services - Children,R,2023,10
981,"Children, Schools and Family",REDACTED PERSONAL DATA,1103384,26-Jan-24,548.09,0,182648,UASC LAC Under 18,321100              Social Community Care Supplies & Services - Children,R,2023,10
982,"Children, Schools and Family",REDACTED PERSONAL DATA,1103444,26-Jan-24,548.09,0,182648,UASC LAC Under 18,321100              Social Community Care Supplies & Services - Children,R,2023,10
983,"Children, Schools and Family",KINGSWOOD DAYCARE NURSERY LTD,P3 24 UPFRONTPAY,04-Jan-24,39432.96,0,182740,EARLY YEARS NURSERY GRANTS,200000              Financial Services,A,2023,10
984,Community and Housing,REDACTED PERSONAL DATA,1091932,02-Jan-24,6347.8,0,182894,Learning Disabilities Placemnt,DIRECT PAYMENTS,R,2023,10
985,Community and Housing,REDACTED PERSONAL DATA,1104289,29-Jan-24,6347.8,0,182894,Learning Disabilities Placemnt,DIRECT PAYMENTS,R,2023,10
986,Corporate Services,PELLINGS LLP,SI9037864,30-Jan-24,1200,200,182945,SLLP - Disbursements,280000              Legal Services                                                                            Confirmed,A,2023,10
987,Community and Housing,REDACTED PERSONAL DATA,1091656,02-Jan-24,5057.2,0,183167,Older People Placements - East,DIRECT PAYMENTS,R,2023,10
988,Community and Housing,REDACTED PERSONAL DATA,1103649,26-Jan-24,547.4,0,183167,Older People Placements - East,DIRECT PAYMENTS,R,2023,10
989,Community and Housing,REDACTED PERSONAL DATA,1104001,29-Jan-24,6152,0,183167,Older People Placements - East,DIRECT PAYMENTS,R,2023,10
990,Community and Housing,ST ANTONYS CARE HOME,1099587,17-Jan-24,1728.57,0,183206,Older People Placements - East,321017              Nursing & Residential Care Homes,A,2023,10
991,Community and Housing,ST ANTONYS CARE HOME,1099757,17-Jan-24,3840,0,183206,Older People Placements - East,321017              Nursing & Residential Care Homes,A,2023,10
992,Community and Housing,ST ANTONYS CARE HOME,1099795,17-Jan-24,4200,0,183206,Mental Health Placements,321017              Nursing & Residential Care Homes,A,2023,10
993,Community and Housing,ST ANTONYS CARE HOME,1099945,17-Jan-24,4200,0,183206,Older People Placements - East,321017              Nursing & Residential Care Homes,A,2023,10
994,Community and Housing,ST ANTONYS CARE HOME,1100010,17-Jan-24,4000,0,183206,Older People Placements - East,321017              Nursing & Residential Care Homes,A,2023,10
995,Community and Housing,ST ANTONYS CARE HOME,1100025,17-Jan-24,2828.57,0,183206,Older People Placements - East,321017              Nursing & Residential Care Homes,A,2023,10
996,Community and Housing,PARKSIDE NURSING HOME,1100036,17-Jan-24,4080,0,183209,Older People Placements - East,321017              Nursing & Residential Care Homes,A,2023,10
997,"Children, Schools and Family",REDACTED PERSONAL DATA,1092273,03-Jan-24,578.56,0,183239, Childrens Short Breaks,CSF-DIRECT PAYMENTS,R,2023,10
998,"Children, Schools and Family",REDACTED PERSONAL DATA,1104835,29-Jan-24,578.56,0,183239, Childrens Short Breaks,CSF-DIRECT PAYMENTS,R,2023,10
999,"Children, Schools and Family",REDACTED PERSONAL DATA,1092195,03-Jan-24,625.6,0,183241, Childrens Short Breaks,CSF-DIRECT PAYMENTS,R,2023,10
1000,"Children, Schools and Family",REDACTED PERSONAL DATA,1104755,29-Jan-24,625.6,0,183241, Childrens Short Breaks,CSF-DIRECT PAYMENTS,R,2023,10
1001,Unassigned,HARRIS ACADEMY MORDEN,SCHOOLS 2324/10,08-Jan-24,7155.89,0,183257,Schools,170000              Education,A,2023,10
1002,Community and Housing,REDACTED PERSONAL DATA,1091660,02-Jan-24,1322.92,0,183460,Learning Disabilities Placemnt,DIRECT PAYMENTS,R,2023,10
1003,Community and Housing,REDACTED PERSONAL DATA,1104006,29-Jan-24,1322.92,0,183460,Learning Disabilities Placemnt,DIRECT PAYMENTS,R,2023,10
1004,Community and Housing,REDACTED PERSONAL DATA,1091711,02-Jan-24,1622.64,0,183464,Older People Placements - East,DIRECT PAYMENTS,R,2023,10
1005,Community and Housing,REDACTED PERSONAL DATA,1104058,29-Jan-24,1622.64,0,183464,Older People Placements - East,DIRECT PAYMENTS,R,2023,10
1006,"Children, Schools and Family",WIMBLEDON DAY NURSERY 2,P3 24 UPFRONTPAY,04-Jan-24,12998.88,0,183490,EARLY YEARS NURSERY GRANTS,200000              Financial Services,A,2023,10
1007,Community and Housing,CREST MANOR LTD,CM0842,03-Jan-24,5093.7,0,183548,Bed & Breakfast - accomm,250000              Housing Management,A,2023,10
1008,"Children, Schools and Family",REDACTED PERSONAL DATA,1092225,03-Jan-24,1710,0,183558,Child Disabilities - Placement,CSF-DIRECT PAYMENTS,R,2023,10
1009,Corporate Services,EMAP PUBLISHING,IN87155,22-Jan-24,3684,0,183626,Chief Executive,200000              Financial Services,A,2023,10
1010,Corporate Services,TOTAL COMPUTER NETWORKS,SI916589,10-Jan-24,666,111,183646,Legal Shared Service,270000              Information Communication Technology,A,2023,10
1011,Environment and Regeneration,TOTAL COMPUTER NETWORKS,SI917364,25-Jan-24,1014,169,183646,NRSWA Permitting (LoPS),270000              Information Communication Technology,A,2023,10
1012,Community and Housing,TOTAL COMPUTER NETWORKS,SI917674,30-Jan-24,504,84,183646,Occupational Therapy,270000              Information Communication Technology,A,2023,10
1013,Community and Housing,TOTAL COMPUTER NETWORKS,SI917791,31-Jan-24,18360,3060,183646,Reablement,270000              Information Communication Technology,A,2023,10
1014,Environment and Regeneration,SCOTTISH POWER,109147560,15-Jan-24,1276.49,60.79,183660,Street Lighting,370000              Utilities,A,2023,10
1015,Corporate Services,RENTOKIL INITIAL UK LTD,60429548,24-Jan-24,1737.53,289.6,183672,Corporate Contracts - FM,130000              Cleaning & Janitorial,A,2023,10
1016,Community and Housing,REDACTED PERSONAL DATA,1091629,02-Jan-24,664.72,0,183690,Older People Placements - East,DIRECT PAYMENTS,R,2023,10
1017,Community and Housing,REDACTED PERSONAL DATA,1103972,29-Jan-24,664.72,0,183690,Older People Placements - East,DIRECT PAYMENTS,R,2023,10
1018,"Children, Schools and Family",LEXTOX,310800,12-Jan-24,683.16,113.86,184053,Family Supp SafeGuard - Place,280000              Legal Services,A,2023,10
1019,Community and Housing,REDACTED PERSONAL DATA,1091765,02-Jan-24,3026.76,0,184175,Older People Placements - East,DIRECT PAYMENTS,R,2023,10
1020,Community and Housing,REDACTED PERSONAL DATA,1104113,29-Jan-24,3026.76,0,184175,Older People Placements - East,DIRECT PAYMENTS,R,2023,10
1021,Community and Housing,REDACTED PERSONAL DATA,1091743,02-Jan-24,508.32,0,184315,Older People Placements - East,DIRECT PAYMENTS,R,2023,10
1022,Community and Housing,REDACTED PERSONAL DATA,1104090,29-Jan-24,508.32,0,184315,Older People Placements - East,DIRECT PAYMENTS,R,2023,10
1023,Community and Housing,CROWNWISE LTD,JM/167/002,08-Jan-24,2542.4,0,184360,Mental Health Placements,321000              Social Community Care Supplies & Services - Adult,A,2023,10
1024,Community and Housing,CROWNWISE LTD,MP/167/120,08-Jan-24,1229.6,0,184360,Mental Health Placements,321000              Social Community Care Supplies & Services - Adult,A,2023,10
1025,Community and Housing,CROWNWISE LTD,MP/167/119,08-Jan-24,1229.6,0,184360,Mental Health Placements,321000              Social Community Care Supplies & Services - Adult,A,2023,10
1026,Community and Housing,CROWNWISE LTD,JM/167/001,08-Jan-24,10623.6,0,184360,Mental Health Placements,321000              Social Community Care Supplies & Services - Adult,A,2023,10
1027,Community and Housing,CROWNWISE LTD,1099684,17-Jan-24,5907,0,184360,Mental Health Placements,321000              Social Community Care Supplies & Services - Adult,A,2023,10
1028,"Children, Schools and Family",SURBITON TOWN SPORTS CLUB,4905,25-Jan-24,637.2,106.2,184377, ETE Team,290000              Arts & Leisure Services,A,2023,10
1029,Community and Housing,MARIAN HOUSE NURSING HOME,1099673,17-Jan-24,2834.56,0,184385,Older People Placements - East,321017              Nursing & Residential Care Homes,A,2023,10
1030,"Children, Schools and Family",REDACTED PERSONAL DATA,1093690,05-Jan-24,582.17,0,184386,Placements Under 18,321100              Social Community Care Supplies & Services - Children,R,2023,10
1031,"Children, Schools and Family",REDACTED PERSONAL DATA,1097650,12-Jan-24,582.17,0,184386,Placements Under 18,321100              Social Community Care Supplies & Services - Children,R,2023,10
1032,"Children, Schools and Family",REDACTED PERSONAL DATA,1100833,19-Jan-24,582.17,0,184386,Placements Under 18,321100              Social Community Care Supplies & Services - Children,R,2023,10
1033,"Children, Schools and Family",REDACTED PERSONAL DATA,1103491,26-Jan-24,582.17,0,184386,Placements Under 18,321100              Social Community Care Supplies & Services - Children,R,2023,10
1034,"Children, Schools and Family",SOUTHFIELDS  ACADEMY,INV-1615,16-Jan-24,5580,0,184420,Non-Delegated Statements,170000              Education,A,2023,10
1035,Community and Housing,REDACTED PERSONAL DATA,1091788,02-Jan-24,4995,0,184580,Older People Placements - East,DIRECT PAYMENTS,R,2023,10
1036,Community and Housing,REDACTED PERSONAL DATA,1104139,29-Jan-24,4971.23,0,184580,Older People Placements - East,DIRECT PAYMENTS,R,2023,10
1037,Community and Housing,REDACTED PERSONAL DATA,1091761,02-Jan-24,867.48,0,184608,Older People Placements - East,DIRECT PAYMENTS,R,2023,10
1038,Community and Housing,REDACTED PERSONAL DATA,1104108,29-Jan-24,867.48,0,184608,Older People Placements - East,DIRECT PAYMENTS,R,2023,10
1039,"Children, Schools and Family",SAINT CECILIA'S C OF E SCHOOL,STCSI46,26-Jan-24,35697.83,0,184612,Non-Delegated Statements,170000              Education,A,2023,10
1040,"Children, Schools and Family",FUNKY OWLS NURSERY,P3 24 UPFRONTPAY,04-Jan-24,22939.2,0,184637,EARLY YEARS NURSERY GRANTS,200000              Financial Services,A,2023,10
1041,"Children, Schools and Family",Bright Horizons Family Solutions Ltd,P3 24 UPFRONTPAY,04-Jan-24,25650.24,0,184692,EARLY YEARS NURSERY GRANTS,170000              Education,A,2023,10
1042,Community and Housing,SK HOUSING LTD,7359,12-Jan-24,43866,7311,184774,Bed & Breakfast - accomm,321000              Social Community Care Supplies & Services - Adult,A,2023,10
1043,Community and Housing,CROHAM PLACE,1099771,17-Jan-24,9400,0,184807,Mental Health Placements,321017              Nursing & Residential Care Homes,A,2023,10
1044,Community and Housing,CROHAM PLACE,1099772,17-Jan-24,9400,0,184807,Learning Disabilities Placemnt,321017              Nursing & Residential Care Homes,A,2023,10
1045,Community and Housing,CROHAM PLACE,1099805,17-Jan-24,9400,0,184807,Mental Health Placements,321017              Nursing & Residential Care Homes,A,2023,10
1046,Community and Housing,REDACTED PERSONAL DATA,1091911,02-Jan-24,977.04,0,184819,Older People Placements - East,DIRECT PAYMENTS,R,2023,10
1047,Community and Housing,REDACTED PERSONAL DATA,1104268,29-Jan-24,977.04,0,184819,Older People Placements - East,DIRECT PAYMENTS,R,2023,10
1048,Community and Housing,QUARTZ PROPERTIES,LBM123,26-Jan-24,44754.39,0,184919,Bed & Breakfast - accomm,321000              Social Community Care Supplies & Services - Adult,A,2023,10
1049,Community and Housing,REDACTED PERSONAL DATA,1091803,02-Jan-24,703.8,0,184950,Phys/Sens Placements - East,DIRECT PAYMENTS,R,2023,10
1050,Community and Housing,REDACTED PERSONAL DATA,1104155,29-Jan-24,703.8,0,184950,Phys/Sens Placements - East,DIRECT PAYMENTS,R,2023,10
1051,Community and Housing,HOLDSWORTHS,861803,17-Jan-24,540.68,6.94,185001,Eastway Day Centre,110000              Catering,A,2023,10
1052,Unassigned,BROWNE JACOBSON,1049444,24-Jan-24,2582.4,430.4,185063,Corporate Services,280000              Legal Services,A,2023,10
1053,Community and Housing,REDACTED PERSONAL DATA,1091772,02-Jan-24,1459.72,0,185250,Older People Placements - East,DIRECT PAYMENTS,R,2023,10
1054,Community and Housing,REDACTED PERSONAL DATA,1104122,29-Jan-24,1459.72,0,185250,Older People Placements - East,DIRECT PAYMENTS,R,2023,10
1055,"Children, Schools and Family",ORCHARD HILL COLLEGE,DI340102273,30-Jan-24,11000,0,185253,Non-Maintained Post 16 SEN,170000              Education,A,2023,10
1056,"Children, Schools and Family",FURZEDOWN PRIMARY SCHOOL,2,22-Jan-24,3351.2,0,185273,Non-Delegated Statements,170000              Education,A,2023,10
1057,Community and Housing,ROOMS AND  STUDIOS MANAGEMENT,1298,09-Jan-24,138471.35,23078.56,185280,Bed & Breakfast - accomm,321000              Social Community Care Supplies & Services - Adult,A,2023,10
1058,Community and Housing,ROOMS AND  STUDIOS MANAGEMENT,1302,31-Jan-24,1536,256,185280,Bed & Breakfast - accomm,321000              Social Community Care Supplies & Services - Adult,A,2023,10
1059,Community and Housing,REDACTED PERSONAL DATA,1091574,02-Jan-24,1605.44,0,185353,Mental Health Placements,DIRECT PAYMENTS,R,2023,10
1060,Community and Housing,REDACTED PERSONAL DATA,1103914,29-Jan-24,1605.44,0,185353,Mental Health Placements,DIRECT PAYMENTS,R,2023,10
1061,Corporate Services,INFORM CPI LTD,AL66742,22-Jan-24,585,97.5,185356,Local Taxation Services,270000              Information Communication Technology,A,2023,10
1062,Community and Housing,WISDOM SUPPORT SERVICES LTD,12640,30-Jan-24,6366,0,185366,Mental Health Placements,321000              Social Community Care Supplies & Services - Adult,A,2023,10
1063,Community and Housing,WISDOM SUPPORT SERVICES LTD,12648,31-Jan-24,2305.92,0,185366,Older People Placements - East,321000              Social Community Care Supplies & Services - Adult,A,2023,10
1064,Community and Housing,WISDOM SUPPORT SERVICES LTD,12629,30-Jan-24,2217.24,0,185366,Older People Placements - East,321000              Social Community Care Supplies & Services - Adult,A,2023,10
1065,Community and Housing,WISDOM SUPPORT SERVICES LTD,12647,31-Jan-24,821.2,0,185366,Older People Placements - East,321000              Social Community Care Supplies & Services - Adult,A,2023,10
1066,Community and Housing,WISDOM SUPPORT SERVICES LTD,12628,30-Jan-24,1642.4,0,185366,Older People Placements - East,321000              Social Community Care Supplies & Services - Adult,A,2023,10
1067,Community and Housing,WISDOM SUPPORT SERVICES LTD,12646,31-Jan-24,1313.92,0,185366,Learning Disabilities Placemnt,321000              Social Community Care Supplies & Services - Adult,A,2023,10
1068,Community and Housing,WISDOM SUPPORT SERVICES LTD,12627,30-Jan-24,1313.92,0,185366,Learning Disabilities Placemnt,321000              Social Community Care Supplies & Services - Adult,A,2023,10
1069,Community and Housing,WISDOM SUPPORT SERVICES LTD,12645,31-Jan-24,4634.01,0,185366,Learning Disabilities Placemnt,321000              Social Community Care Supplies & Services - Adult,A,2023,10
1070,Community and Housing,WISDOM SUPPORT SERVICES LTD,12626,30-Jan-24,4434.48,0,185366,Learning Disabilities Placemnt,321000              Social Community Care Supplies & Services - Adult,A,2023,10
1071,"Children, Schools and Family",Dicky Birds Nurseries - Pepys Road,P3 24 UPFRONTPAY,04-Jan-24,7646.4,0,185387,EARLY YEARS NURSERY GRANTS,200000              Financial Services,A,2023,10
1072,Community and Housing,THORNBECK COLLEGE,1099734,17-Jan-24,10320.52,0,185470,Learning Disabilities Placemnt,321100              Social Community Care Supplies & Services - Children,A,2023,10
1073,Community and Housing,LAMBTON ROAD MEDICAL PRACTICE,INV-1497,26-Jan-24,2422.7,0,185510,PH - Sexual Health,260000              Human Resources,A,2023,10
1074,Community and Housing,LAMBTON ROAD MEDICAL PRACTICE,INV-1498,26-Jan-24,1916.1,0,185510,PH - Sexual Health,260000              Human Resources,A,2023,10
1075,Community and Housing,REDACTED PERSONAL DATA,1091564,02-Jan-24,522.88,0,185533,Older People Placements - East,DIRECT PAYMENTS,R,2023,10
1076,Community and Housing,REDACTED PERSONAL DATA,1103904,29-Jan-24,522.88,0,185533,Older People Placements - East,DIRECT PAYMENTS,R,2023,10
1077,"Children, Schools and Family",WOODMANSTERNE PRIMARY SCHOOL,W2324-034,15-Jan-24,28960.35,0,185550,Non-Delegated Statements,170000              Education,A,2023,10
1078,Community and Housing,REDACTED PERSONAL DATA,1092882,04-Jan-24,782,0,185557,Learning Disabilities Placemnt,DIRECT PAYMENTS,R,2023,10
1079,Community and Housing,REDACTED PERSONAL DATA,1103942,29-Jan-24,782,0,185557,Learning Disabilities Placemnt,DIRECT PAYMENTS,R,2023,10
1080,Community and Housing,REDACTED PERSONAL DATA,1091857,02-Jan-24,1271.6,0,185653,Older People Placements - East,DIRECT PAYMENTS,R,2023,10
1081,Community and Housing,REDACTED PERSONAL DATA,1104210,29-Jan-24,1271.6,0,185653,Older People Placements - East,DIRECT PAYMENTS,R,2023,10
1082,Community and Housing,VIBRANCE,1099558,17-Jan-24,536.4,0,185664,Learning Disabilities Placemnt,321000              Social Community Care Supplies & Services - Adult,A,2023,10
1083,Community and Housing,VIBRANCE,1099580,17-Jan-24,715.2,0,185664,Learning Disabilities Placemnt,321000              Social Community Care Supplies & Services - Adult,A,2023,10
1084,Community and Housing,VIBRANCE,1102531,24-Jan-24,4380.6,0,185664,Learning Disabilities Placemnt,321000              Social Community Care Supplies & Services - Adult,A,2023,10
1085,Community and Housing,REDACTED PERSONAL DATA,1091798,02-Jan-24,615.48,0,185709,Learning Disabilities Placemnt,DIRECT PAYMENTS,R,2023,10
1086,Community and Housing,REDACTED PERSONAL DATA,1104150,29-Jan-24,615.48,0,185709,Learning Disabilities Placemnt,DIRECT PAYMENTS,R,2023,10
1087,Unassigned,BENEDICT PRIMARY ACADEMY,SCHOOLS 2324/10,08-Jan-24,11049,0,185720,Schools,170000              Education,A,2023,10
1088,"Children, Schools and Family",M K ACCOMMODATION,MK5944,22-Jan-24,1225,0,185816,Family Assessmt & Intervention,321000              Social Community Care Supplies & Services - Adult,A,2023,10
1089,"Children, Schools and Family",M K ACCOMMODATION,MK5943,22-Jan-24,1225,0,185816,Family Assessmt & Intervention,321000              Social Community Care Supplies & Services - Adult,A,2023,10
1090,"Children, Schools and Family",M K ACCOMMODATION,MK5936,22-Jan-24,1225,0,185816,Family Assessmt & Intervention,321000              Social Community Care Supplies & Services - Adult,A,2023,10
1091,Corporate Services,REDACTED PERSONAL DATA,INV/HHG1623,15-Jan-24,5700,950,185836,SLLP - Disbursements,280000              Legal Services                                                                            Confimed,R,2023,10
1092,Corporate Services,REDACTED PERSONAL DATA,120623,08-Jan-24,1051.68,175.28,185876,SLLP - Disbursements,280000              Legal Services                                                                            Confirmed,R,2023,10
1093,"Children, Schools and Family",REDACTED PERSONAL DATA,1098308,16-Jan-24,9252.75,0,185943,Fostering Recruit/Assessment,321100              Social Community Care Supplies & Services - Children,R,2023,10
1094,Community and Housing,E HOMES AND SHELTERS,EHSL1739,12-Jan-24,45151.31,0,185995,Bed & Breakfast - accomm,321000              Social Community Care Supplies & Services - Adult,A,2023,10
1095,"Children, Schools and Family",REDACTED PERSONAL DATA,1092159,03-Jan-24,977.88,0,186027,Child Disabilities - Placement,CSF-DIRECT PAYMENTS,R,2023,10
1096,"Children, Schools and Family",REDACTED PERSONAL DATA,1104717,29-Jan-24,977.88,0,186027,Child Disabilities - Placement,CSF-DIRECT PAYMENTS,R,2023,10
1097,Community and Housing,REDACTED PERSONAL DATA,1091881,02-Jan-24,1690.36,0,186071,Older People Placements - East,DIRECT PAYMENTS,R,2023,10
1098,Community and Housing,REDACTED PERSONAL DATA,1104234,29-Jan-24,1690.36,0,186071,Older People Placements - East,DIRECT PAYMENTS,R,2023,10
1099,"Children, Schools and Family",PSYCHOLOGY DIRECT LTD,INV-014910,12-Jan-24,2217.6,369.6,186166,Family Supp SafeGuard - Place,321100              Social Community Care Supplies & Services - Children,A,2023,10
1100,"Children, Schools and Family",REDACTED PERSONAL DATA,1093610,05-Jan-24,641.24,0,186169,Placements Under 18,321100              Social Community Care Supplies & Services - Children,R,2023,10
1101,"Children, Schools and Family",REDACTED PERSONAL DATA,1097569,12-Jan-24,641.24,0,186169,Placements Under 18,321100              Social Community Care Supplies & Services - Children,R,2023,10
1102,"Children, Schools and Family",REDACTED PERSONAL DATA,1100753,19-Jan-24,641.24,0,186169,Placements Under 18,321100              Social Community Care Supplies & Services - Children,R,2023,10
1103,"Children, Schools and Family",REDACTED PERSONAL DATA,1103411,26-Jan-24,641.24,0,186169,Placements Under 18,321100              Social Community Care Supplies & Services - Children,R,2023,10
1104,Environment and Regeneration,LA (Local Authority) Support Ltd,SER00050614INV,11-Jan-24,5277.89,879.65,186193,Outdoor Events,180000              Environmental Services,A,2023,10
1105,Environment and Regeneration,LA (Local Authority) Support Ltd,SER00050615INV,11-Jan-24,7448.44,1241.4,186193,Outdoor Events,180000              Environmental Services,A,2023,10
1106,Environment and Regeneration,LA (Local Authority) Support Ltd,SER-000523571NY,30-Jan-24,3842.29,640.38,186193,Waste Enforcement,180000              Environmental Services,A,2023,10
1107,Environment and Regeneration,LA (Local Authority) Support Ltd,SER-0Q051455NV,30-Jan-24,16902,2817,186193,Waste Enforcement,180000              Environmental Services,A,2023,10
1108,Corporate Services,REDACTED PERSONAL DATA,SRC3367,16-Jan-24,696.6,116.1,186286,SLLP - Disbursements,280000              Legal Services                                                                            Confirmed,R,2023,10
1109,"Children, Schools and Family",CAREOLINE,21744,22-Jan-24,646.99,0,186615,CIC Care Exp under 18 staffing,321100              Social Community Care Supplies & Services - Children,A,2023,10
1110,"Children, Schools and Family",CAREOLINE,21745,24-Jan-24,534.58,0,186615,CIC Care Exp under 18 staffing,321100              Social Community Care Supplies & Services - Children,A,2023,10
1111,"Children, Schools and Family",COMPASS FOSTERING LONDON LTD,36691,12-Jan-24,3702.33,0,186716,UASC LAC Under 18,321100              Social Community Care Supplies & Services - Children,A,2023,10
1112,"Children, Schools and Family",COMPASS FOSTERING LONDON LTD,36690,12-Jan-24,6594.63,0,186716,Placements Under 18,321100              Social Community Care Supplies & Services - Children,A,2023,10
1113,Community and Housing,SUPREME HOMES LTD,30638,08-Jan-24,4282.12,0,186763,Mental Health Placements,321100              Social Community Care Supplies & Services - Children,A,2023,10
1114,Community and Housing,SUPREME HOMES LTD,1099855,17-Jan-24,1956.8,0,186763,Mental Health Placements,321100              Social Community Care Supplies & Services - Children,A,2023,10
1115,Community and Housing,REDACTED PERSONAL DATA,1091835,02-Jan-24,1642.2,0,186789,Phys/Sens Placements - East,DIRECT PAYMENTS,R,2023,10
1116,Community and Housing,REDACTED PERSONAL DATA,1104188,29-Jan-24,1642.2,0,186789,Phys/Sens Placements - East,DIRECT PAYMENTS,R,2023,10
1117,"Children, Schools and Family",YOUNG LONDON TODAY,INV-26652,19-Jan-24,752.7,0,186890,UASC Care Leavers Over 18,321100              Social Community Care Supplies & Services - Children,A,2023,10
1118,Community and Housing,BLUEBIRD CARE,15993,25-Jan-24,867.58,0,186946,Older People Placements - East,321000              Social Community Care Supplies & Services - Adult,A,2023,10
1119,Capital,COSMUR CONSTRUCTION (LDN) LTD,SL010175,09-Jan-24,17625,2937.5,187025,Works to other buildings,"390000              Works - Construction, Repair & Maintenance",C,2023,10
1120,"Children, Schools and Family",KIDDIES KOTTAGE NURSERY,P3 24 UPFRONTPAY,04-Jan-24,3823.2,0,187138,EARLY YEARS NURSERY GRANTS,200000              Financial Services,A,2023,10
1121,Community and Housing,CAREMARK (MERTON),SS-883,09-Jan-24,831.69,0,187170,Older People Placements - East,321000              Social Community Care Supplies & Services - Adult,A,2023,10
1122,Community and Housing,CAREMARK (MERTON),SS-909,09-Jan-24,811.16,0,187170,Older People Placements - East,321000              Social Community Care Supplies & Services - Adult,A,2023,10
1123,Community and Housing,CAREMARK (MERTON),SS-917,09-Jan-24,754.74,0,187170,Older People Placements - East,321000              Social Community Care Supplies & Services - Adult,A,2023,10
1124,Community and Housing,CAREMARK (MERTON),SS-914,09-Jan-24,831.69,0,187170,Older People Placements - East,321000              Social Community Care Supplies & Services - Adult,A,2023,10
1125,Community and Housing,CAREMARK (MERTON),SS-990,09-Jan-24,949.62,0,187170,Older People Placements - East,321000              Social Community Care Supplies & Services - Adult,A,2023,10
1126,Community and Housing,CAREMARK (MERTON),SS-989,15-Jan-24,571.78,0,187170,Learning Disabilities Placemnt,321000              Social Community Care Supplies & Services - Adult,A,2023,10
1127,Community and Housing,CAREMARK (MERTON),SS-985,15-Jan-24,811.16,0,187170,Older People Placements - East,321000              Social Community Care Supplies & Services - Adult,A,2023,10
1128,Community and Housing,CAREMARK (MERTON),SS-976,15-Jan-24,754.74,0,187170,Older People Placements - East,321000              Social Community Care Supplies & Services - Adult,A,2023,10
1129,Community and Housing,CAREMARK (MERTON),SS-959,10-Jan-24,571.78,0,187170,Learning Disabilities Placemnt,321000              Social Community Care Supplies & Services - Adult,A,2023,10
1130,Community and Housing,CAREMARK (MERTON),SS-960,10-Jan-24,949.62,0,187170,Older People Placements - East,321000              Social Community Care Supplies & Services - Adult,A,2023,10
1131,Community and Housing,CAREMARK (MERTON),SS-938,10-Jan-24,811.16,0,187170,Older People Placements - East,321000              Social Community Care Supplies & Services - Adult,A,2023,10
1132,Community and Housing,CAREMARK (MERTON),SS-973,15-Jan-24,831.69,0,187170,Older People Placements - East,321000              Social Community Care Supplies & Services - Adult,A,2023,10
1133,Community and Housing,CAREMARK (MERTON),SS-929,10-Jan-24,571.78,0,187170,Learning Disabilities Placemnt,321000              Social Community Care Supplies & Services - Adult,A,2023,10
1134,Community and Housing,CAREMARK (MERTON),SS-930,10-Jan-24,949.62,0,187170,Older People Placements - East,321000              Social Community Care Supplies & Services - Adult,A,2023,10
1135,Community and Housing,CAREMARK (MERTON),SS-968,10-Jan-24,811.16,0,187170,Older People Placements - East,321000              Social Community Care Supplies & Services - Adult,A,2023,10
1136,Community and Housing,CAREMARK (MERTON),SS-946,10-Jan-24,754.74,0,187170,Older People Placements - East,321000              Social Community Care Supplies & Services - Adult,A,2023,10
1137,Community and Housing,CAREMARK (MERTON),SS-943,10-Jan-24,831.69,0,187170,Older People Placements - East,321000              Social Community Care Supplies & Services - Adult,A,2023,10
1138,Community and Housing,CAREMARK (MERTON),SS-886,10-Jan-24,754.74,0,187170,Older People Placements - East,321000              Social Community Care Supplies & Services - Adult,A,2023,10
1139,Community and Housing,CAREMARK (MERTON),SS-925,10-Jan-24,811.16,0,187170,Older People Placements - East,321000              Social Community Care Supplies & Services - Adult,A,2023,10
1140,Community and Housing,CAREMARK (MERTON),SS-895,10-Jan-24,811.16,0,187170,Older People Placements - East,321000              Social Community Care Supplies & Services - Adult,A,2023,10
1141,Community and Housing,CAREMARK (MERTON),SS-899,10-Jan-24,571.78,0,187170,Learning Disabilities Placemnt,321000              Social Community Care Supplies & Services - Adult,A,2023,10
1142,Community and Housing,CAREMARK (MERTON),SS-900,10-Jan-24,949.62,0,187170,Older People Placements - East,321000              Social Community Care Supplies & Services - Adult,A,2023,10
1143,Community and Housing,CAREMARK (MERTON),SS-1040,15-Jan-24,571.78,0,187170,Learning Disabilities Placemnt,321000              Social Community Care Supplies & Services - Adult,A,2023,10
1144,Community and Housing,CAREMARK (MERTON),SS-1036,15-Jan-24,811.16,0,187170,Older People Placements - East,321000              Social Community Care Supplies & Services - Adult,A,2023,10
1145,Community and Housing,CAREMARK (MERTON),SS-1028,15-Jan-24,729.8,0,187170,Older People Placements - East,321000              Social Community Care Supplies & Services - Adult,A,2023,10
1146,Community and Housing,CAREMARK (MERTON),SS-1050,15-Jan-24,811.16,0,187170,Older People Placements - East,321000              Social Community Care Supplies & Services - Adult,A,2023,10
1147,Community and Housing,CAREMARK (MERTON),SS-1041,15-Jan-24,949.62,0,187170,Older People Placements - East,321000              Social Community Care Supplies & Services - Adult,A,2023,10
1148,Community and Housing,CAREMARK (MERTON),SS-999,15-Jan-24,811.16,0,187170,Older People Placements - East,321000              Social Community Care Supplies & Services - Adult,A,2023,10
1149,Community and Housing,CAREMARK (MERTON),SS-1026,15-Jan-24,831.69,0,187170,Older People Placements - East,321000              Social Community Care Supplies & Services - Adult,A,2023,10
1150,Community and Housing,CAREMARK (MERTON),SS-224,17-Jan-24,949.62,0,187170,Older People Placements - East,321000              Social Community Care Supplies & Services - Adult,A,2023,10
1151,Community and Housing,CAREMARK (MERTON),SS-68,17-Jan-24,831.69,0,187170,Older People Placements - East,321000              Social Community Care Supplies & Services - Adult,A,2023,10
1152,Community and Housing,CAREMARK (MERTON),SS-242,17-Jan-24,831.69,0,187170,Older People Placements - East,321000              Social Community Care Supplies & Services - Adult,A,2023,10
1153,Community and Housing,CAREMARK (MERTON),SS-105,18-Jan-24,831.69,0,187170,Older People Placements - East,321000              Social Community Care Supplies & Services - Adult,A,2023,10
1154,Community and Housing,CAREMARK (MERTON),SS-202,18-Jan-24,831.69,0,187170,Older People Placements - East,321000              Social Community Care Supplies & Services - Adult,A,2023,10
1155,Community and Housing,CAREMARK (MERTON),SS-98,18-Jan-24,811.16,0,187170,Older People Placements - East,321000              Social Community Care Supplies & Services - Adult,A,2023,10
1156,Community and Housing,CAREMARK (MERTON),SS-704,18-Jan-24,811.16,0,187170,Older People Placements - East,321000              Social Community Care Supplies & Services - Adult,A,2023,10
1157,Community and Housing,CAREMARK (MERTON),SS-232,18-Jan-24,811.16,0,187170,Older People Placements - East,321000              Social Community Care Supplies & Services - Adult,A,2023,10
1158,Community and Housing,CAREMARK (MERTON),SS-412,18-Jan-24,811.16,0,187170,Older People Placements - East,321000              Social Community Care Supplies & Services - Adult,A,2023,10
1159,Community and Housing,CAREMARK (MERTON),SS-1123,29-Jan-24,998.44,0,187170,Older People Placements - East,321000              Social Community Care Supplies & Services - Adult,A,2023,10
1160,"Children, Schools and Family",REDACTED PERSONAL DATA,P3 24 UPFRONTPAY,04-Jan-24,3404.16,0,187301,EARLY YEARS NURSERY GRANTS,200000              Financial Services,R,2023,10
1161,Unassigned,HARRIS PRIMARY ACADEMY MERTON,SCHOOLS 2324/10,08-Jan-24,48375,0,187329,Schools,170000              Education,A,2023,10
1162,"Children, Schools and Family",REDACTED PERSONAL DATA,1092176,03-Jan-24,938.4,0,187336,Child Disabilities - Placement,CSF-DIRECT PAYMENTS,R,2023,10
1163,"Children, Schools and Family",REDACTED PERSONAL DATA,1104736,29-Jan-24,938.4,0,187336,Child Disabilities - Placement,CSF-DIRECT PAYMENTS,R,2023,10
1164,"Children, Schools and Family",REDACTED PERSONAL DATA,0114OC,25-Jan-24,1150,0,187350, Education Psychology,260000              Human Resources,R,2023,10
1165,Community and Housing,REDACTED PERSONAL DATA,1091809,02-Jan-24,972.84,0,187457,Learning Disabilities Placemnt,DIRECT PAYMENTS,R,2023,10
1166,Community and Housing,REDACTED PERSONAL DATA,1104161,29-Jan-24,972.84,0,187457,Learning Disabilities Placemnt,DIRECT PAYMENTS,R,2023,10
1167,"Children, Schools and Family",OWN LIFE LTD - FC,231304,23-Jan-24,3188.57,531.43,187567,UASC Care Leavers Over 18,321100              Social Community Care Supplies & Services - Children Residential,A,2023,10
1168,"Children, Schools and Family",OWN LIFE LTD - FC,231111,24-Jan-24,3188.57,531.43,187567,UASC Care Leavers Over 18,321100              Social Community Care Supplies & Services - Children Residential,A,2023,10
1169,Community and Housing,REDACTED PERSONAL DATA,1091596,02-Jan-24,913.88,0,187597,Phys/Sens Placements - East,DIRECT PAYMENTS,R,2023,10
1170,Community and Housing,REDACTED PERSONAL DATA,1103936,29-Jan-24,913.88,0,187597,Phys/Sens Placements - East,DIRECT PAYMENTS,R,2023,10
1171,"Children, Schools and Family",BANANA MOON DAY NURSERY,P3 24 UPFRONTPAY,04-Jan-24,13763.52,0,187670,EARLY YEARS NURSERY GRANTS,200000              Financial Services,A,2023,10
1172,"Children, Schools and Family",BUMPSA-DAISIES NURSERY,P3 24 UPFRONTPAY,04-Jan-24,21117.6,0,187672,EARLY YEARS NURSERY GRANTS,200000              Financial Services,A,2023,10
1173,Community and Housing,REDACTED PERSONAL DATA,1091783,02-Jan-24,6354.32,0,187729,Older People Placements - East,DIRECT PAYMENTS,R,2023,10
1174,Community and Housing,REDACTED PERSONAL DATA,1104133,29-Jan-24,6354.32,0,187729,Older People Placements - East,DIRECT PAYMENTS,R,2023,10
1175,"Children, Schools and Family",BLOOMING YEARS DAY NURSERY,P3 24 UPFRONTPAY,04-Jan-24,23139.36,0,187747,EARLY YEARS NURSERY GRANTS,170000              Education,A,2023,10
1176,Community and Housing,REDACTED PERSONAL DATA,1091820,02-Jan-24,684.24,0,187842,Phys/Sens Placements - East,DIRECT PAYMENTS,R,2023,10
